Workbook

Sheet r2
I1: عمال الشركة | J1: 1
B2: =" تقرير التسحيب الاسبوعي / "&$C$4&""&" من تاريخ :- "&YEAR(C5)&"/"&MONTH($C$5)&"/"&DAY($C$5)&" الي تاريخ :- "&YEAR($C$6)&"/"&MONTH($C$6)&"/"&DAY($C$6)&" م" -> تقرير التسحيب الاسبوعي / عمال الشركة من تاريخ :- 2021/4/1 الي تاريخ :- 2021/5/1 م | I2: مزيد بني خالد | J2: 2
I3: عبدالله الشمري | J3: 3
B4: الحساب | C4: عمال الشركة | I4: ابراهيم سالم ابو جخيدم | J4: 4
B5: من التاريخ | C5: 2021-04-01 | I5: خليل السوري | J5: 5
B6: الى التاريخ | C6: 2021-05-01
B8: ت | C8: تاريخ | D8: قبل التسحيب | E8: صافي الكمية | F8: العدد | G8: النسبة
I9: ='1'!K4 -> 2021-04-01
I10: =I9+1 -> 2021-04-02
I11: 2021-04-03
I12: 2021-04-04
I13: 2021-04-05
I14: 2021-04-06
I15: 2021-04-07
I16: 2021-04-08
I17: 2021-04-09
I18: 2021-04-10
I19: 2021-04-11
I20: 2021-04-12
I21: 2021-04-13
I22: 2021-04-14
I23: 2021-04-15
I24: 2021-04-16
I25: 2021-04-17
I26: 2021-04-18
I27: 2021-04-19
I28: 2021-04-20
I29: 2021-04-21
I30: 2021-04-22
I31: 2021-04-23
I32: 2021-04-24
I33: 2021-04-25
I34: 2021-04-26
I35: 2021-04-27
I36: 2021-04-28
I37: 2021-04-29
I38: 2021-04-30
I39: 2021-05-01
B40: الصافي | C40: =SUM(C9:C39) -> 0 | D40: =SUM(D9:D39) -> 0 | E40: =SUM(E9:E39) -> 0 | F40: =SUM(F9:F39) -> 0 | G40: 0

Sheet r1
C1: ="تقرير التسحيب / من تاريخ :- "&YEAR(D3)&"/"&MONTH($D$3)&"/"&DAY($D$3)&" الي تاريخ :- "&YEAR($D$4)&"/"&MONTH($D$4)&"/"&DAY($D$4)&" م" -> تقرير التسحيب / من تاريخ :- 2021/4/1 الي تاريخ :- 2021/5/1 م
C3: من التاريخ | D3: 2021-04-01
C4: الى التاريخ | D4: 2021-05-01
B8: مجموعة | E8: عمال الشركة | I8: مجموعة | K8: مزيد بني خالد | P8: مجموعة | R8: عبد الله الشمري | V8: مجموعة | Y8: ابراهيم سالم ابو جخيدم | AE8: مجموعة | AG8: خليل السوري
B9: ت | C9: تاريخ | D9: قبل التسحيب | E9: صافي الكمية | F9: العدد | G9: النسبة | I9: ت | J9: تاريخ | K9: قبل التسحيب | L9: صافي الكمية | M9: العدد | N9: النسبة | P9: ت | Q9: تاريخ | R9: قبل التسحيب | S9: صافي الكمية | T9: العدد | U9: النسبة | W9: ت | X9: تاريخ | Y9: قبل التسحيب | Z9: صافي الكمية | AA9: العدد | AB9: النسبة | AD9: ت | AE9: تاريخ | AF9: قبل التسحيب | AG9: صافي الكمية | AH9: العدد | AI9: النسبة
A10: ='1'!K4 -> 2021-04-01
A11: =A10+1 -> 2021-04-02
A12: 2021-04-03
A13: 2021-04-04
A14: 2021-04-05
A15: 2021-04-06
A16: 2021-04-07
A17: 2021-04-08
A18: 2021-04-09
A19: 2021-04-10
A20: 2021-04-11
A21: 2021-04-12
A22: 2021-04-13
A23: 2021-04-14
A24: 2021-04-15
A25: 2021-04-16
A26: 2021-04-17
A27: 2021-04-18
A28: 2021-04-19
A29: 2021-04-20
A30: 2021-04-21
A31: 2021-04-22
A32: 2021-04-23
A33: 2021-04-24
A34: 2021-04-25
A35: 2021-04-26
A36: 2021-04-27
A37: 2021-04-28
A38: 2021-04-29
A39: 2021-04-30
A40: 2021-05-01
C41: الصافي | E41: =SUM(E10:E39) -> 0 | F41: =SUM(F10:F39) -> 0 | J41: الصافي | L41: =SUM(L10:L39) -> 0 | M41: =SUM(M10:M39) -> 0 | Q41: الصافي | S41: =SUM(S10:S39) -> 0 | T41: =SUM(T10:T39) -> 0 | X41: الصافي | Z41: =SUM(Z10:Z39) -> 0 | AA41: =SUM(AA10:AA39) -> 0 | AE41: الصافي | AG41: =SUM(AG10:AG39) -> 0 | AH41: =SUM(AH10:AH39) -> 0

Sheet d1
D1: مجموعة | E1: عمال الشركة | J1: مجموعة | K1: مزيد بني خالد | P1: مجموعة | Q1: عبد الله الشمري | V1: مجموعة | W1: ابراهيم سالم ابو جخيدم | AB1: مجموعة | AC1: خليل السوري
C3: ت | D3: تاريخ | E3: وزن قبل | F3: عدد | G3: % | H3: وزن بعد التسحيب | J3: تاريخ | K3: وزن قبل | L3: عدد | M3: % | N3: وزن بعد التسحيب | P3: تاريخ | Q3: وزن قبل | R3: عدد | S3: % | T3: وزن بعد التسحيب | V3: تاريخ | W3: وزن قبل | X3: عدد | Y3: % | Z3: وزن بعد التسحيب | AB3: تاريخ | AC3: وزن قبل | AD3: عدد | AE3: % | AF3: وزن بعد التسحيب
C4: =IF(D4="","",COUNTA($D$4:D4)) -> 1 | D4: ='1'!K4 -> 2021-04-01 | E4: ='1'!$K$23 -> 439.2 | F4: ='1'!$W$23 -> 900 | G4: =H4/E4 -> 2.52996357 | H4: ='1'!$V$23 -> 1111.16 | I4: =IF(J4="","",COUNTA($D$4:J4)) -> 1 | J4: ='1'!K26 -> 2021-04-01 | K4: ='1'!$K$45 -> 786.5 | L4: ='1'!$W$45 -> 650 | M4: =N4/K4 -> 1.827972028 | N4: ='1'!$V$45 -> 1437.7 | O4: =IF(P4="","",COUNTA($D$4:P4)) -> 1 | P4: ='1'!K48 -> 2021-04-01 | Q4: ='1'!$K$67 -> 516.5 | R4: ='1'!$W$67 -> 2020 | S4: =T4/Q4 -> 2.43285576 | T4: ='1'!$V$67 -> 1256.57 | U4: =IF(V4="","",COUNTA($D$4:V4)) -> 1 | V4: ='1'!L71 -> 2021-04-01 | W4: ='1'!$L$72 -> 550 | X4: ='1'!$L$74 -> 450 | Y4: =Z4/W4 -> 0.6363636364 | Z4: ='1'!$L$73 -> 350 | AA4: =IF(AB4="","",COUNTA($D$4:AB4)) -> 1 | AB4: ='1'!R71 -> 2021-04-01 | AC4: ='1'!$R$72 -> 500 | AD4: ='1'!$R$74 -> 554 | AE4: =AF4/AC4 -> 1.3 | AF4: ='1'!$R$73 -> 650
C5: =IF(D5="","",COUNTA($D$4:D5)) -> 2 | D5: =D4+1 -> 2021-04-02 | E5: ='2'!$K$23 -> 336.5 | F5: ='2'!$W$23 -> 1200 | G5: 5.94 | H5: ='2'!$V$23 -> 1998.81 | I5: =IF(J5="","",COUNTA($D$4:J5)) -> 2 | J5: =J4+1 -> 2021-04-02 | K5: ='2'!$K$45 -> 786.5 | L5: ='2'!$W$45 -> 1200 | M5: =N5/K5 -> 2.531226955 | N5: ='2'!$V$45 -> 1990.81 | O5: =IF(P5="","",COUNTA($D$4:P5)) -> 2 | P5: =P4+1 -> 2021-04-02 | Q5: ='2'!$K$67 -> 886.5 | R5: ='2'!$W$67 -> 1200 | S5: =T5/Q5 -> 1.607230682 | T5: ='2'!$V$67 -> 1424.81 | U5: =IF(V5="","",COUNTA($D$4:V5)) -> 2 | V5: =V4+1 -> 2021-04-02 | W5: ='2'!$L$72 -> 0 | X5: ='2'!$L$74 -> 0 | Y5: =Z5/W5 ->  | Z5: ='2'!$L$73 -> 0 | AA5: =IF(AB5="","",COUNTA($D$4:AB5)) -> 2 | AB5: =AB4+1 -> 2021-04-02 | AC5: ='2'!$R$72 -> 0 | AD5: ='2'!$R$74 -> 0 | AE5: =AF5/AC5 ->  | AF5: ='2'!$R$73 -> 0
C6: =IF(D6="","",COUNTA($D$4:D6)) -> 3 | D6: =D5+1 -> 2021-04-03 | E6: ='3'!$K$23 -> 886.5 | F6: ='3'!$W$23 -> 800 | G6: 1.785459673 | H6: ='3'!$V$23 -> 1582.81 | I6: =IF(J6="","",COUNTA($D$4:J6)) -> 3 | J6: =J5+1 -> 2021-04-03 | K6: ='3'!$K$45 -> 286.5 | L6: ='3'!$W$45 -> 800 | M6: 7.646806283 | N6: ='3'!$V$45 -> 2190.81 | O6: =IF(P6="","",COUNTA($D$4:P6)) -> 3 | P6: =P5+1 -> 2021-04-03 | Q6: ='3'!$K$67 -> 616.5 | R6: ='3'!$W$67 -> 800 | S6: 4.220291971 | T6: ='3'!$V$67 -> 2601.81 | U6: =IF(V6="","",COUNTA($D$4:V6)) -> 3 | V6: =V5+1 -> 2021-04-03 | W6: ='3'!$L$72 -> 0 | X6: ='3'!$L$74 -> 0 | Z6: ='3'!$L$73 -> 0 | AA6: =IF(AB6="","",COUNTA($D$4:AB6)) -> 3 | AB6: =AB5+1 -> 2021-04-03 | AC6: ='3'!$R$72 -> 0 | AD6: ='3'!$R$74 -> 0 | AF6: ='3'!$R$73 -> 0
C7: =IF(D7="","",COUNTA($D$4:D7)) -> 4 | D7: =D6+1 -> 2021-04-04 | E7: ='4'!$K$23 -> 941.7 | F7: ='4'!$W$23 -> 980 | G7: 1.409652756 | H7: ='4'!$V$23 -> 1327.47 | I7: =IF(J7="","",COUNTA($D$4:J7)) -> 4 | J7: 2021-04-04 | K7: ='4'!$K$45 -> 532.7 | L7: ='4'!$W$45 -> 980 | M7: 2.814848883 | N7: ='4'!$V$45 -> 1499.47 | O7: =IF(P7="","",COUNTA($D$4:P7)) -> 4 | P7: 2021-04-04 | Q7: ='4'!$K$67 -> 442.7 | R7: ='4'!$W$67 -> 980 | S7: 3.454867856 | T7: ='4'!$V$67 -> 1529.47 | U7: =IF(V7="","",COUNTA($D$4:V7)) -> 4 | V7: 2021-04-04 | W7: ='4'!$L$72 -> 0 | X7: ='4'!$L$74 -> 0 | Z7: ='4'!$L$73 -> 0 | AA7: =IF(AB7="","",COUNTA($D$4:AB7)) -> 4 | AB7: 2021-04-04 | AC7: ='4'!$R$72 -> 0 | AD7: ='4'!$R$74 -> 0 | AF7: ='4'!$R$73 -> 0
C8: =IF(D8="","",COUNTA($D$4:D8)) -> 5 | D8: 2021-04-05 | E8: ='5'!$K$23 -> 941.7 | F8: ='5'!$W$23 -> 980 | G8: 1.409652756 | H8: ='5'!$V$23 -> 1327.47 | I8: =IF(J8="","",COUNTA($D$4:J8)) -> 5 | J8: 2021-04-05 | K8: ='5'!$K$45 -> 532.7 | L8: ='5'!$W$45 -> 980 | M8: 2.814848883 | N8: ='5'!$V$45 -> 1499.47 | O8: =IF(P8="","",COUNTA($D$4:P8)) -> 5 | P8: 2021-04-05 | Q8: ='5'!$K$67 -> 442.7 | R8: ='5'!$W$67 -> 980 | S8: 3.454867856 | T8: ='5'!$V$67 -> 1529.47 | U8: =IF(V8="","",COUNTA($D$4:V8)) -> 5 | V8: 2021-04-05 | W8: ='5'!$L$72 -> 0 | X8: ='5'!$L$74 -> 0 | Z8: ='5'!$L$73 -> 0 | AA8: =IF(AB8="","",COUNTA($D$4:AB8)) -> 5 | AB8: 2021-04-05 | AC8: ='5'!$R$72 -> 0 | AD8: ='5'!$R$74 -> 0 | AF8: ='5'!$R$73 -> 0
C9: =IF(D9="","",COUNTA($D$4:D9)) -> 6 | D9: 2021-04-06 | E9: ='6'!$K$23 -> 941.7 | F9: ='6'!$W$23 -> 980 | G9: 1.409652756 | H9: ='6'!$V$23 -> 1327.47 | I9: =IF(J9="","",COUNTA($D$4:J9)) -> 6 | J9: 2021-04-06 | K9: ='6'!$K$45 -> 532.7 | L9: ='6'!$W$45 -> 980 | M9: 2.814848883 | N9: ='6'!$V$45 -> 1499.47 | O9: =IF(P9="","",COUNTA($D$4:P9)) -> 6 | P9: 2021-04-06 | Q9: ='6'!$K$67 -> 442.7 | R9: ='6'!$W$67 -> 980 | S9: 3.454867856 | T9: ='6'!$V$67 -> 1529.47 | U9: =IF(V9="","",COUNTA($D$4:V9)) -> 6 | V9: 2021-04-06 | W9: ='6'!$L$72 -> 0 | X9: ='6'!$L$74 -> 0 | Z9: ='6'!$L$73 -> 0 | AA9: =IF(AB9="","",COUNTA($D$4:AB9)) -> 6 | AB9: 2021-04-06 | AC9: ='6'!$R$72 -> 0 | AD9: ='6'!$R$74 -> 0 | AF9: ='6'!$R$73 -> 0
C10: =IF(D10="","",COUNTA($D$4:D10)) -> 7 | D10: 2021-04-07 | E10: ='7'!$K$23 -> 941.7 | F10: ='7'!$W$23 -> 980 | G10: 1.409652756 | H10: ='7'!$V$23 -> 1327.47 | I10: =IF(J10="","",COUNTA($D$4:J10)) -> 7 | J10: 2021-04-07 | K10: ='7'!$K$45 -> 532.7 | L10: ='7'!$W$45 -> 980 | M10: 2.814848883 | N10: ='7'!$V$45 -> 1499.47 | O10: =IF(P10="","",COUNTA($D$4:P10)) -> 7 | P10: 2021-04-07 | Q10: ='7'!$K$67 -> 442.7 | R10: ='7'!$W$67 -> 980 | S10: 3.454867856 | T10: ='7'!$V$67 -> 1529.47 | U10: =IF(V10="","",COUNTA($D$4:V10)) -> 7 | V10: 2021-04-07 | W10: ='7'!$L$72 -> 0 | X10: ='7'!$L$74 -> 0 | Z10: ='7'!$L$73 -> 0 | AA10: =IF(AB10="","",COUNTA($D$4:AB10)) -> 7 | AB10: 2021-04-07 | AC10: ='7'!$R$72 -> 0 | AD10: ='7'!$R$74 -> 0 | AF10: ='7'!$R$73 -> 0
C11: =IF(D11="","",COUNTA($D$4:D11)) -> 8 | D11: 2021-04-08 | E11: ='8'!$K$23 -> 941.7 | F11: ='8'!$W$23 -> 980 | G11: 1.409652756 | H11: ='8'!$V$23 -> 1327.47 | I11: =IF(J11="","",COUNTA($D$4:J11)) -> 8 | J11: 2021-04-08 | K11: ='8'!$K$45 -> 532.7 | L11: ='8'!$W$45 -> 980 | M11: 2.814848883 | N11: ='8'!$V$45 -> 1499.47 | O11: =IF(P11="","",COUNTA($D$4:P11)) -> 8 | P11: 2021-04-08 | Q11: ='8'!$K$67 -> 442.7 | R11: ='8'!$W$67 -> 980 | S11: 3.454867856 | T11: ='8'!$V$67 -> 1529.47 | U11: =IF(V11="","",COUNTA($D$4:V11)) -> 8 | V11: 2021-04-08 | W11: ='8'!$L$72 -> 0 | X11: ='8'!$L$74 -> 0 | Z11: ='8'!$L$73 -> 0 | AA11: =IF(AB11="","",COUNTA($D$4:AB11)) -> 8 | AB11: 2021-04-08 | AC11: ='8'!$R$72 -> 0 | AD11: ='8'!$R$74 -> 0 | AF11: ='8'!$R$73 -> 0
C12: =IF(D12="","",COUNTA($D$4:D12)) -> 9 | D12: 2021-04-09 | E12: ='9'!$K$23 -> 941.7 | F12: ='9'!$W$23 -> 980 | G12: 1.409652756 | H12: ='9'!$V$23 -> 1327.47 | I12: =IF(J12="","",COUNTA($D$4:J12)) -> 9 | J12: 2021-04-09 | K12: ='9'!$K$45 -> 532.7 | L12: ='9'!$W$45 -> 980 | M12: 2.814848883 | N12: ='9'!$V$45 -> 1499.47 | O12: =IF(P12="","",COUNTA($D$4:P12)) -> 9 | P12: 2021-04-09 | Q12: ='9'!$K$67 -> 442.7 | R12: ='9'!$W$67 -> 980 | S12: 3.454867856 | T12: ='9'!$V$67 -> 1529.47 | U12: =IF(V12="","",COUNTA($D$4:V12)) -> 9 | V12: 2021-04-09 | W12: ='9'!$L$72 -> 0 | X12: ='9'!$L$74 -> 0 | Z12: ='9'!$L$73 -> 0 | AA12: =IF(AB12="","",COUNTA($D$4:AB12)) -> 9 | AB12: 2021-04-09 | AC12: ='9'!$R$72 -> 0 | AD12: ='9'!$R$74 -> 0 | AF12: ='9'!$R$73 -> 0
C13: =IF(D13="","",COUNTA($D$4:D13)) -> 10 | D13: 2021-04-10 | E13: ='10'!$K$23 -> 941.7 | F13: ='10'!$W$23 -> 980 | G13: 1.409652756 | H13: ='10'!$V$23 -> 1327.47 | I13: =IF(J13="","",COUNTA($D$4:J13)) -> 10 | J13: 2021-04-10 | K13: ='10'!$K$45 -> 532.7 | L13: ='10'!$W$45 -> 980 | M13: 2.814848883 | N13: ='10'!$V$45 -> 1499.47 | O13: =IF(P13="","",COUNTA($D$4:P13)) -> 10 | P13: 2021-04-10 | Q13: ='10'!$K$67 -> 442.7 | R13: ='10'!$W$67 -> 980 | S13: 3.454867856 | T13: ='10'!$V$67 -> 1529.47 | U13: =IF(V13="","",COUNTA($D$4:V13)) -> 10 | V13: 2021-04-10 | W13: ='10'!$L$72 -> 0 | X13: ='10'!$L$74 -> 0 | Z13: ='10'!$L$73 -> 0 | AA13: =IF(AB13="","",COUNTA($D$4:AB13)) -> 10 | AB13: 2021-04-10 | AC13: ='10'!$R$72 -> 0 | AD13: ='10'!$R$74 -> 0 | AF13: ='10'!$R$73 -> 0
C14: =IF(D14="","",COUNTA($D$4:D14)) -> 11 | D14: 2021-04-11 | E14: ='11'!$K$23 -> 941.7 | F14: ='11'!$W$23 -> 980 | G14: 1.409652756 | H14: ='11'!$V$23 -> 1327.47 | I14: =IF(J14="","",COUNTA($D$4:J14)) -> 11 | J14: 2021-04-11 | K14: ='11'!$K$45 -> 532.7 | L14: ='11'!$W$45 -> 980 | M14: 2.814848883 | N14: ='11'!$V$45 -> 1499.47 | O14: =IF(P14="","",COUNTA($D$4:P14)) -> 11 | P14: 2021-04-11 | Q14: ='11'!$K$67 -> 442.7 | R14: ='11'!$W$67 -> 980 | S14: 3.454867856 | T14: ='11'!$V$67 -> 1529.47 | U14: =IF(V14="","",COUNTA($D$4:V14)) -> 11 | V14: 2021-04-11 | W14: ='11'!$L$72 -> 0 | X14: ='11'!$L$74 -> 0 | Z14: ='11'!$L$73 -> 0 | AA14: =IF(AB14="","",COUNTA($D$4:AB14)) -> 11 | AB14: 2021-04-11 | AC14: ='11'!$R$72 -> 0 | AD14: ='11'!$R$74 -> 0 | AF14: ='11'!$R$73 -> 0
C15: =IF(D15="","",COUNTA($D$4:D15)) -> 12 | D15: 2021-04-12 | E15: ='12'!$K$23 -> 941.7 | F15: ='12'!$W$23 -> 980 | G15: 1.409652756 | H15: ='12'!$V$23 -> 1327.47 | I15: =IF(J15="","",COUNTA($D$4:J15)) -> 12 | J15: 2021-04-12 | K15: ='12'!$K$45 -> 532.7 | L15: ='12'!$W$45 -> 980 | M15: 2.814848883 | N15: ='12'!$V$45 -> 1499.47 | O15: =IF(P15="","",COUNTA($D$4:P15)) -> 12 | P15: 2021-04-12 | Q15: ='12'!$K$67 -> 442.7 | R15: ='12'!$W$67 -> 980 | S15: 3.454867856 | T15: ='12'!$V$67 -> 1529.47 | U15: =IF(V15="","",COUNTA($D$4:V15)) -> 12 | V15: 2021-04-12 | W15: ='12'!$L$72 -> 0 | X15: ='12'!$L$74 -> 0 | Z15: ='12'!$L$73 -> 0 | AA15: =IF(AB15="","",COUNTA($D$4:AB15)) -> 12 | AB15: 2021-04-12 | AC15: ='12'!$R$72 -> 0 | AD15: ='12'!$R$74 -> 0 | AF15: ='12'!$R$73 -> 0
C16: =IF(D16="","",COUNTA($D$4:D16)) -> 13 | D16: 2021-04-13 | E16: ='13'!$K$23 -> 941.7 | F16: ='13'!$W$23 -> 980 | G16: 1.409652756 | H16: ='13'!$V$23 -> 1327.47 | I16: =IF(J16="","",COUNTA($D$4:J16)) -> 13 | J16: 2021-04-13 | K16: ='13'!$K$45 -> 532.7 | L16: ='13'!$W$45 -> 980 | M16: 2.814848883 | N16: ='13'!$V$45 -> 1499.47 | O16: =IF(P16="","",COUNTA($D$4:P16)) -> 13 | P16: 2021-04-13 | Q16: ='13'!$K$67 -> 442.7 | R16: ='13'!$W$67 -> 980 | S16: 3.454867856 | T16: ='13'!$V$67 -> 1529.47 | U16: =IF(V16="","",COUNTA($D$4:V16)) -> 13 | V16: 2021-04-13 | W16: ='13'!$L$72 -> 0 | X16: ='13'!$L$74 -> 0 | Z16: ='13'!$L$73 -> 0 | AA16: =IF(AB16="","",COUNTA($D$4:AB16)) -> 13 | AB16: 2021-04-13 | AC16: ='13'!$R$72 -> 0 | AD16: ='13'!$R$74 -> 0 | AF16: ='13'!$R$73 -> 0
C17: =IF(D17="","",COUNTA($D$4:D17)) -> 14 | D17: 2021-04-14 | E17: ='14'!$K$23 -> 941.7 | F17: ='14'!$W$23 -> 980 | G17: 1.409652756 | H17: ='14'!$V$23 -> 1327.47 | I17: =IF(J17="","",COUNTA($D$4:J17)) -> 14 | J17: 2021-04-14 | K17: ='14'!$K$45 -> 532.7 | L17: ='14'!$W$45 -> 980 | M17: 2.814848883 | N17: ='14'!$V$45 -> 1499.47 | O17: =IF(P17="","",COUNTA($D$4:P17)) -> 14 | P17: 2021-04-14 | Q17: ='14'!$K$67 -> 442.7 | R17: ='14'!$W$67 -> 980 | S17: 3.454867856 | T17: ='14'!$V$67 -> 1529.47 | U17: =IF(V17="","",COUNTA($D$4:V17)) -> 14 | V17: 2021-04-14 | W17: ='14'!$L$72 -> 0 | X17: ='14'!$L$74 -> 0 | Z17: ='14'!$L$73 -> 0 | AA17: =IF(AB17="","",COUNTA($D$4:AB17)) -> 14 | AB17: 2021-04-14 | AC17: ='14'!$R$72 -> 0 | AD17: ='14'!$R$74 -> 0 | AF17: ='14'!$R$73 -> 0
C18: =IF(D18="","",COUNTA($D$4:D18)) -> 15 | D18: 2021-04-15 | E18: ='15'!$K$23 -> 941.7 | F18: ='15'!$W$23 -> 980 | G18: 1.409652756 | H18: ='15'!$V$23 -> 1327.47 | I18: =IF(J18="","",COUNTA($D$4:J18)) -> 15 | J18: 2021-04-15 | K18: ='15'!$K$45 -> 532.7 | L18: ='15'!$W$45 -> 980 | M18: 2.814848883 | N18: ='15'!$V$45 -> 1499.47 | O18: =IF(P18="","",COUNTA($D$4:P18)) -> 15 | P18: 2021-04-15 | Q18: ='15'!$K$67 -> 442.7 | R18: ='15'!$W$67 -> 980 | S18: 3.454867856 | T18: ='15'!$V$67 -> 1529.47 | U18: =IF(V18="","",COUNTA($D$4:V18)) -> 15 | V18: 2021-04-15 | W18: ='15'!$L$72 -> 0 | X18: ='15'!$L$74 -> 0 | Z18: ='15'!$L$73 -> 0 | AA18: =IF(AB18="","",COUNTA($D$4:AB18)) -> 15 | AB18: 2021-04-15 | AC18: ='15'!$R$72 -> 0 | AD18: ='15'!$R$74 -> 0 | AF18: ='15'!$R$73 -> 0
C19: =IF(D19="","",COUNTA($D$4:D19)) -> 16 | D19: 2021-04-16 | E19: ='16'!$K$23 -> 941.7 | F19: ='16'!$W$23 -> 980 | G19: 1.409652756 | H19: ='16'!$V$23 -> 1327.47 | I19: =IF(J19="","",COUNTA($D$4:J19)) -> 16 | J19: 2021-04-16 | K19: ='16'!$K$45 -> 532.7 | L19: ='16'!$W$45 -> 980 | M19: 2.814848883 | N19: ='16'!$V$45 -> 1499.47 | O19: =IF(P19="","",COUNTA($D$4:P19)) -> 16 | P19: 2021-04-16 | Q19: ='16'!$K$67 -> 442.7 | R19: ='16'!$W$67 -> 980 | S19: 3.454867856 | T19: ='16'!$V$67 -> 1529.47 | U19: =IF(V19="","",COUNTA($D$4:V19)) -> 16 | V19: 2021-04-16 | W19: ='16'!$L$72 -> 0 | X19: ='16'!$L$74 -> 0 | Z19: ='16'!$L$73 -> 0 | AA19: =IF(AB19="","",COUNTA($D$4:AB19)) -> 16 | AB19: 2021-04-16 | AC19: ='16'!$R$72 -> 0 | AD19: ='16'!$R$74 -> 0 | AF19: ='16'!$R$73 -> 0
C20: =IF(D20="","",COUNTA($D$4:D20)) -> 17 | D20: 2021-04-17 | E20: ='17'!$K$23 -> 941.7 | F20: ='17'!$W$23 -> 980 | G20: 1.409652756 | H20: ='17'!$V$23 -> 1327.47 | I20: =IF(J20="","",COUNTA($D$4:J20)) -> 17 | J20: 2021-04-17 | K20: ='17'!$K$45 -> 532.7 | L20: ='17'!$W$45 -> 980 | M20: 2.814848883 | N20: ='17'!$V$45 -> 1499.47 | O20: =IF(P20="","",COUNTA($D$4:P20)) -> 17 | P20: 2021-04-17 | Q20: ='17'!$K$67 -> 442.7 | R20: ='17'!$W$67 -> 980 | S20: 3.454867856 | T20: ='17'!$V$67 -> 1529.47 | U20: =IF(V20="","",COUNTA($D$4:V20)) -> 17 | V20: 2021-04-17 | W20: ='17'!$L$72 -> 0 | X20: ='17'!$L$74 -> 0 | Z20: ='17'!$L$73 -> 0 | AA20: =IF(AB20="","",COUNTA($D$4:AB20)) -> 17 | AB20: 2021-04-17 | AC20: ='17'!$R$72 -> 0 | AD20: ='17'!$R$74 -> 0 | AF20: ='17'!$R$73 -> 0
C21: =IF(D21="","",COUNTA($D$4:D21)) -> 18 | D21: 2021-04-18 | E21: ='18'!$K$23 -> 941.7 | F21: ='18'!$W$23 -> 980 | G21: 1.409652756 | H21: ='18'!$V$23 -> 1327.47 | I21: =IF(J21="","",COUNTA($D$4:J21)) -> 18 | J21: 2021-04-18 | K21: ='18'!$K$45 -> 532.7 | L21: ='18'!$W$45 -> 980 | M21: 2.814848883 | N21: ='18'!$V$45 -> 1499.47 | O21: =IF(P21="","",COUNTA($D$4:P21)) -> 18 | P21: 2021-04-18 | Q21: ='18'!$K$67 -> 442.7 | R21: ='18'!$W$67 -> 980 | S21: 3.454867856 | T21: ='18'!$V$67 -> 1529.47 | U21: =IF(V21="","",COUNTA($D$4:V21)) -> 18 | V21: 2021-04-18 | W21: ='18'!$L$72 -> 0 | X21: ='18'!$L$74 -> 0 | Z21: ='18'!$L$73 -> 0 | AA21: =IF(AB21="","",COUNTA($D$4:AB21)) -> 18 | AB21: 2021-04-18 | AC21: ='18'!$R$72 -> 0 | AD21: ='18'!$R$74 -> 0 | AF21: ='18'!$R$73 -> 0
C22: =IF(D22="","",COUNTA($D$4:D22)) -> 19 | D22: 2021-04-19 | E22: ='19'!$K$23 -> 941.7 | F22: ='19'!$W$23 -> 980 | G22: 1.409652756 | H22: ='19'!$V$23 -> 1327.47 | I22: =IF(J22="","",COUNTA($D$4:J22)) -> 19 | J22: 2021-04-19 | K22: ='19'!$K$45 -> 532.7 | L22: ='19'!$W$45 -> 980 | M22: 2.814848883 | N22: ='19'!$V$45 -> 1499.47 | O22: =IF(P22="","",COUNTA($D$4:P22)) -> 19 | P22: 2021-04-19 | Q22: ='19'!$K$67 -> 442.7 | R22: ='19'!$W$67 -> 980 | S22: 3.454867856 | T22: ='19'!$V$67 -> 1529.47 | U22: =IF(V22="","",COUNTA($D$4:V22)) -> 19 | V22: 2021-04-19 | W22: ='19'!$L$72 -> 0 | X22: ='19'!$L$74 -> 0 | Z22: ='19'!$L$73 -> 0 | AA22: =IF(AB22="","",COUNTA($D$4:AB22)) -> 19 | AB22: 2021-04-19 | AC22: ='19'!$R$72 -> 0 | AD22: ='19'!$R$74 -> 0 | AF22: ='19'!$R$73 -> 0
C23: =IF(D23="","",COUNTA($D$4:D23)) -> 20 | D23: 2021-04-20 | E23: ='20'!$K$23 -> 941.7 | F23: ='20'!$W$23 -> 980 | G23: 1.409652756 | H23: ='20'!$V$23 -> 1327.47 | I23: =IF(J23="","",COUNTA($D$4:J23)) -> 20 | J23: 2021-04-20 | K23: ='20'!$K$45 -> 532.7 | L23: ='20'!$W$45 -> 980 | M23: 2.814848883 | N23: ='20'!$V$45 -> 1499.47 | O23: =IF(P23="","",COUNTA($D$4:P23)) -> 20 | P23: 2021-04-20 | Q23: ='20'!$K$67 -> 442.7 | R23: ='20'!$W$67 -> 980 | S23: 3.454867856 | T23: ='20'!$V$67 -> 1529.47 | U23: =IF(V23="","",COUNTA($D$4:V23)) -> 20 | V23: 2021-04-20 | W23: ='20'!$L$72 -> 0 | X23: ='20'!$L$74 -> 0 | Z23: ='20'!$L$73 -> 0 | AA23: =IF(AB23="","",COUNTA($D$4:AB23)) -> 20 | AB23: 2021-04-20 | AC23: ='20'!$R$72 -> 0 | AD23: ='20'!$R$74 -> 0 | AF23: ='20'!$R$73 -> 0
C24: =IF(D24="","",COUNTA($D$4:D24)) -> 21 | D24: 2021-04-21 | E24: ='21'!$K$23 -> 941.7 | F24: ='21'!$W$23 -> 980 | G24: 1.409652756 | H24: ='21'!$V$23 -> 1327.47 | I24: =IF(J24="","",COUNTA($D$4:J24)) -> 21 | J24: 2021-04-21 | K24: ='21'!$K$45 -> 532.7 | L24: ='21'!$W$45 -> 980 | M24: 2.814848883 | N24: ='21'!$V$45 -> 1499.47 | O24: =IF(P24="","",COUNTA($D$4:P24)) -> 21 | P24: 2021-04-21 | Q24: ='21'!$K$67 -> 442.7 | R24: ='21'!$W$67 -> 980 | S24: 3.454867856 | T24: ='21'!$V$67 -> 1529.47 | U24: =IF(V24="","",COUNTA($D$4:V24)) -> 21 | V24: 2021-04-21 | W24: ='21'!$L$72 -> 0 | X24: ='21'!$L$74 -> 0 | Z24: ='21'!$L$73 -> 0 | AA24: =IF(AB24="","",COUNTA($D$4:AB24)) -> 21 | AB24: 2021-04-21 | AC24: ='21'!$R$72 -> 0 | AD24: ='21'!$R$74 -> 0 | AF24: ='21'!$R$73 -> 0
C25: =IF(D25="","",COUNTA($D$4:D25)) -> 22 | D25: 2021-04-22 | E25: ='22'!$K$23 -> 941.7 | F25: ='22'!$W$23 -> 980 | G25: 1.409652756 | H25: ='22'!$V$23 -> 1327.47 | I25: =IF(J25="","",COUNTA($D$4:J25)) -> 22 | J25: 2021-04-22 | K25: ='22'!$K$45 -> 532.7 | L25: ='22'!$W$45 -> 980 | M25: 2.814848883 | N25: ='22'!$V$45 -> 1499.47 | O25: =IF(P25="","",COUNTA($D$4:P25)) -> 22 | P25: 2021-04-22 | Q25: ='22'!$K$67 -> 442.7 | R25: ='22'!$W$67 -> 980 | S25: 3.454867856 | T25: ='22'!$V$67 -> 1529.47 | U25: =IF(V25="","",COUNTA($D$4:V25)) -> 22 | V25: 2021-04-22 | W25: ='22'!$L$72 -> 0 | X25: ='22'!$L$74 -> 0 | Z25: ='22'!$L$73 -> 0 | AA25: =IF(AB25="","",COUNTA($D$4:AB25)) -> 22 | AB25: 2021-04-22 | AC25: ='22'!$R$72 -> 0 | AD25: ='22'!$R$74 -> 0 | AF25: ='22'!$R$73 -> 0
C26: =IF(D26="","",COUNTA($D$4:D26)) -> 23 | D26: 2021-04-23 | E26: ='23'!$K$23 -> 941.7 | F26: ='23'!$W$23 -> 980 | G26: 1.409652756 | H26: ='23'!$V$23 -> 1327.47 | I26: =IF(J26="","",COUNTA($D$4:J26)) -> 23 | J26: 2021-04-23 | K26: ='23'!$K$45 -> 532.7 | L26: ='23'!$W$45 -> 980 | M26: 2.814848883 | N26: ='23'!$V$45 -> 1499.47 | O26: =IF(P26="","",COUNTA($D$4:P26)) -> 23 | P26: 2021-04-23 | Q26: ='23'!$K$67 -> 442.7 | R26: ='23'!$W$67 -> 980 | S26: 3.454867856 | T26: ='23'!$V$67 -> 1529.47 | U26: =IF(V26="","",COUNTA($D$4:V26)) -> 23 | V26: 2021-04-23 | W26: ='23'!$L$72 -> 0 | X26: ='23'!$L$74 -> 0 | Z26: ='23'!$L$73 -> 0 | AA26: =IF(AB26="","",COUNTA($D$4:AB26)) -> 23 | AB26: 2021-04-23 | AC26: ='23'!$R$72 -> 0 | AD26: ='23'!$R$74 -> 0 | AF26: ='23'!$R$73 -> 0
C27: =IF(D27="","",COUNTA($D$4:D27)) -> 24 | D27: 2021-04-24 | E27: ='24'!$K$23 -> 941.7 | F27: ='24'!$W$23 -> 980 | G27: 1.409652756 | H27: ='24'!$V$23 -> 1327.47 | I27: =IF(J27="","",COUNTA($D$4:J27)) -> 24 | J27: 2021-04-24 | K27: ='24'!$K$45 -> 532.7 | L27: ='24'!$W$45 -> 980 | M27: 2.814848883 | N27: ='24'!$V$45 -> 1499.47 | O27: =IF(P27="","",COUNTA($D$4:P27)) -> 24 | P27: 2021-04-24 | Q27: ='24'!$K$67 -> 442.7 | R27: ='24'!$W$67 -> 980 | S27: 3.454867856 | T27: ='24'!$V$67 -> 1529.47 | U27: =IF(V27="","",COUNTA($D$4:V27)) -> 24 | V27: 2021-04-24 | W27: ='24'!$L$72 -> 0 | X27: ='24'!$L$74 -> 0 | Z27: ='24'!$L$73 -> 0 | AA27: =IF(AB27="","",COUNTA($D$4:AB27)) -> 24 | AB27: 2021-04-24 | AC27: ='24'!$R$72 -> 0 | AD27: ='24'!$R$74 -> 0 | AF27: ='24'!$R$73 -> 0
C28: =IF(D28="","",COUNTA($D$4:D28)) -> 25 | D28: 2021-04-25 | E28: ='25'!$K$23 -> 941.7 | F28: ='25'!$W$23 -> 980 | G28: 1.409652756 | H28: ='25'!$V$23 -> 1327.47 | I28: =IF(J28="","",COUNTA($D$4:J28)) -> 25 | J28: 2021-04-25 | K28: ='25'!$K$45 -> 532.7 | L28: ='25'!$W$45 -> 980 | M28: 2.814848883 | N28: ='25'!$V$45 -> 1499.47 | O28: =IF(P28="","",COUNTA($D$4:P28)) -> 25 | P28: 2021-04-25 | Q28: ='25'!$K$67 -> 442.7 | R28: ='25'!$W$67 -> 980 | S28: 3.454867856 | T28: ='25'!$V$67 -> 1529.47 | U28: =IF(V28="","",COUNTA($D$4:V28)) -> 25 | V28: 2021-04-25 | W28: ='25'!$L$72 -> 0 | X28: ='25'!$L$74 -> 0 | Z28: ='25'!$L$73 -> 0 | AA28: =IF(AB28="","",COUNTA($D$4:AB28)) -> 25 | AB28: 2021-04-25 | AC28: ='25'!$R$72 -> 0 | AD28: ='25'!$R$74 -> 0 | AF28: ='25'!$R$73 -> 0
C29: =IF(D29="","",COUNTA($D$4:D29)) -> 26 | D29: 2021-04-26 | E29: ='26'!$K$23 -> 941.7 | F29: ='26'!$W$23 -> 980 | G29: 1.409652756 | H29: ='26'!$V$23 -> 1327.47 | I29: =IF(J29="","",COUNTA($D$4:J29)) -> 26 | J29: 2021-04-26 | K29: ='26'!$K$45 -> 532.7 | L29: ='26'!$W$45 -> 980 | M29: 2.814848883 | N29: ='26'!$V$45 -> 1499.47 | O29: =IF(P29="","",COUNTA($D$4:P29)) -> 26 | P29: 2021-04-26 | Q29: ='26'!$K$67 -> 442.7 | R29: ='26'!$W$67 -> 980 | S29: 3.454867856 | T29: ='26'!$V$67 -> 1529.47 | U29: =IF(V29="","",COUNTA($D$4:V29)) -> 26 | V29: 2021-04-26 | W29: ='26'!$L$72 -> 0 | X29: ='26'!$L$74 -> 0 | Z29: ='26'!$L$73 -> 0 | AA29: =IF(AB29="","",COUNTA($D$4:AB29)) -> 26 | AB29: 2021-04-26 | AC29: ='26'!$R$72 -> 0 | AD29: ='26'!$R$74 -> 0 | AF29: ='26'!$R$73 -> 0
C30: =IF(D30="","",COUNTA($D$4:D30)) -> 27 | D30: 2021-04-27 | E30: ='27'!$K$23 -> 941.7 | F30: ='27'!$W$23 -> 980 | G30: 1.409652756 | H30: ='27'!$V$23 -> 1327.47 | I30: =IF(J30="","",COUNTA($D$4:J30)) -> 27 | J30: 2021-04-27 | K30: ='27'!$K$45 -> 532.7 | L30: ='27'!$W$45 -> 980 | M30: 2.814848883 | N30: ='27'!$V$45 -> 1499.47 | O30: =IF(P30="","",COUNTA($D$4:P30)) -> 27 | P30: 2021-04-27 | Q30: ='27'!$K$67 -> 442.7 | R30: ='27'!$W$67 -> 980 | S30: 3.454867856 | T30: ='27'!$V$67 -> 1529.47 | U30: =IF(V30="","",COUNTA($D$4:V30)) -> 27 | V30: 2021-04-27 | W30: ='27'!$L$72 -> 0 | X30: ='27'!$L$74 -> 0 | Z30: ='27'!$L$73 -> 0 | AA30: =IF(AB30="","",COUNTA($D$4:AB30)) -> 27 | AB30: 2021-04-27 | AC30: ='27'!$R$72 -> 0 | AD30: ='27'!$R$74 -> 0 | AF30: ='27'!$R$73 -> 0
C31: =IF(D31="","",COUNTA($D$4:D31)) -> 28 | D31: 2021-04-28 | E31: ='28'!$K$23 -> 941.7 | F31: ='28'!$W$23 -> 980 | G31: 1.409652756 | H31: ='28'!$V$23 -> 1327.47 | I31: =IF(J31="","",COUNTA($D$4:J31)) -> 28 | J31: 2021-04-28 | K31: ='28'!$K$45 -> 532.7 | L31: ='28'!$W$45 -> 980 | M31: 2.814848883 | N31: ='28'!$V$45 -> 1499.47 | O31: =IF(P31="","",COUNTA($D$4:P31)) -> 28 | P31: 2021-04-28 | Q31: ='28'!$K$67 -> 442.7 | R31: ='28'!$W$67 -> 980 | S31: 3.454867856 | T31: ='28'!$V$67 -> 1529.47 | U31: =IF(V31="","",COUNTA($D$4:V31)) -> 28 | V31: 2021-04-28 | W31: ='28'!$L$72 -> 0 | X31: ='28'!$L$74 -> 0 | Z31: ='28'!$L$73 -> 0 | AA31: =IF(AB31="","",COUNTA($D$4:AB31)) -> 28 | AB31: 2021-04-28 | AC31: ='28'!$R$72 -> 0 | AD31: ='28'!$R$74 -> 0 | AF31: ='28'!$R$73 -> 0
C32: =IF(D32="","",COUNTA($D$4:D32)) -> 29 | D32: 2021-04-29 | E32: ='29'!$K$23 -> 941.7 | F32: ='29'!$W$23 -> 980 | G32: 1.409652756 | H32: ='29'!$V$23 -> 1327.47 | I32: =IF(J32="","",COUNTA($D$4:J32)) -> 29 | J32: 2021-04-29 | K32: ='29'!$K$45 -> 532.7 | L32: ='29'!$W$45 -> 980 | M32: 2.814848883 | N32: ='29'!$V$45 -> 1499.47 | O32: =IF(P32="","",COUNTA($D$4:P32)) -> 29 | P32: 2021-04-29 | Q32: ='29'!$K$67 -> 442.7 | R32: ='29'!$W$67 -> 980 | S32: 3.454867856 | T32: ='29'!$V$67 -> 1529.47 | U32: =IF(V32="","",COUNTA($D$4:V32)) -> 29 | V32: 2021-04-29 | W32: ='29'!$L$72 -> 0 | X32: ='29'!$L$74 -> 0 | Z32: ='29'!$L$73 -> 0 | AA32: =IF(AB32="","",COUNTA($D$4:AB32)) -> 29 | AB32: 2021-04-29 | AC32: ='29'!$R$72 -> 0 | AD32: ='29'!$R$74 -> 0 | AF32: ='29'!$R$73 -> 0
C33: =IF(D33="","",COUNTA($D$4:D33)) -> 30 | D33: 2021-04-30 | E33: ='30'!$K$23 -> 941.7 | F33: ='30'!$W$23 -> 980 | G33: 1.409652756 | H33: ='30'!$V$23 -> 1327.47 | I33: =IF(J33="","",COUNTA($D$4:J33)) -> 30 | J33: 2021-04-30 | K33: ='30'!$K$45 -> 532.7 | L33: ='30'!$W$45 -> 980 | M33: 2.814848883 | N33: ='30'!$V$45 -> 1499.47 | O33: =IF(P33="","",COUNTA($D$4:P33)) -> 30 | P33: 2021-04-30 | Q33: ='30'!$K$67 -> 442.7 | R33: ='30'!$W$67 -> 980 | S33: 3.454867856 | T33: ='30'!$V$67 -> 1529.47 | U33: =IF(V33="","",COUNTA($D$4:V33)) -> 30 | V33: 2021-04-30 | W33: ='30'!$L$72 -> 0 | X33: ='30'!$L$74 -> 0 | Z33: ='30'!$L$73 -> 0 | AA33: =IF(AB33="","",COUNTA($D$4:AB33)) -> 30 | AB33: 2021-04-30 | AC33: ='30'!$R$72 -> 0 | AD33: ='30'!$R$74 -> 0 | AF33: ='30'!$R$73 -> 0
C34: =IF(D34="","",COUNTA($D$4:D34)) -> 31 | D34: 2021-05-01 | E34: ='31'!$K$23 -> 941.7 | F34: ='31'!$W$23 -> 980 | G34: 1.409652756 | H34: ='31'!$V$23 -> 1327.47 | I34: =IF(J34="","",COUNTA($D$4:J34)) -> 31 | J34: 2021-05-01 | K34: ='31'!$K$45 -> 532.7 | L34: ='31'!$W$45 -> 980 | M34: 2.814848883 | N34: ='31'!$V$45 -> 1499.47 | O34: =IF(P34="","",COUNTA($D$4:P34)) -> 31 | P34: 2021-05-01 | Q34: ='31'!$K$67 -> 442.7 | R34: ='31'!$W$67 -> 980 | S34: 3.454867856 | T34: ='31'!$V$67 -> 1529.47 | U34: =IF(V34="","",COUNTA($D$4:V34)) -> 31 | V34: 2021-05-01 | W34: ='31'!$L$72 -> 0 | X34: ='31'!$L$74 -> 0 | Z34: ='31'!$L$73 -> 0 | AA34: =IF(AB34="","",COUNTA($D$4:AB34)) -> 31 | AB34: 2021-05-01 | AC34: ='31'!$R$72 -> 0 | AD34: ='31'!$R$74 -> 0 | AF34: ='31'!$R$73 -> 0

Sheet 1
J3: الاسم | K3: المصريين
J4: التاريخ | K4: 2021-04-01 | W4: اليوم | X4: =K4 -> 2021-04-01
J6: قبل التسحيب | L6: مسحب مع خملة | N6: مسحب احمر | P6: مسحب سوبر | R6: مسحب صحن | T6: مسحب كامل مجمد | V6: صافي | W6: العدد | X6: النسبة
J7: عدد | K7: الصافي | L7: عدد | M7: الصافي | N7: عدد | O7: الصافي | P7: عدد | Q7: الصافي | R7: عدد | S7: الصافي | T7: عدد | U7: الصافي | V7: الكمية
J8: 12 | K8: 450 | L8: 40 | M8: 485 | N8: 30 | O8: 225 | P8: 10 | Q8: 45 | R8: 10 | S8: 100 | T8: 12 | U8: 350
J23: =SUM(J8:J22) -> 12 | K23: =SUM(K8:K22)-(J23*0.9) -> 439.2 | L23: =SUM(L8:L22) -> 40 | M23: =SUM(M8:M22)-(L23*0.9) -> 449 | N23: =SUM(N8:N22) -> 30 | O23: =SUM(O8:O22)-(N23*0.9) -> 198 | P23: =SUM(P8:P22) -> 10 | Q23: =SUM(Q8:Q22)-(P23*0.9) -> 36 | R23: =SUM(R8:R22) -> 10 | S23: =SUM(S8:S22)-(R23*0.9) -> 91 | T23: =SUM(T8:T22) -> 12 | U23: =SUM(U8:U22)-(T23*1.07) -> 337.16 | V23: =SUM(M23+O23+Q23+S23+U23) -> 1111.16 | W23: =SUM(L23+N23+P23+R23)*10 -> 900 | X23: =V23/K23 -> 2.52996357
J25: الاسم | K25: مزيد
J26: التاريخ | K26: 2021-04-01 | W26: اليوم | X26: =K26 -> 2021-04-01
J28: قبل التسحيب | L28: مسحب مع خملة | N28: مسحب احمر | P28: مسحب سوبر | R28: مسحب صحن | T28: مسحب كامل مجمد | V28: صافي | W28: العدد | X28: النسبة
J29: عدد | K29: الصافي | L29: عدد | M29: الصافي | N29: عدد | O29: الصافي | P29: عدد | Q29: الصافي | R29: عدد | S29: الصافي | T29: عدد | U29: الصافي | V29: الكمية
J30: 15 | K30: 800 | L30: 20 | M30: 455 | N30: 12 | O30: 225 | P30: 18 | Q30: 180 | R30: 15 | S30: 454 | T30: 40 | U30: 225
J45: =SUM(J30:J44) -> 15 | K45: =SUM(K30:K44)-(J45*0.9) -> 786.5 | L45: =SUM(L30:L44) -> 20 | M45: =SUM(M30:M44)-(L45*0.9) -> 437 | N45: =SUM(N30:N44) -> 12 | O45: =SUM(O30:O44)-(N45*0.9) -> 214.2 | P45: =SUM(P30:P44) -> 18 | Q45: =SUM(Q30:Q44)-(P45*0.9) -> 163.8 | R45: =SUM(R30:R44) -> 15 | S45: =SUM(S30:S44)-(R45*0.9) -> 440.5 | T45: =SUM(T30:T44) -> 40 | U45: =SUM(U30:U44)-(T45*1.07) -> 182.2 | V45: =SUM(M45+O45+Q45+S45+U45) -> 1437.7 | W45: =SUM(L45+N45+P45+R45)*10 -> 650 | X45: =V45/K45 -> 1.827972028
J47: الاسم | K47: الشمري
J48: التاريخ | K48: 2021-04-01 | W48: اليوم | X48: =K48 -> 2021-04-01
J50: قبل التسحيب | L50: مسحب مع خملة | N50: مسحب احمر | P50: مسحب سوبر | R50: مسحب صحن | T50: مسحب كامل مجمد | V50: صافي | W50: العدد | X50: النسبة
J51: عدد | K51: الصافي | L51: عدد | M51: الصافي | N51: عدد | O51: الصافي | P51: عدد | Q51: الصافي | R51: عدد | S51: الصافي | T51: عدد | U51: الصافي | V51: الكمية
J52: 85 | K52: 593 | L52: 20 | M52: 335 | N52: 45 | O52: 225 | P52: 85 | Q52: 448 | R52: 52 | S52: 420 | T52: 9 | U52: 20
J67: =SUM(J52:J66) -> 85 | K67: =SUM(K52:K66)-(J67*0.9) -> 516.5 | L67: =SUM(L52:L66) -> 20 | M67: =SUM(M52:M66)-(L67*0.9) -> 317 | N67: =SUM(N52:N66) -> 45 | O67: =SUM(O52:O66)-(N67*0.9) -> 184.5 | P67: =SUM(P52:P66) -> 85 | Q67: =SUM(Q52:Q66)-(P67*0.9) -> 371.5 | R67: =SUM(R52:R66) -> 52 | S67: =SUM(S52:S66)-(R67*0.9) -> 373.2 | T67: =SUM(T52:T66) -> 9 | U67: =SUM(U52:U66)-(T67*1.07) -> 10.37 | V67: =SUM(M67+O67+Q67+S67+U67) -> 1256.57 | W67: =SUM(L67+N67+P67+R67)*10 -> 2020 | X67: =V67/K67 -> 2.43285576
J70: الاسم | L70: ابراهيم | P70: الاسم | R70: السوريين
J71: التاريخ | L71: =K4 -> 2021-04-01 | P71: التاريخ | R71: =K4 -> 2021-04-01
J72: قبل التسحيب | L72: 550 | P72: قبل التسحيب | R72: 500
J73: صافي الكمية | L73: 350 | P73: صافي الكمية | R73: 650
J74: عدد الصدر | L74: 450 | P74: عدد الصدر | R74: 554
J75: النسبة | L75: =L73/L72 -> 0.6363636364 | P75: النسبة | R75: =R73/R72 -> 1.3

Sheet 2
J3: الاسم | K3: المصريين
J4: التاريخ | K4: ='1'!K4+1 -> 2021-04-02 | W4: اليوم | X4: =K4 -> 2021-04-02
J6: قبل التسحيب | L6: مسحب مع خملة | N6: مسحب احمر | P6: مسحب سوبر | R6: مسحب صحن | T6: مسحب كامل مجمد | V6: صافي | W6: العدد | X6: النسبة
J7: عدد | K7: الصافي | L7: عدد | M7: الصافي | N7: عدد | O7: الصافي | P7: عدد | Q7: الصافي | R7: عدد | S7: الصافي | T7: عدد | U7: الصافي | V7: الكمية
J8: 15 | K8: 350 | L8: 45 | M8: 850 | N8: 35 | O8: 320 | P8: 15 | Q8: 415 | R8: 25 | S8: 158 | T8: 17 | U8: 382
J23: =SUM(J8:J22) -> 15 | K23: =SUM(K8:K22)-(J23*0.9) -> 336.5 | L23: =SUM(L8:L22) -> 45 | M23: =SUM(M8:M22)-(L23*0.9) -> 809.5 | N23: =SUM(N8:N22) -> 35 | O23: =SUM(O8:O22)-(N23*0.9) -> 288.5 | P23: =SUM(P8:P22) -> 15 | Q23: =SUM(Q8:Q22)-(P23*0.9) -> 401.5 | R23: =SUM(R8:R22) -> 25 | S23: =SUM(S8:S22)-(R23*0.9) -> 135.5 | T23: =SUM(T8:T22) -> 17 | U23: =SUM(U8:U22)-(T23*1.07) -> 363.81 | V23: =SUM(M23+O23+Q23+S23+U23) -> 1998.81 | W23: =SUM(L23+N23+P23+R23)*10 -> 1200 | X23: =V23/K23 -> 5.94
J25: الاسم | K25: مزيد
J26: التاريخ | K26: ='1'!K26+1 -> 2021-04-02 | W26: اليوم | X26: =K26 -> 2021-04-02
J28: قبل التسحيب | L28: مسحب مع خملة | N28: مسحب احمر | P28: مسحب سوبر | R28: مسحب صحن | T28: مسحب كامل مجمد | V28: صافي | W28: العدد | X28: النسبة
J29: عدد | K29: الصافي | L29: عدد | M29: الصافي | N29: عدد | O29: الصافي | P29: عدد | Q29: الصافي | R29: عدد | S29: الصافي | T29: عدد | U29: الصافي | V29: الكمية
J30: 15 | K30: 800 | L30: 45 | M30: 300 | N30: 35 | O30: 520 | P30: 15 | Q30: 480 | R30: 25 | S30: 159 | T30: 17 | U30: 658
J45: =SUM(J30:J44) -> 15 | K45: =SUM(K30:K44)-(J45*0.9) -> 786.5 | L45: =SUM(L30:L44) -> 45 | M45: =SUM(M30:M44)-(L45*0.9) -> 259.5 | N45: =SUM(N30:N44) -> 35 | O45: =SUM(O30:O44)-(N45*0.9) -> 488.5 | P45: =SUM(P30:P44) -> 15 | Q45: =SUM(Q30:Q44)-(P45*0.9) -> 466.5 | R45: =SUM(R30:R44) -> 25 | S45: =SUM(S30:S44)-(R45*0.9) -> 136.5 | T45: =SUM(T30:T44) -> 17 | U45: =SUM(U30:U44)-(T45*1.07) -> 639.81 | V45: =SUM(M45+O45+Q45+S45+U45) -> 1990.81 | W45: =SUM(L45+N45+P45+R45)*10 -> 1200 | X45: =V45/K45 -> 2.531226955
J47: الاسم | K47: الشمري
J48: التاريخ | K48: ='1'!K48+1 -> 2021-04-02 | W48: اليوم | X48: =K48 -> 2021-04-02
J50: قبل التسحيب | L50: مسحب مع خملة | N50: مسحب احمر | P50: مسحب سوبر | R50: مسحب صحن | T50: مسحب كامل مجمد | V50: صافي | W50: العدد | X50: النسبة
J51: عدد | K51: الصافي | L51: عدد | M51: الصافي | N51: عدد | O51: الصافي | P51: عدد | Q51: الصافي | R51: عدد | S51: الصافي | T51: عدد | U51: الصافي | V51: الكمية
J52: 15 | K52: 900 | L52: 45 | M52: 580 | N52: 35 | O52: 590 | P52: 15 | Q52: 65 | R52: 25 | S52: 58 | T52: 17 | U52: 258
J67: =SUM(J52:J66) -> 15 | K67: =SUM(K52:K66)-(J67*0.9) -> 886.5 | L67: =SUM(L52:L66) -> 45 | M67: =SUM(M52:M66)-(L67*0.9) -> 539.5 | N67: =SUM(N52:N66) -> 35 | O67: =SUM(O52:O66)-(N67*0.9) -> 558.5 | P67: =SUM(P52:P66) -> 15 | Q67: =SUM(Q52:Q66)-(P67*0.9) -> 51.5 | R67: =SUM(R52:R66) -> 25 | S67: =SUM(S52:S66)-(R67*0.9) -> 35.5 | T67: =SUM(T52:T66) -> 17 | U67: =SUM(U52:U66)-(T67*1.07) -> 239.81 | V67: =SUM(M67+O67+Q67+S67+U67) -> 1424.81 | W67: =SUM(L67+N67+P67+R67)*10 -> 1200 | X67: =V67/K67 -> 1.607230682
J70: الاسم | L70: ابراهيم | P70: الاسم | R70: السوريين
J71: التاريخ | L71: =K4 -> 2021-04-02 | P71: التاريخ | R71: =K4 -> 2021-04-02
J72: قبل التسحيب | P72: قبل التسحيب
J73: صافي الكمية | P73: صافي الكمية
J74: عدد الصدر | P74: عدد الصدر
J75: النسبة | L75: =L73/L72 ->  | P75: النسبة | R75: =R73/R72 -> 

Sheet 3
J3: الاسم | K3: المصريين
J4: التاريخ | K4: ='2'!K4+1 -> 2021-04-03 | W4: اليوم | X4: =K4 -> 2021-04-03
J6: قبل التسحيب | L6: مسحب مع خملة | N6: مسحب احمر | P6: مسحب سوبر | R6: مسحب صحن | T6: مسحب كامل مجمد | V6: صافي | W6: العدد | X6: النسبة
J7: عدد | K7: الصافي | L7: عدد | M7: الصافي | N7: عدد | O7: الصافي | P7: عدد | Q7: الصافي | R7: عدد | S7: الصافي | T7: عدد | U7: الصافي | V7: الكمية
J8: 15 | K8: 900 | L8: 30 | M8: 750 | N8: 20 | O8: 158 | P8: 15 | Q8: 245 | R8: 15 | S8: 350 | T8: 17 | U8: 170
J23: =SUM(J8:J22) -> 15 | K23: =SUM(K8:K22)-(J23*0.9) -> 886.5 | L23: =SUM(L8:L22) -> 30 | M23: =SUM(M8:M22)-(L23*0.9) -> 723 | N23: =SUM(N8:N22) -> 20 | O23: =SUM(O8:O22)-(N23*0.9) -> 140 | P23: =SUM(P8:P22) -> 15 | Q23: =SUM(Q8:Q22)-(P23*0.9) -> 231.5 | R23: =SUM(R8:R22) -> 15 | S23: =SUM(S8:S22)-(R23*0.9) -> 336.5 | T23: =SUM(T8:T22) -> 17 | U23: =SUM(U8:U22)-(T23*1.07) -> 151.81 | V23: =SUM(M23+O23+Q23+S23+U23) -> 1582.81 | W23: =SUM(L23+N23+P23+R23)*10 -> 800 | X23: =V23/K23 -> 1.785459673
J25: الاسم | K25: مزيد
J26: التاريخ | K26: ='2'!K26+1 -> 2021-04-03 | W26: اليوم | X26: =K26 -> 2021-04-03
J28: قبل التسحيب | L28: مسحب مع خملة | N28: مسحب احمر | P28: مسحب سوبر | R28: مسحب صحن | T28: مسحب كامل مجمد | V28: صافي | W28: العدد | X28: النسبة
J29: عدد | K29: الصافي | L29: عدد | M29: الصافي | N29: عدد | O29: الصافي | P29: عدد | Q29: الصافي | R29: عدد | S29: الصافي | T29: عدد | U29: الصافي | V29: الكمية
J30: 15 | K30: 300 | L30: 30 | M30: 582 | N30: 20 | O30: 465 | P30: 15 | Q30: 589 | R30: 15 | S30: 58 | T30: 17 | U30: 587
J45: =SUM(J30:J44) -> 15 | K45: =SUM(K30:K44)-(J45*0.9) -> 286.5 | L45: =SUM(L30:L44) -> 30 | M45: =SUM(M30:M44)-(L45*0.9) -> 555 | N45: =SUM(N30:N44) -> 20 | O45: =SUM(O30:O44)-(N45*0.9) -> 447 | P45: =SUM(P30:P44) -> 15 | Q45: =SUM(Q30:Q44)-(P45*0.9) -> 575.5 | R45: =SUM(R30:R44) -> 15 | S45: =SUM(S30:S44)-(R45*0.9) -> 44.5 | T45: =SUM(T30:T44) -> 17 | U45: =SUM(U30:U44)-(T45*1.07) -> 568.81 | V45: =SUM(M45+O45+Q45+S45+U45) -> 2190.81 | W45: =SUM(L45+N45+P45+R45)*10 -> 800 | X45: =V45/K45 -> 7.646806283
J47: الاسم | K47: الشمري
J48: التاريخ | K48: ='2'!K48+1 -> 2021-04-03 | W48: اليوم | X48: =K48 -> 2021-04-03
J50: قبل التسحيب | L50: مسحب مع خملة | N50: مسحب احمر | P50: مسحب سوبر | R50: مسحب صحن | T50: مسحب كامل مجمد | V50: صافي | W50: العدد | X50: النسبة
J51: عدد | K51: الصافي | L51: عدد | M51: الصافي | N51: عدد | O51: الصافي | P51: عدد | Q51: الصافي | R51: عدد | S51: الصافي | T51: عدد | U51: الصافي | V51: الكمية
J52: 15 | K52: 630 | L52: 30 | M52: 458 | N52: 20 | O52: 544 | P52: 15 | Q52: 584 | R52: 15 | S52: 584 | T52: 17 | U52: 522
J67: =SUM(J52:J66) -> 15 | K67: =SUM(K52:K66)-(J67*0.9) -> 616.5 | L67: =SUM(L52:L66) -> 30 | M67: =SUM(M52:M66)-(L67*0.9) -> 431 | N67: =SUM(N52:N66) -> 20 | O67: =SUM(O52:O66)-(N67*0.9) -> 526 | P67: =SUM(P52:P66) -> 15 | Q67: =SUM(Q52:Q66)-(P67*0.9) -> 570.5 | R67: =SUM(R52:R66) -> 15 | S67: =SUM(S52:S66)-(R67*0.9) -> 570.5 | T67: =SUM(T52:T66) -> 17 | U67: =SUM(U52:U66)-(T67*1.07) -> 503.81 | V67: =SUM(M67+O67+Q67+S67+U67) -> 2601.81 | W67: =SUM(L67+N67+P67+R67)*10 -> 800 | X67: =V67/K67 -> 4.220291971
J70: الاسم | L70: ابراهيم | P70: الاسم | R70: السوريين
J71: التاريخ | L71: =K4 -> 2021-04-03 | P71: التاريخ | R71: =K4 -> 2021-04-03
J72: قبل التسحيب | P72: قبل التسحيب
J73: صافي الكمية | P73: صافي الكمية
J74: عدد الصدر | P74: عدد الصدر
J75: النسبة | L75: =L73/L72 ->  | P75: النسبة | R75: =R73/R72 -> 

Sheet 4
J3: الاسم | K3: المصريين
J4: التاريخ | K4: ='3'!K4+1 -> 2021-04-04 | W4: اليوم | X4: =K4 -> 2021-04-04
J6: قبل التسحيب | L6: مسحب مع خملة | N6: مسحب احمر | P6: مسحب سوبر | R6: مسحب صحن | T6: مسحب كامل مجمد | V6: صافي | W6: العدد | X6: النسبة
J7: عدد | K7: الصافي | L7: عدد | M7: الصافي | N7: عدد | O7: الصافي | P7: عدد | Q7: الصافي | R7: عدد | S7: الصافي | T7: عدد | U7: الصافي | V7: الكمية
J8: 17 | K8: 957 | L8: 50 | M8: 458 | N8: 25 | O8: 228 | P8: 12 | Q8: 278 | R8: 11 | S8: 114 | T8: 19 | U8: 358
J23: =SUM(J8:J22) -> 17 | K23: =SUM(K8:K22)-(J23*0.9) -> 941.7 | L23: =SUM(L8:L22) -> 50 | M23: =SUM(M8:M22)-(L23*0.9) -> 413 | N23: =SUM(N8:N22) -> 25 | O23: =SUM(O8:O22)-(N23*0.9) -> 205.5 | P23: =SUM(P8:P22) -> 12 | Q23: =SUM(Q8:Q22)-(P23*0.9) -> 267.2 | R23: =SUM(R8:R22) -> 11 | S23: =SUM(S8:S22)-(R23*0.9) -> 104.1 | T23: =SUM(T8:T22) -> 19 | U23: =SUM(U8:U22)-(T23*1.07) -> 337.67 | V23: =SUM(M23+O23+Q23+S23+U23) -> 1327.47 | W23: =SUM(L23+N23+P23+R23)*10 -> 980 | X23: =V23/K23 -> 1.409652756
J25: الاسم | K25: مزيد
J26: التاريخ | K26: ='3'!K26+1 -> 2021-04-04 | W26: اليوم | X26: =K26 -> 2021-04-04
J28: قبل التسحيب | L28: مسحب مع خملة | N28: مسحب احمر | P28: مسحب سوبر | R28: مسحب صحن | T28: مسحب كامل مجمد | V28: صافي | W28: العدد | X28: النسبة
J29: عدد | K29: الصافي | L29: عدد | M29: الصافي | N29: عدد | O29: الصافي | P29: عدد | Q29: الصافي | R29: عدد | S29: الصافي | T29: عدد | U29: الصافي | V29: الكمية
J30: 17 | K30: 548 | L30: 50 | M30: 457 | N30: 25 | O30: 255 | P30: 12 | Q30: 659 | R30: 11 | S30: 214 | T30: 19 | U30: 23
J45: =SUM(J30:J44) -> 17 | K45: =SUM(K30:K44)-(J45*0.9) -> 532.7 | L45: =SUM(L30:L44) -> 50 | M45: =SUM(M30:M44)-(L45*0.9) -> 412 | N45: =SUM(N30:N44) -> 25 | O45: =SUM(O30:O44)-(N45*0.9) -> 232.5 | P45: =SUM(P30:P44) -> 12 | Q45: =SUM(Q30:Q44)-(P45*0.9) -> 648.2 | R45: =SUM(R30:R44) -> 11 | S45: =SUM(S30:S44)-(R45*0.9) -> 204.1 | T45: =SUM(T30:T44) -> 19 | U45: =SUM(U30:U44)-(T45*1.07) -> 2.67 | V45: =SUM(M45+O45+Q45+S45+U45) -> 1499.47 | W45: =SUM(L45+N45+P45+R45)*10 -> 980 | X45: =V45/K45 -> 2.814848883
J47: الاسم | K47: الشمري
J48: التاريخ | K48: ='3'!K48+1 -> 2021-04-04 | W48: اليوم | X48: =K48 -> 2021-04-04
J50: قبل التسحيب | L50: مسحب مع خملة | N50: مسحب احمر | P50: مسحب سوبر | R50: مسحب صحن | T50: مسحب كامل مجمد | V50: صافي | W50: العدد | X50: النسبة
J51: عدد | K51: الصافي | L51: عدد | M51: الصافي | N51: عدد | O51: الصافي | P51: عدد | Q51: الصافي | R51: عدد | S51: الصافي | T51: عدد | U51: الصافي | V51: الكمية
J52: 17 | K52: 458 | L52: 50 | M52: 547 | N52: 25 | O52: 224 | P52: 12 | Q52: 48 | R52: 11 | S52: 554 | T52: 19 | U52: 265
J67: =SUM(J52:J66) -> 17 | K67: =SUM(K52:K66)-(J67*0.9) -> 442.7 | L67: =SUM(L52:L66) -> 50 | M67: =SUM(M52:M66)-(L67*0.9) -> 502 | N67: =SUM(N52:N66) -> 25 | O67: =SUM(O52:O66)-(N67*0.9) -> 201.5 | P67: =SUM(P52:P66) -> 12 | Q67: =SUM(Q52:Q66)-(P67*0.9) -> 37.2 | R67: =SUM(R52:R66) -> 11 | S67: =SUM(S52:S66)-(R67*0.9) -> 544.1 | T67: =SUM(T52:T66) -> 19 | U67: =SUM(U52:U66)-(T67*1.07) -> 244.67 | V67: =SUM(M67+O67+Q67+S67+U67) -> 1529.47 | W67: =SUM(L67+N67+P67+R67)*10 -> 980 | X67: =V67/K67 -> 3.454867856
J70: الاسم | L70: ابراهيم | P70: الاسم | R70: السوريين
J71: التاريخ | L71: =K4 -> 2021-04-04 | P71: التاريخ | R71: =K4 -> 2021-04-04
J72: قبل التسحيب | P72: قبل التسحيب
J73: صافي الكمية | P73: صافي الكمية
J74: عدد الصدر | P74: عدد الصدر
J75: النسبة | L75: =L73/L72 ->  | P75: النسبة | R75: =R73/R72 -> 

Sheet 5
J3: الاسم | K3: المصريين
J4: التاريخ | K4: ='4'!K4+1 -> 2021-04-05 | W4: اليوم | X4: =K4 -> 2021-04-05
J6: قبل التسحيب | L6: مسحب مع خملة | N6: مسحب احمر | P6: مسحب سوبر | R6: مسحب صحن | T6: مسحب كامل مجمد | V6: صافي | W6: العدد | X6: النسبة
J7: عدد | K7: الصافي | L7: عدد | M7: الصافي | N7: عدد | O7: الصافي | P7: عدد | Q7: الصافي | R7: عدد | S7: الصافي | T7: عدد | U7: الصافي | V7: الكمية
J8: 17 | K8: 957 | L8: 50 | M8: 458 | N8: 25 | O8: 228 | P8: 12 | Q8: 278 | R8: 11 | S8: 114 | T8: 19 | U8: 358
J23: =SUM(J8:J22) -> 17 | K23: =SUM(K8:K22)-(J23*0.9) -> 941.7 | L23: =SUM(L8:L22) -> 50 | M23: =SUM(M8:M22)-(L23*0.9) -> 413 | N23: =SUM(N8:N22) -> 25 | O23: =SUM(O8:O22)-(N23*0.9) -> 205.5 | P23: =SUM(P8:P22) -> 12 | Q23: =SUM(Q8:Q22)-(P23*0.9) -> 267.2 | R23: =SUM(R8:R22) -> 11 | S23: =SUM(S8:S22)-(R23*0.9) -> 104.1 | T23: =SUM(T8:T22) -> 19 | U23: =SUM(U8:U22)-(T23*1.07) -> 337.67 | V23: =SUM(M23+O23+Q23+S23+U23) -> 1327.47 | W23: =SUM(L23+N23+P23+R23)*10 -> 980 | X23: =V23/K23 -> 1.409652756
J25: الاسم | K25: مزيد
J26: التاريخ | K26: =K4 -> 2021-04-05 | W26: اليوم | X26: =K26 -> 2021-04-05
J28: قبل التسحيب | L28: مسحب مع خملة | N28: مسحب احمر | P28: مسحب سوبر | R28: مسحب صحن | T28: مسحب كامل مجمد | V28: صافي | W28: العدد | X28: النسبة
J29: عدد | K29: الصافي | L29: عدد | M29: الصافي | N29: عدد | O29: الصافي | P29: عدد | Q29: الصافي | R29: عدد | S29: الصافي | T29: عدد | U29: الصافي | V29: الكمية
J30: 17 | K30: 548 | L30: 50 | M30: 457 | N30: 25 | O30: 255 | P30: 12 | Q30: 659 | R30: 11 | S30: 214 | T30: 19 | U30: 23
J45: =SUM(J30:J44) -> 17 | K45: =SUM(K30:K44)-(J45*0.9) -> 532.7 | L45: =SUM(L30:L44) -> 50 | M45: =SUM(M30:M44)-(L45*0.9) -> 412 | N45: =SUM(N30:N44) -> 25 | O45: =SUM(O30:O44)-(N45*0.9) -> 232.5 | P45: =SUM(P30:P44) -> 12 | Q45: =SUM(Q30:Q44)-(P45*0.9) -> 648.2 | R45: =SUM(R30:R44) -> 11 | S45: =SUM(S30:S44)-(R45*0.9) -> 204.1 | T45: =SUM(T30:T44) -> 19 | U45: =SUM(U30:U44)-(T45*1.07) -> 2.67 | V45: =SUM(M45+O45+Q45+S45+U45) -> 1499.47 | W45: =SUM(L45+N45+P45+R45)*10 -> 980 | X45: =V45/K45 -> 2.814848883
J47: الاسم | K47: الشمري
J48: التاريخ | K48: =K4 -> 2021-04-05 | W48: اليوم | X48: =K48 -> 2021-04-05
J50: قبل التسحيب | L50: مسحب مع خملة | N50: مسحب احمر | P50: مسحب سوبر | R50: مسحب صحن | T50: مسحب كامل مجمد | V50: صافي | W50: العدد | X50: النسبة
J51: عدد | K51: الصافي | L51: عدد | M51: الصافي | N51: عدد | O51: الصافي | P51: عدد | Q51: الصافي | R51: عدد | S51: الصافي | T51: عدد | U51: الصافي | V51: الكمية
J52: 17 | K52: 458 | L52: 50 | M52: 547 | N52: 25 | O52: 224 | P52: 12 | Q52: 48 | R52: 11 | S52: 554 | T52: 19 | U52: 265
J67: =SUM(J52:J66) -> 17 | K67: =SUM(K52:K66)-(J67*0.9) -> 442.7 | L67: =SUM(L52:L66) -> 50 | M67: =SUM(M52:M66)-(L67*0.9) -> 502 | N67: =SUM(N52:N66) -> 25 | O67: =SUM(O52:O66)-(N67*0.9) -> 201.5 | P67: =SUM(P52:P66) -> 12 | Q67: =SUM(Q52:Q66)-(P67*0.9) -> 37.2 | R67: =SUM(R52:R66) -> 11 | S67: =SUM(S52:S66)-(R67*0.9) -> 544.1 | T67: =SUM(T52:T66) -> 19 | U67: =SUM(U52:U66)-(T67*1.07) -> 244.67 | V67: =SUM(M67+O67+Q67+S67+U67) -> 1529.47 | W67: =SUM(L67+N67+P67+R67)*10 -> 980 | X67: =V67/K67 -> 3.454867856
J70: الاسم | L70: ابراهيم | P70: الاسم | R70: السوريين
J71: التاريخ | L71: =K4 -> 2021-04-05 | P71: التاريخ | R71: =K4 -> 2021-04-05
J72: قبل التسحيب | P72: قبل التسحيب
J73: صافي الكمية | P73: صافي الكمية
J74: عدد الصدر | P74: عدد الصدر
J75: النسبة | L75: =L73/L72 ->  | P75: النسبة | R75: =R73/R72 -> 

Sheet 6
J3: الاسم | K3: المصريين
J4: التاريخ | K4: ='5'!K4+1 -> 2021-04-06 | W4: اليوم | X4: =K4 -> 2021-04-06
J6: قبل التسحيب | L6: مسحب مع خملة | N6: مسحب احمر | P6: مسحب سوبر | R6: مسحب صحن | T6: مسحب كامل مجمد | V6: صافي | W6: العدد | X6: النسبة
J7: عدد | K7: الصافي | L7: عدد | M7: الصافي | N7: عدد | O7: الصافي | P7: عدد | Q7: الصافي | R7: عدد | S7: الصافي | T7: عدد | U7: الصافي | V7: الكمية
J8: 17 | K8: 957 | L8: 50 | M8: 458 | N8: 25 | O8: 228 | P8: 12 | Q8: 278 | R8: 11 | S8: 114 | T8: 19 | U8: 358
J23: =SUM(J8:J22) -> 17 | K23: =SUM(K8:K22)-(J23*0.9) -> 941.7 | L23: =SUM(L8:L22) -> 50 | M23: =SUM(M8:M22)-(L23*0.9) -> 413 | N23: =SUM(N8:N22) -> 25 | O23: =SUM(O8:O22)-(N23*0.9) -> 205.5 | P23: =SUM(P8:P22) -> 12 | Q23: =SUM(Q8:Q22)-(P23*0.9) -> 267.2 | R23: =SUM(R8:R22) -> 11 | S23: =SUM(S8:S22)-(R23*0.9) -> 104.1 | T23: =SUM(T8:T22) -> 19 | U23: =SUM(U8:U22)-(T23*1.07) -> 337.67 | V23: =SUM(M23+O23+Q23+S23+U23) -> 1327.47 | W23: =SUM(L23+N23+P23+R23)*10 -> 980 | X23: =V23/K23 -> 1.409652756
J25: الاسم | K25: مزيد
J26: التاريخ | K26: =K4 -> 2021-04-06 | W26: اليوم | X26: =K26 -> 2021-04-06
J28: قبل التسحيب | L28: مسحب مع خملة | N28: مسحب احمر | P28: مسحب سوبر | R28: مسحب صحن | T28: مسحب كامل مجمد | V28: صافي | W28: العدد | X28: النسبة
J29: عدد | K29: الصافي | L29: عدد | M29: الصافي | N29: عدد | O29: الصافي | P29: عدد | Q29: الصافي | R29: عدد | S29: الصافي | T29: عدد | U29: الصافي | V29: الكمية
J30: 17 | K30: 548 | L30: 50 | M30: 457 | N30: 25 | O30: 255 | P30: 12 | Q30: 659 | R30: 11 | S30: 214 | T30: 19 | U30: 23
J45: =SUM(J30:J44) -> 17 | K45: =SUM(K30:K44)-(J45*0.9) -> 532.7 | L45: =SUM(L30:L44) -> 50 | M45: =SUM(M30:M44)-(L45*0.9) -> 412 | N45: =SUM(N30:N44) -> 25 | O45: =SUM(O30:O44)-(N45*0.9) -> 232.5 | P45: =SUM(P30:P44) -> 12 | Q45: =SUM(Q30:Q44)-(P45*0.9) -> 648.2 | R45: =SUM(R30:R44) -> 11 | S45: =SUM(S30:S44)-(R45*0.9) -> 204.1 | T45: =SUM(T30:T44) -> 19 | U45: =SUM(U30:U44)-(T45*1.07) -> 2.67 | V45: =SUM(M45+O45+Q45+S45+U45) -> 1499.47 | W45: =SUM(L45+N45+P45+R45)*10 -> 980 | X45: =V45/K45 -> 2.814848883
J47: الاسم | K47: الشمري
J48: التاريخ | K48: =K4 -> 2021-04-06 | W48: اليوم | X48: =K48 -> 2021-04-06
J50: قبل التسحيب | L50: مسحب مع خملة | N50: مسحب احمر | P50: مسحب سوبر | R50: مسحب صحن | T50: مسحب كامل مجمد | V50: صافي | W50: العدد | X50: النسبة
J51: عدد | K51: الصافي | L51: عدد | M51: الصافي | N51: عدد | O51: الصافي | P51: عدد | Q51: الصافي | R51: عدد | S51: الصافي | T51: عدد | U51: الصافي | V51: الكمية
J52: 17 | K52: 458 | L52: 50 | M52: 547 | N52: 25 | O52: 224 | P52: 12 | Q52: 48 | R52: 11 | S52: 554 | T52: 19 | U52: 265
J67: =SUM(J52:J66) -> 17 | K67: =SUM(K52:K66)-(J67*0.9) -> 442.7 | L67: =SUM(L52:L66) -> 50 | M67: =SUM(M52:M66)-(L67*0.9) -> 502 | N67: =SUM(N52:N66) -> 25 | O67: =SUM(O52:O66)-(N67*0.9) -> 201.5 | P67: =SUM(P52:P66) -> 12 | Q67: =SUM(Q52:Q66)-(P67*0.9) -> 37.2 | R67: =SUM(R52:R66) -> 11 | S67: =SUM(S52:S66)-(R67*0.9) -> 544.1 | T67: =SUM(T52:T66) -> 19 | U67: =SUM(U52:U66)-(T67*1.07) -> 244.67 | V67: =SUM(M67+O67+Q67+S67+U67) -> 1529.47 | W67: =SUM(L67+N67+P67+R67)*10 -> 980 | X67: =V67/K67 -> 3.454867856
J70: الاسم | L70: ابراهيم | P70: الاسم | R70: السوريين
J71: التاريخ | L71: =K4 -> 2021-04-06 | P71: التاريخ | R71: =K4 -> 2021-04-06
J72: قبل التسحيب | P72: قبل التسحيب
J73: صافي الكمية | P73: صافي الكمية
J74: عدد الصدر | P74: عدد الصدر
J75: النسبة | L75: =L73/L72 ->  | P75: النسبة | R75: =R73/R72 -> 

Sheet 7
J3: الاسم | K3: المصريين
J4: التاريخ | K4: ='6'!K4+1 -> 2021-04-07 | W4: اليوم | X4: =K4 -> 2021-04-07
J6: قبل التسحيب | L6: مسحب مع خملة | N6: مسحب احمر | P6: مسحب سوبر | R6: مسحب صحن | T6: مسحب كامل مجمد | V6: صافي | W6: العدد | X6: النسبة
J7: عدد | K7: الصافي | L7: عدد | M7: الصافي | N7: عدد | O7: الصافي | P7: عدد | Q7: الصافي | R7: عدد | S7: الصافي | T7: عدد | U7: الصافي | V7: الكمية
J8: 17 | K8: 957 | L8: 50 | M8: 458 | N8: 25 | O8: 228 | P8: 12 | Q8: 278 | R8: 11 | S8: 114 | T8: 19 | U8: 358
J23: =SUM(J8:J22) -> 17 | K23: =SUM(K8:K22)-(J23*0.9) -> 941.7 | L23: =SUM(L8:L22) -> 50 | M23: =SUM(M8:M22)-(L23*0.9) -> 413 | N23: =SUM(N8:N22) -> 25 | O23: =SUM(O8:O22)-(N23*0.9) -> 205.5 | P23: =SUM(P8:P22) -> 12 | Q23: =SUM(Q8:Q22)-(P23*0.9) -> 267.2 | R23: =SUM(R8:R22) -> 11 | S23: =SUM(S8:S22)-(R23*0.9) -> 104.1 | T23: =SUM(T8:T22) -> 19 | U23: =SUM(U8:U22)-(T23*1.07) -> 337.67 | V23: =SUM(M23+O23+Q23+S23+U23) -> 1327.47 | W23: =SUM(L23+N23+P23+R23)*10 -> 980 | X23: =V23/K23 -> 1.409652756
J25: الاسم | K25: مزيد
J26: التاريخ | K26: =K4 -> 2021-04-07 | W26: اليوم | X26: =K26 -> 2021-04-07
J28: قبل التسحيب | L28: مسحب مع خملة | N28: مسحب احمر | P28: مسحب سوبر | R28: مسحب صحن | T28: مسحب كامل مجمد | V28: صافي | W28: العدد | X28: النسبة
J29: عدد | K29: الصافي | L29: عدد | M29: الصافي | N29: عدد | O29: الصافي | P29: عدد | Q29: الصافي | R29: عدد | S29: الصافي | T29: عدد | U29: الصافي | V29: الكمية
J30: 17 | K30: 548 | L30: 50 | M30: 457 | N30: 25 | O30: 255 | P30: 12 | Q30: 659 | R30: 11 | S30: 214 | T30: 19 | U30: 23
J45: =SUM(J30:J44) -> 17 | K45: =SUM(K30:K44)-(J45*0.9) -> 532.7 | L45: =SUM(L30:L44) -> 50 | M45: =SUM(M30:M44)-(L45*0.9) -> 412 | N45: =SUM(N30:N44) -> 25 | O45: =SUM(O30:O44)-(N45*0.9) -> 232.5 | P45: =SUM(P30:P44) -> 12 | Q45: =SUM(Q30:Q44)-(P45*0.9) -> 648.2 | R45: =SUM(R30:R44) -> 11 | S45: =SUM(S30:S44)-(R45*0.9) -> 204.1 | T45: =SUM(T30:T44) -> 19 | U45: =SUM(U30:U44)-(T45*1.07) -> 2.67 | V45: =SUM(M45+O45+Q45+S45+U45) -> 1499.47 | W45: =SUM(L45+N45+P45+R45)*10 -> 980 | X45: =V45/K45 -> 2.814848883
J47: الاسم | K47: الشمري
J48: التاريخ | K48: =K4 -> 2021-04-07 | W48: اليوم | X48: =K48 -> 2021-04-07
J50: قبل التسحيب | L50: مسحب مع خملة | N50: مسحب احمر | P50: مسحب سوبر | R50: مسحب صحن | T50: مسحب كامل مجمد | V50: صافي | W50: العدد | X50: النسبة
J51: عدد | K51: الصافي | L51: عدد | M51: الصافي | N51: عدد | O51: الصافي | P51: عدد | Q51: الصافي | R51: عدد | S51: الصافي | T51: عدد | U51: الصافي | V51: الكمية
J52: 17 | K52: 458 | L52: 50 | M52: 547 | N52: 25 | O52: 224 | P52: 12 | Q52: 48 | R52: 11 | S52: 554 | T52: 19 | U52: 265
J67: =SUM(J52:J66) -> 17 | K67: =SUM(K52:K66)-(J67*0.9) -> 442.7 | L67: =SUM(L52:L66) -> 50 | M67: =SUM(M52:M66)-(L67*0.9) -> 502 | N67: =SUM(N52:N66) -> 25 | O67: =SUM(O52:O66)-(N67*0.9) -> 201.5 | P67: =SUM(P52:P66) -> 12 | Q67: =SUM(Q52:Q66)-(P67*0.9) -> 37.2 | R67: =SUM(R52:R66) -> 11 | S67: =SUM(S52:S66)-(R67*0.9) -> 544.1 | T67: =SUM(T52:T66) -> 19 | U67: =SUM(U52:U66)-(T67*1.07) -> 244.67 | V67: =SUM(M67+O67+Q67+S67+U67) -> 1529.47 | W67: =SUM(L67+N67+P67+R67)*10 -> 980 | X67: =V67/K67 -> 3.454867856
J70: الاسم | L70: ابراهيم | P70: الاسم | R70: السوريين
J71: التاريخ | L71: =K4 -> 2021-04-07 | P71: التاريخ | R71: =K4 -> 2021-04-07
J72: قبل التسحيب | P72: قبل التسحيب
J73: صافي الكمية | P73: صافي الكمية
J74: عدد الصدر | P74: عدد الصدر
J75: النسبة | L75: =L73/L72 ->  | P75: النسبة | R75: =R73/R72 -> 

Sheet 8
J3: الاسم | K3: المصريين
J4: التاريخ | K4: ='7'!K4+1 -> 2021-04-08 | W4: اليوم | X4: =K4 -> 2021-04-08
J6: قبل التسحيب | L6: مسحب مع خملة | N6: مسحب احمر | P6: مسحب سوبر | R6: مسحب صحن | T6: مسحب كامل مجمد | V6: صافي | W6: العدد | X6: النسبة
J7: عدد | K7: الصافي | L7: عدد | M7: الصافي | N7: عدد | O7: الصافي | P7: عدد | Q7: الصافي | R7: عدد | S7: الصافي | T7: عدد | U7: الصافي | V7: الكمية
J8: 17 | K8: 957 | L8: 50 | M8: 458 | N8: 25 | O8: 228 | P8: 12 | Q8: 278 | R8: 11 | S8: 114 | T8: 19 | U8: 358
J23: =SUM(J8:J22) -> 17 | K23: =SUM(K8:K22)-(J23*0.9) -> 941.7 | L23: =SUM(L8:L22) -> 50 | M23: =SUM(M8:M22)-(L23*0.9) -> 413 | N23: =SUM(N8:N22) -> 25 | O23: =SUM(O8:O22)-(N23*0.9) -> 205.5 | P23: =SUM(P8:P22) -> 12 | Q23: =SUM(Q8:Q22)-(P23*0.9) -> 267.2 | R23: =SUM(R8:R22) -> 11 | S23: =SUM(S8:S22)-(R23*0.9) -> 104.1 | T23: =SUM(T8:T22) -> 19 | U23: =SUM(U8:U22)-(T23*1.07) -> 337.67 | V23: =SUM(M23+O23+Q23+S23+U23) -> 1327.47 | W23: =SUM(L23+N23+P23+R23)*10 -> 980 | X23: =V23/K23 -> 1.409652756
J25: الاسم | K25: مزيد
J26: التاريخ | K26: =K4 -> 2021-04-08 | W26: اليوم | X26: =K26 -> 2021-04-08
J28: قبل التسحيب | L28: مسحب مع خملة | N28: مسحب احمر | P28: مسحب سوبر | R28: مسحب صحن | T28: مسحب كامل مجمد | V28: صافي | W28: العدد | X28: النسبة
J29: عدد | K29: الصافي | L29: عدد | M29: الصافي | N29: عدد | O29: الصافي | P29: عدد | Q29: الصافي | R29: عدد | S29: الصافي | T29: عدد | U29: الصافي | V29: الكمية
J30: 17 | K30: 548 | L30: 50 | M30: 457 | N30: 25 | O30: 255 | P30: 12 | Q30: 659 | R30: 11 | S30: 214 | T30: 19 | U30: 23
J45: =SUM(J30:J44) -> 17 | K45: =SUM(K30:K44)-(J45*0.9) -> 532.7 | L45: =SUM(L30:L44) -> 50 | M45: =SUM(M30:M44)-(L45*0.9) -> 412 | N45: =SUM(N30:N44) -> 25 | O45: =SUM(O30:O44)-(N45*0.9) -> 232.5 | P45: =SUM(P30:P44) -> 12 | Q45: =SUM(Q30:Q44)-(P45*0.9) -> 648.2 | R45: =SUM(R30:R44) -> 11 | S45: =SUM(S30:S44)-(R45*0.9) -> 204.1 | T45: =SUM(T30:T44) -> 19 | U45: =SUM(U30:U44)-(T45*1.07) -> 2.67 | V45: =SUM(M45+O45+Q45+S45+U45) -> 1499.47 | W45: =SUM(L45+N45+P45+R45)*10 -> 980 | X45: =V45/K45 -> 2.814848883
J47: الاسم | K47: الشمري
J48: التاريخ | K48: =K4 -> 2021-04-08 | W48: اليوم | X48: =K48 -> 2021-04-08
J50: قبل التسحيب | L50: مسحب مع خملة | N50: مسحب احمر | P50: مسحب سوبر | R50: مسحب صحن | T50: مسحب كامل مجمد | V50: صافي | W50: العدد | X50: النسبة
J51: عدد | K51: الصافي | L51: عدد | M51: الصافي | N51: عدد | O51: الصافي | P51: عدد | Q51: الصافي | R51: عدد | S51: الصافي | T51: عدد | U51: الصافي | V51: الكمية
J52: 17 | K52: 458 | L52: 50 | M52: 547 | N52: 25 | O52: 224 | P52: 12 | Q52: 48 | R52: 11 | S52: 554 | T52: 19 | U52: 265
J67: =SUM(J52:J66) -> 17 | K67: =SUM(K52:K66)-(J67*0.9) -> 442.7 | L67: =SUM(L52:L66) -> 50 | M67: =SUM(M52:M66)-(L67*0.9) -> 502 | N67: =SUM(N52:N66) -> 25 | O67: =SUM(O52:O66)-(N67*0.9) -> 201.5 | P67: =SUM(P52:P66) -> 12 | Q67: =SUM(Q52:Q66)-(P67*0.9) -> 37.2 | R67: =SUM(R52:R66) -> 11 | S67: =SUM(S52:S66)-(R67*0.9) -> 544.1 | T67: =SUM(T52:T66) -> 19 | U67: =SUM(U52:U66)-(T67*1.07) -> 244.67 | V67: =SUM(M67+O67+Q67+S67+U67) -> 1529.47 | W67: =SUM(L67+N67+P67+R67)*10 -> 980 | X67: =V67/K67 -> 3.454867856
J70: الاسم | L70: ابراهيم | P70: الاسم | R70: السوريين
J71: التاريخ | L71: =K4 -> 2021-04-08 | P71: التاريخ | R71: =K4 -> 2021-04-08
J72: قبل التسحيب | P72: قبل التسحيب
J73: صافي الكمية | P73: صافي الكمية
J74: عدد الصدر | P74: عدد الصدر
J75: النسبة | L75: =L73/L72 ->  | P75: النسبة | R75: =R73/R72 -> 

Sheet 9
J3: الاسم | K3: المصريين
J4: التاريخ | K4: ='8'!K4+1 -> 2021-04-09 | W4: اليوم | X4: =K4 -> 2021-04-09
J6: قبل التسحيب | L6: مسحب مع خملة | N6: مسحب احمر | P6: مسحب سوبر | R6: مسحب صحن | T6: مسحب كامل مجمد | V6: صافي | W6: العدد | X6: النسبة
J7: عدد | K7: الصافي | L7: عدد | M7: الصافي | N7: عدد | O7: الصافي | P7: عدد | Q7: الصافي | R7: عدد | S7: الصافي | T7: عدد | U7: الصافي | V7: الكمية
J8: 17 | K8: 957 | L8: 50 | M8: 458 | N8: 25 | O8: 228 | P8: 12 | Q8: 278 | R8: 11 | S8: 114 | T8: 19 | U8: 358
J23: =SUM(J8:J22) -> 17 | K23: =SUM(K8:K22)-(J23*0.9) -> 941.7 | L23: =SUM(L8:L22) -> 50 | M23: =SUM(M8:M22)-(L23*0.9) -> 413 | N23: =SUM(N8:N22) -> 25 | O23: =SUM(O8:O22)-(N23*0.9) -> 205.5 | P23: =SUM(P8:P22) -> 12 | Q23: =SUM(Q8:Q22)-(P23*0.9) -> 267.2 | R23: =SUM(R8:R22) -> 11 | S23: =SUM(S8:S22)-(R23*0.9) -> 104.1 | T23: =SUM(T8:T22) -> 19 | U23: =SUM(U8:U22)-(T23*1.07) -> 337.67 | V23: =SUM(M23+O23+Q23+S23+U23) -> 1327.47 | W23: =SUM(L23+N23+P23+R23)*10 -> 980 | X23: =V23/K23 -> 1.409652756
J25: الاسم | K25: مزيد
J26: التاريخ | K26: =K4 -> 2021-04-09 | W26: اليوم | X26: =K26 -> 2021-04-09
J28: قبل التسحيب | L28: مسحب مع خملة | N28: مسحب احمر | P28: مسحب سوبر | R28: مسحب صحن | T28: مسحب كامل مجمد | V28: صافي | W28: العدد | X28: النسبة
J29: عدد | K29: الصافي | L29: عدد | M29: الصافي | N29: عدد | O29: الصافي | P29: عدد | Q29: الصافي | R29: عدد | S29: الصافي | T29: عدد | U29: الصافي | V29: الكمية
J30: 17 | K30: 548 | L30: 50 | M30: 457 | N30: 25 | O30: 255 | P30: 12 | Q30: 659 | R30: 11 | S30: 214 | T30: 19 | U30: 23
J45: =SUM(J30:J44) -> 17 | K45: =SUM(K30:K44)-(J45*0.9) -> 532.7 | L45: =SUM(L30:L44) -> 50 | M45: =SUM(M30:M44)-(L45*0.9) -> 412 | N45: =SUM(N30:N44) -> 25 | O45: =SUM(O30:O44)-(N45*0.9) -> 232.5 | P45: =SUM(P30:P44) -> 12 | Q45: =SUM(Q30:Q44)-(P45*0.9) -> 648.2 | R45: =SUM(R30:R44) -> 11 | S45: =SUM(S30:S44)-(R45*0.9) -> 204.1 | T45: =SUM(T30:T44) -> 19 | U45: =SUM(U30:U44)-(T45*1.07) -> 2.67 | V45: =SUM(M45+O45+Q45+S45+U45) -> 1499.47 | W45: =SUM(L45+N45+P45+R45)*10 -> 980 | X45: =V45/K45 -> 2.814848883
J47: الاسم | K47: الشمري
J48: التاريخ | K48: =K4 -> 2021-04-09 | W48: اليوم | X48: =K48 -> 2021-04-09
J50: قبل التسحيب | L50: مسحب مع خملة | N50: مسحب احمر | P50: مسحب سوبر | R50: مسحب صحن | T50: مسحب كامل مجمد | V50: صافي | W50: العدد | X50: النسبة
J51: عدد | K51: الصافي | L51: عدد | M51: الصافي | N51: عدد | O51: الصافي | P51: عدد | Q51: الصافي | R51: عدد | S51: الصافي | T51: عدد | U51: الصافي | V51: الكمية
J52: 17 | K52: 458 | L52: 50 | M52: 547 | N52: 25 | O52: 224 | P52: 12 | Q52: 48 | R52: 11 | S52: 554 | T52: 19 | U52: 265
J67: =SUM(J52:J66) -> 17 | K67: =SUM(K52:K66)-(J67*0.9) -> 442.7 | L67: =SUM(L52:L66) -> 50 | M67: =SUM(M52:M66)-(L67*0.9) -> 502 | N67: =SUM(N52:N66) -> 25 | O67: =SUM(O52:O66)-(N67*0.9) -> 201.5 | P67: =SUM(P52:P66) -> 12 | Q67: =SUM(Q52:Q66)-(P67*0.9) -> 37.2 | R67: =SUM(R52:R66) -> 11 | S67: =SUM(S52:S66)-(R67*0.9) -> 544.1 | T67: =SUM(T52:T66) -> 19 | U67: =SUM(U52:U66)-(T67*1.07) -> 244.67 | V67: =SUM(M67+O67+Q67+S67+U67) -> 1529.47 | W67: =SUM(L67+N67+P67+R67)*10 -> 980 | X67: =V67/K67 -> 3.454867856
J70: الاسم | L70: ابراهيم | P70: الاسم | R70: السوريين
J71: التاريخ | L71: =K4 -> 2021-04-09 | P71: التاريخ | R71: =K4 -> 2021-04-09
J72: قبل التسحيب | P72: قبل التسحيب
J73: صافي الكمية | P73: صافي الكمية
J74: عدد الصدر | P74: عدد الصدر
J75: النسبة | L75: =L73/L72 ->  | P75: النسبة | R75: =R73/R72 -> 

Sheet 10
J3: الاسم | K3: المصريين
J4: التاريخ | K4: ='9'!K4+1 -> 2021-04-10 | W4: اليوم | X4: =K4 -> 2021-04-10
J6: قبل التسحيب | L6: مسحب مع خملة | N6: مسحب احمر | P6: مسحب سوبر | R6: مسحب صحن | T6: مسحب كامل مجمد | V6: صافي | W6: العدد | X6: النسبة
J7: عدد | K7: الصافي | L7: عدد | M7: الصافي | N7: عدد | O7: الصافي | P7: عدد | Q7: الصافي | R7: عدد | S7: الصافي | T7: عدد | U7: الصافي | V7: الكمية
J8: 17 | K8: 957 | L8: 50 | M8: 458 | N8: 25 | O8: 228 | P8: 12 | Q8: 278 | R8: 11 | S8: 114 | T8: 19 | U8: 358
J23: =SUM(J8:J22) -> 17 | K23: =SUM(K8:K22)-(J23*0.9) -> 941.7 | L23: =SUM(L8:L22) -> 50 | M23: =SUM(M8:M22)-(L23*0.9) -> 413 | N23: =SUM(N8:N22) -> 25 | O23: =SUM(O8:O22)-(N23*0.9) -> 205.5 | P23: =SUM(P8:P22) -> 12 | Q23: =SUM(Q8:Q22)-(P23*0.9) -> 267.2 | R23: =SUM(R8:R22) -> 11 | S23: =SUM(S8:S22)-(R23*0.9) -> 104.1 | T23: =SUM(T8:T22) -> 19 | U23: =SUM(U8:U22)-(T23*1.07) -> 337.67 | V23: =SUM(M23+O23+Q23+S23+U23) -> 1327.47 | W23: =SUM(L23+N23+P23+R23)*10 -> 980 | X23: =V23/K23 -> 1.409652756
J25: الاسم | K25: مزيد
J26: التاريخ | K26: =K4 -> 2021-04-10 | W26: اليوم | X26: =K26 -> 2021-04-10
J28: قبل التسحيب | L28: مسحب مع خملة | N28: مسحب احمر | P28: مسحب سوبر | R28: مسحب صحن | T28: مسحب كامل مجمد | V28: صافي | W28: العدد | X28: النسبة
J29: عدد | K29: الصافي | L29: عدد | M29: الصافي | N29: عدد | O29: الصافي | P29: عدد | Q29: الصافي | R29: عدد | S29: الصافي | T29: عدد | U29: الصافي | V29: الكمية
J30: 17 | K30: 548 | L30: 50 | M30: 457 | N30: 25 | O30: 255 | P30: 12 | Q30: 659 | R30: 11 | S30: 214 | T30: 19 | U30: 23
J45: =SUM(J30:J44) -> 17 | K45: =SUM(K30:K44)-(J45*0.9) -> 532.7 | L45: =SUM(L30:L44) -> 50 | M45: =SUM(M30:M44)-(L45*0.9) -> 412 | N45: =SUM(N30:N44) -> 25 | O45: =SUM(O30:O44)-(N45*0.9) -> 232.5 | P45: =SUM(P30:P44) -> 12 | Q45: =SUM(Q30:Q44)-(P45*0.9) -> 648.2 | R45: =SUM(R30:R44) -> 11 | S45: =SUM(S30:S44)-(R45*0.9) -> 204.1 | T45: =SUM(T30:T44) -> 19 | U45: =SUM(U30:U44)-(T45*1.07) -> 2.67 | V45: =SUM(M45+O45+Q45+S45+U45) -> 1499.47 | W45: =SUM(L45+N45+P45+R45)*10 -> 980 | X45: =V45/K45 -> 2.814848883
J47: الاسم | K47: الشمري
J48: التاريخ | K48: =K4 -> 2021-04-10 | W48: اليوم | X48: =K48 -> 2021-04-10
J50: قبل التسحيب | L50: مسحب مع خملة | N50: مسحب احمر | P50: مسحب سوبر | R50: مسحب صحن | T50: مسحب كامل مجمد | V50: صافي | W50: العدد | X50: النسبة
J51: عدد | K51: الصافي | L51: عدد | M51: الصافي | N51: عدد | O51: الصافي | P51: عدد | Q51: الصافي | R51: عدد | S51: الصافي | T51: عدد | U51: الصافي | V51: الكمية
J52: 17 | K52: 458 | L52: 50 | M52: 547 | N52: 25 | O52: 224 | P52: 12 | Q52: 48 | R52: 11 | S52: 554 | T52: 19 | U52: 265
J67: =SUM(J52:J66) -> 17 | K67: =SUM(K52:K66)-(J67*0.9) -> 442.7 | L67: =SUM(L52:L66) -> 50 | M67: =SUM(M52:M66)-(L67*0.9) -> 502 | N67: =SUM(N52:N66) -> 25 | O67: =SUM(O52:O66)-(N67*0.9) -> 201.5 | P67: =SUM(P52:P66) -> 12 | Q67: =SUM(Q52:Q66)-(P67*0.9) -> 37.2 | R67: =SUM(R52:R66) -> 11 | S67: =SUM(S52:S66)-(R67*0.9) -> 544.1 | T67: =SUM(T52:T66) -> 19 | U67: =SUM(U52:U66)-(T67*1.07) -> 244.67 | V67: =SUM(M67+O67+Q67+S67+U67) -> 1529.47 | W67: =SUM(L67+N67+P67+R67)*10 -> 980 | X67: =V67/K67 -> 3.454867856
J70: الاسم | L70: ابراهيم | P70: الاسم | R70: السوريين
J71: التاريخ | L71: =K4 -> 2021-04-10 | P71: التاريخ | R71: =K4 -> 2021-04-10
J72: قبل التسحيب | P72: قبل التسحيب
J73: صافي الكمية | P73: صافي الكمية
J74: عدد الصدر | P74: عدد الصدر
J75: النسبة | L75: =L73/L72 ->  | P75: النسبة | R75: =R73/R72 -> 

Sheet 11
J3: الاسم | K3: المصريين
J4: التاريخ | K4: ='10'!K4+1 -> 2021-04-11 | W4: اليوم | X4: =K4 -> 2021-04-11
J6: قبل التسحيب | L6: مسحب مع خملة | N6: مسحب احمر | P6: مسحب سوبر | R6: مسحب صحن | T6: مسحب كامل مجمد | V6: صافي | W6: العدد | X6: النسبة
J7: عدد | K7: الصافي | L7: عدد | M7: الصافي | N7: عدد | O7: الصافي | P7: عدد | Q7: الصافي | R7: عدد | S7: الصافي | T7: عدد | U7: الصافي | V7: الكمية
J8: 17 | K8: 957 | L8: 50 | M8: 458 | N8: 25 | O8: 228 | P8: 12 | Q8: 278 | R8: 11 | S8: 114 | T8: 19 | U8: 358
J23: =SUM(J8:J22) -> 17 | K23: =SUM(K8:K22)-(J23*0.9) -> 941.7 | L23: =SUM(L8:L22) -> 50 | M23: =SUM(M8:M22)-(L23*0.9) -> 413 | N23: =SUM(N8:N22) -> 25 | O23: =SUM(O8:O22)-(N23*0.9) -> 205.5 | P23: =SUM(P8:P22) -> 12 | Q23: =SUM(Q8:Q22)-(P23*0.9) -> 267.2 | R23: =SUM(R8:R22) -> 11 | S23: =SUM(S8:S22)-(R23*0.9) -> 104.1 | T23: =SUM(T8:T22) -> 19 | U23: =SUM(U8:U22)-(T23*1.07) -> 337.67 | V23: =SUM(M23+O23+Q23+S23+U23) -> 1327.47 | W23: =SUM(L23+N23+P23+R23)*10 -> 980 | X23: =V23/K23 -> 1.409652756
J25: الاسم | K25: مزيد
J26: التاريخ | K26: =K4 -> 2021-04-11 | W26: اليوم | X26: =K26 -> 2021-04-11
J28: قبل التسحيب | L28: مسحب مع خملة | N28: مسحب احمر | P28: مسحب سوبر | R28: مسحب صحن | T28: مسحب كامل مجمد | V28: صافي | W28: العدد | X28: النسبة
J29: عدد | K29: الصافي | L29: عدد | M29: الصافي | N29: عدد | O29: الصافي | P29: عدد | Q29: الصافي | R29: عدد | S29: الصافي | T29: عدد | U29: الصافي | V29: الكمية
J30: 17 | K30: 548 | L30: 50 | M30: 457 | N30: 25 | O30: 255 | P30: 12 | Q30: 659 | R30: 11 | S30: 214 | T30: 19 | U30: 23
J45: =SUM(J30:J44) -> 17 | K45: =SUM(K30:K44)-(J45*0.9) -> 532.7 | L45: =SUM(L30:L44) -> 50 | M45: =SUM(M30:M44)-(L45*0.9) -> 412 | N45: =SUM(N30:N44) -> 25 | O45: =SUM(O30:O44)-(N45*0.9) -> 232.5 | P45: =SUM(P30:P44) -> 12 | Q45: =SUM(Q30:Q44)-(P45*0.9) -> 648.2 | R45: =SUM(R30:R44) -> 11 | S45: =SUM(S30:S44)-(R45*0.9) -> 204.1 | T45: =SUM(T30:T44) -> 19 | U45: =SUM(U30:U44)-(T45*1.07) -> 2.67 | V45: =SUM(M45+O45+Q45+S45+U45) -> 1499.47 | W45: =SUM(L45+N45+P45+R45)*10 -> 980 | X45: =V45/K45 -> 2.814848883
J47: الاسم | K47: الشمري
J48: التاريخ | K48: =K4 -> 2021-04-11 | W48: اليوم | X48: =K48 -> 2021-04-11
J50: قبل التسحيب | L50: مسحب مع خملة | N50: مسحب احمر | P50: مسحب سوبر | R50: مسحب صحن | T50: مسحب كامل مجمد | V50: صافي | W50: العدد | X50: النسبة
J51: عدد | K51: الصافي | L51: عدد | M51: الصافي | N51: عدد | O51: الصافي | P51: عدد | Q51: الصافي | R51: عدد | S51: الصافي | T51: عدد | U51: الصافي | V51: الكمية
J52: 17 | K52: 458 | L52: 50 | M52: 547 | N52: 25 | O52: 224 | P52: 12 | Q52: 48 | R52: 11 | S52: 554 | T52: 19 | U52: 265
J67: =SUM(J52:J66) -> 17 | K67: =SUM(K52:K66)-(J67*0.9) -> 442.7 | L67: =SUM(L52:L66) -> 50 | M67: =SUM(M52:M66)-(L67*0.9) -> 502 | N67: =SUM(N52:N66) -> 25 | O67: =SUM(O52:O66)-(N67*0.9) -> 201.5 | P67: =SUM(P52:P66) -> 12 | Q67: =SUM(Q52:Q66)-(P67*0.9) -> 37.2 | R67: =SUM(R52:R66) -> 11 | S67: =SUM(S52:S66)-(R67*0.9) -> 544.1 | T67: =SUM(T52:T66) -> 19 | U67: =SUM(U52:U66)-(T67*1.07) -> 244.67 | V67: =SUM(M67+O67+Q67+S67+U67) -> 1529.47 | W67: =SUM(L67+N67+P67+R67)*10 -> 980 | X67: =V67/K67 -> 3.454867856
J70: الاسم | L70: ابراهيم | P70: الاسم | R70: السوريين
J71: التاريخ | L71: =K4 -> 2021-04-11 | P71: التاريخ | R71: =K4 -> 2021-04-11
J72: قبل التسحيب | P72: قبل التسحيب
J73: صافي الكمية | P73: صافي الكمية
J74: عدد الصدر | P74: عدد الصدر
J75: النسبة | L75: =L73/L72 ->  | P75: النسبة | R75: =R73/R72 -> 

Sheet 12
J3: الاسم | K3: المصريين
J4: التاريخ | K4: ='11'!K4+1 -> 2021-04-12 | W4: اليوم | X4: =K4 -> 2021-04-12
J6: قبل التسحيب | L6: مسحب مع خملة | N6: مسحب احمر | P6: مسحب سوبر | R6: مسحب صحن | T6: مسحب كامل مجمد | V6: صافي | W6: العدد | X6: النسبة
J7: عدد | K7: الصافي | L7: عدد | M7: الصافي | N7: عدد | O7: الصافي | P7: عدد | Q7: الصافي | R7: عدد | S7: الصافي | T7: عدد | U7: الصافي | V7: الكمية
J8: 17 | K8: 957 | L8: 50 | M8: 458 | N8: 25 | O8: 228 | P8: 12 | Q8: 278 | R8: 11 | S8: 114 | T8: 19 | U8: 358
J23: =SUM(J8:J22) -> 17 | K23: =SUM(K8:K22)-(J23*0.9) -> 941.7 | L23: =SUM(L8:L22) -> 50 | M23: =SUM(M8:M22)-(L23*0.9) -> 413 | N23: =SUM(N8:N22) -> 25 | O23: =SUM(O8:O22)-(N23*0.9) -> 205.5 | P23: =SUM(P8:P22) -> 12 | Q23: =SUM(Q8:Q22)-(P23*0.9) -> 267.2 | R23: =SUM(R8:R22) -> 11 | S23: =SUM(S8:S22)-(R23*0.9) -> 104.1 | T23: =SUM(T8:T22) -> 19 | U23: =SUM(U8:U22)-(T23*1.07) -> 337.67 | V23: =SUM(M23+O23+Q23+S23+U23) -> 1327.47 | W23: =SUM(L23+N23+P23+R23)*10 -> 980 | X23: =V23/K23 -> 1.409652756
J25: الاسم | K25: مزيد
J26: التاريخ | K26: =K4 -> 2021-04-12 | W26: اليوم | X26: =K26 -> 2021-04-12
J28: قبل التسحيب | L28: مسحب مع خملة | N28: مسحب احمر | P28: مسحب سوبر | R28: مسحب صحن | T28: مسحب كامل مجمد | V28: صافي | W28: العدد | X28: النسبة
J29: عدد | K29: الصافي | L29: عدد | M29: الصافي | N29: عدد | O29: الصافي | P29: عدد | Q29: الصافي | R29: عدد | S29: الصافي | T29: عدد | U29: الصافي | V29: الكمية
J30: 17 | K30: 548 | L30: 50 | M30: 457 | N30: 25 | O30: 255 | P30: 12 | Q30: 659 | R30: 11 | S30: 214 | T30: 19 | U30: 23
J45: =SUM(J30:J44) -> 17 | K45: =SUM(K30:K44)-(J45*0.9) -> 532.7 | L45: =SUM(L30:L44) -> 50 | M45: =SUM(M30:M44)-(L45*0.9) -> 412 | N45: =SUM(N30:N44) -> 25 | O45: =SUM(O30:O44)-(N45*0.9) -> 232.5 | P45: =SUM(P30:P44) -> 12 | Q45: =SUM(Q30:Q44)-(P45*0.9) -> 648.2 | R45: =SUM(R30:R44) -> 11 | S45: =SUM(S30:S44)-(R45*0.9) -> 204.1 | T45: =SUM(T30:T44) -> 19 | U45: =SUM(U30:U44)-(T45*1.07) -> 2.67 | V45: =SUM(M45+O45+Q45+S45+U45) -> 1499.47 | W45: =SUM(L45+N45+P45+R45)*10 -> 980 | X45: =V45/K45 -> 2.814848883
J47: الاسم | K47: الشمري
J48: التاريخ | K48: =K4 -> 2021-04-12 | W48: اليوم | X48: =K48 -> 2021-04-12
J50: قبل التسحيب | L50: مسحب مع خملة | N50: مسحب احمر | P50: مسحب سوبر | R50: مسحب صحن | T50: مسحب كامل مجمد | V50: صافي | W50: العدد | X50: النسبة
J51: عدد | K51: الصافي | L51: عدد | M51: الصافي | N51: عدد | O51: الصافي | P51: عدد | Q51: الصافي | R51: عدد | S51: الصافي | T51: عدد | U51: الصافي | V51: الكمية
J52: 17 | K52: 458 | L52: 50 | M52: 547 | N52: 25 | O52: 224 | P52: 12 | Q52: 48 | R52: 11 | S52: 554 | T52: 19 | U52: 265
J67: =SUM(J52:J66) -> 17 | K67: =SUM(K52:K66)-(J67*0.9) -> 442.7 | L67: =SUM(L52:L66) -> 50 | M67: =SUM(M52:M66)-(L67*0.9) -> 502 | N67: =SUM(N52:N66) -> 25 | O67: =SUM(O52:O66)-(N67*0.9) -> 201.5 | P67: =SUM(P52:P66) -> 12 | Q67: =SUM(Q52:Q66)-(P67*0.9) -> 37.2 | R67: =SUM(R52:R66) -> 11 | S67: =SUM(S52:S66)-(R67*0.9) -> 544.1 | T67: =SUM(T52:T66) -> 19 | U67: =SUM(U52:U66)-(T67*1.07) -> 244.67 | V67: =SUM(M67+O67+Q67+S67+U67) -> 1529.47 | W67: =SUM(L67+N67+P67+R67)*10 -> 980 | X67: =V67/K67 -> 3.454867856
J70: الاسم | L70: ابراهيم | P70: الاسم | R70: السوريين
J71: التاريخ | L71: =K4 -> 2021-04-12 | P71: التاريخ | R71: =K4 -> 2021-04-12
J72: قبل التسحيب | P72: قبل التسحيب
J73: صافي الكمية | P73: صافي الكمية
J74: عدد الصدر | P74: عدد الصدر
J75: النسبة | L75: =L73/L72 ->  | P75: النسبة | R75: =R73/R72 -> 

Sheet 13
J3: الاسم | K3: المصريين
J4: التاريخ | K4: ='12'!K4+1 -> 2021-04-13 | W4: اليوم | X4: =K4 -> 2021-04-13
J6: قبل التسحيب | L6: مسحب مع خملة | N6: مسحب احمر | P6: مسحب سوبر | R6: مسحب صحن | T6: مسحب كامل مجمد | V6: صافي | W6: العدد | X6: النسبة
J7: عدد | K7: الصافي | L7: عدد | M7: الصافي | N7: عدد | O7: الصافي | P7: عدد | Q7: الصافي | R7: عدد | S7: الصافي | T7: عدد | U7: الصافي | V7: الكمية
J8: 17 | K8: 957 | L8: 50 | M8: 458 | N8: 25 | O8: 228 | P8: 12 | Q8: 278 | R8: 11 | S8: 114 | T8: 19 | U8: 358
J23: =SUM(J8:J22) -> 17 | K23: =SUM(K8:K22)-(J23*0.9) -> 941.7 | L23: =SUM(L8:L22) -> 50 | M23: =SUM(M8:M22)-(L23*0.9) -> 413 | N23: =SUM(N8:N22) -> 25 | O23: =SUM(O8:O22)-(N23*0.9) -> 205.5 | P23: =SUM(P8:P22) -> 12 | Q23: =SUM(Q8:Q22)-(P23*0.9) -> 267.2 | R23: =SUM(R8:R22) -> 11 | S23: =SUM(S8:S22)-(R23*0.9) -> 104.1 | T23: =SUM(T8:T22) -> 19 | U23: =SUM(U8:U22)-(T23*1.07) -> 337.67 | V23: =SUM(M23+O23+Q23+S23+U23) -> 1327.47 | W23: =SUM(L23+N23+P23+R23)*10 -> 980 | X23: =V23/K23 -> 1.409652756
J25: الاسم | K25: مزيد
J26: التاريخ | K26: =K4 -> 2021-04-13 | W26: اليوم | X26: =K26 -> 2021-04-13
J28: قبل التسحيب | L28: مسحب مع خملة | N28: مسحب احمر | P28: مسحب سوبر | R28: مسحب صحن | T28: مسحب كامل مجمد | V28: صافي | W28: العدد | X28: النسبة
J29: عدد | K29: الصافي | L29: عدد | M29: الصافي | N29: عدد | O29: الصافي | P29: عدد | Q29: الصافي | R29: عدد | S29: الصافي | T29: عدد | U29: الصافي | V29: الكمية
J30: 17 | K30: 548 | L30: 50 | M30: 457 | N30: 25 | O30: 255 | P30: 12 | Q30: 659 | R30: 11 | S30: 214 | T30: 19 | U30: 23
J45: =SUM(J30:J44) -> 17 | K45: =SUM(K30:K44)-(J45*0.9) -> 532.7 | L45: =SUM(L30:L44) -> 50 | M45: =SUM(M30:M44)-(L45*0.9) -> 412 | N45: =SUM(N30:N44) -> 25 | O45: =SUM(O30:O44)-(N45*0.9) -> 232.5 | P45: =SUM(P30:P44) -> 12 | Q45: =SUM(Q30:Q44)-(P45*0.9) -> 648.2 | R45: =SUM(R30:R44) -> 11 | S45: =SUM(S30:S44)-(R45*0.9) -> 204.1 | T45: =SUM(T30:T44) -> 19 | U45: =SUM(U30:U44)-(T45*1.07) -> 2.67 | V45: =SUM(M45+O45+Q45+S45+U45) -> 1499.47 | W45: =SUM(L45+N45+P45+R45)*10 -> 980 | X45: =V45/K45 -> 2.814848883
J47: الاسم | K47: الشمري
J48: التاريخ | K48: =K4 -> 2021-04-13 | W48: اليوم | X48: =K48 -> 2021-04-13
J50: قبل التسحيب | L50: مسحب مع خملة | N50: مسحب احمر | P50: مسحب سوبر | R50: مسحب صحن | T50: مسحب كامل مجمد | V50: صافي | W50: العدد | X50: النسبة
J51: عدد | K51: الصافي | L51: عدد | M51: الصافي | N51: عدد | O51: الصافي | P51: عدد | Q51: الصافي | R51: عدد | S51: الصافي | T51: عدد | U51: الصافي | V51: الكمية
J52: 17 | K52: 458 | L52: 50 | M52: 547 | N52: 25 | O52: 224 | P52: 12 | Q52: 48 | R52: 11 | S52: 554 | T52: 19 | U52: 265
J67: =SUM(J52:J66) -> 17 | K67: =SUM(K52:K66)-(J67*0.9) -> 442.7 | L67: =SUM(L52:L66) -> 50 | M67: =SUM(M52:M66)-(L67*0.9) -> 502 | N67: =SUM(N52:N66) -> 25 | O67: =SUM(O52:O66)-(N67*0.9) -> 201.5 | P67: =SUM(P52:P66) -> 12 | Q67: =SUM(Q52:Q66)-(P67*0.9) -> 37.2 | R67: =SUM(R52:R66) -> 11 | S67: =SUM(S52:S66)-(R67*0.9) -> 544.1 | T67: =SUM(T52:T66) -> 19 | U67: =SUM(U52:U66)-(T67*1.07) -> 244.67 | V67: =SUM(M67+O67+Q67+S67+U67) -> 1529.47 | W67: =SUM(L67+N67+P67+R67)*10 -> 980 | X67: =V67/K67 -> 3.454867856
J70: الاسم | L70: ابراهيم | P70: الاسم | R70: السوريين
J71: التاريخ | L71: =K4 -> 2021-04-13 | P71: التاريخ | R71: =K4 -> 2021-04-13
J72: قبل التسحيب | P72: قبل التسحيب
J73: صافي الكمية | P73: صافي الكمية
J74: عدد الصدر | P74: عدد الصدر
J75: النسبة | L75: =L73/L72 ->  | P75: النسبة | R75: =R73/R72 -> 

Sheet 14
J3: الاسم | K3: المصريين
J4: التاريخ | K4: ='13'!K4+1 -> 2021-04-14 | W4: اليوم | X4: =K4 -> 2021-04-14
J6: قبل التسحيب | L6: مسحب مع خملة | N6: مسحب احمر | P6: مسحب سوبر | R6: مسحب صحن | T6: مسحب كامل مجمد | V6: صافي | W6: العدد | X6: النسبة
J7: عدد | K7: الصافي | L7: عدد | M7: الصافي | N7: عدد | O7: الصافي | P7: عدد | Q7: الصافي | R7: عدد | S7: الصافي | T7: عدد | U7: الصافي | V7: الكمية
J8: 17 | K8: 957 | L8: 50 | M8: 458 | N8: 25 | O8: 228 | P8: 12 | Q8: 278 | R8: 11 | S8: 114 | T8: 19 | U8: 358
J23: =SUM(J8:J22) -> 17 | K23: =SUM(K8:K22)-(J23*0.9) -> 941.7 | L23: =SUM(L8:L22) -> 50 | M23: =SUM(M8:M22)-(L23*0.9) -> 413 | N23: =SUM(N8:N22) -> 25 | O23: =SUM(O8:O22)-(N23*0.9) -> 205.5 | P23: =SUM(P8:P22) -> 12 | Q23: =SUM(Q8:Q22)-(P23*0.9) -> 267.2 | R23: =SUM(R8:R22) -> 11 | S23: =SUM(S8:S22)-(R23*0.9) -> 104.1 | T23: =SUM(T8:T22) -> 19 | U23: =SUM(U8:U22)-(T23*1.07) -> 337.67 | V23: =SUM(M23+O23+Q23+S23+U23) -> 1327.47 | W23: =SUM(L23+N23+P23+R23)*10 -> 980 | X23: =V23/K23 -> 1.409652756
J25: الاسم | K25: مزيد
J26: التاريخ | K26: =K4 -> 2021-04-14 | W26: اليوم | X26: =K26 -> 2021-04-14
J28: قبل التسحيب | L28: مسحب مع خملة | N28: مسحب احمر | P28: مسحب سوبر | R28: مسحب صحن | T28: مسحب كامل مجمد | V28: صافي | W28: العدد | X28: النسبة
J29: عدد | K29: الصافي | L29: عدد | M29: الصافي | N29: عدد | O29: الصافي | P29: عدد | Q29: الصافي | R29: عدد | S29: الصافي | T29: عدد | U29: الصافي | V29: الكمية
J30: 17 | K30: 548 | L30: 50 | M30: 457 | N30: 25 | O30: 255 | P30: 12 | Q30: 659 | R30: 11 | S30: 214 | T30: 19 | U30: 23
J45: =SUM(J30:J44) -> 17 | K45: =SUM(K30:K44)-(J45*0.9) -> 532.7 | L45: =SUM(L30:L44) -> 50 | M45: =SUM(M30:M44)-(L45*0.9) -> 412 | N45: =SUM(N30:N44) -> 25 | O45: =SUM(O30:O44)-(N45*0.9) -> 232.5 | P45: =SUM(P30:P44) -> 12 | Q45: =SUM(Q30:Q44)-(P45*0.9) -> 648.2 | R45: =SUM(R30:R44) -> 11 | S45: =SUM(S30:S44)-(R45*0.9) -> 204.1 | T45: =SUM(T30:T44) -> 19 | U45: =SUM(U30:U44)-(T45*1.07) -> 2.67 | V45: =SUM(M45+O45+Q45+S45+U45) -> 1499.47 | W45: =SUM(L45+N45+P45+R45)*10 -> 980 | X45: =V45/K45 -> 2.814848883
J47: الاسم | K47: الشمري
J48: التاريخ | K48: =K4 -> 2021-04-14 | W48: اليوم | X48: =K48 -> 2021-04-14
J50: قبل التسحيب | L50: مسحب مع خملة | N50: مسحب احمر | P50: مسحب سوبر | R50: مسحب صحن | T50: مسحب كامل مجمد | V50: صافي | W50: العدد | X50: النسبة
J51: عدد | K51: الصافي | L51: عدد | M51: الصافي | N51: عدد | O51: الصافي | P51: عدد | Q51: الصافي | R51: عدد | S51: الصافي | T51: عدد | U51: الصافي | V51: الكمية
J52: 17 | K52: 458 | L52: 50 | M52: 547 | N52: 25 | O52: 224 | P52: 12 | Q52: 48 | R52: 11 | S52: 554 | T52: 19 | U52: 265
J67: =SUM(J52:J66) -> 17 | K67: =SUM(K52:K66)-(J67*0.9) -> 442.7 | L67: =SUM(L52:L66) -> 50 | M67: =SUM(M52:M66)-(L67*0.9) -> 502 | N67: =SUM(N52:N66) -> 25 | O67: =SUM(O52:O66)-(N67*0.9) -> 201.5 | P67: =SUM(P52:P66) -> 12 | Q67: =SUM(Q52:Q66)-(P67*0.9) -> 37.2 | R67: =SUM(R52:R66) -> 11 | S67: =SUM(S52:S66)-(R67*0.9) -> 544.1 | T67: =SUM(T52:T66) -> 19 | U67: =SUM(U52:U66)-(T67*1.07) -> 244.67 | V67: =SUM(M67+O67+Q67+S67+U67) -> 1529.47 | W67: =SUM(L67+N67+P67+R67)*10 -> 980 | X67: =V67/K67 -> 3.454867856
J70: الاسم | L70: ابراهيم | P70: الاسم | R70: السوريين
J71: التاريخ | L71: =K4 -> 2021-04-14 | P71: التاريخ | R71: =K4 -> 2021-04-14
J72: قبل التسحيب | P72: قبل التسحيب
J73: صافي الكمية | P73: صافي الكمية
J74: عدد الصدر | P74: عدد الصدر
J75: النسبة | L75: =L73/L72 ->  | P75: النسبة | R75: =R73/R72 -> 

Sheet 15
J3: الاسم | K3: المصريين
J4: التاريخ | K4: ='14'!K4+1 -> 2021-04-15 | W4: اليوم | X4: =K4 -> 2021-04-15
J6: قبل التسحيب | L6: مسحب مع خملة | N6: مسحب احمر | P6: مسحب سوبر | R6: مسحب صحن | T6: مسحب كامل مجمد | V6: صافي | W6: العدد | X6: النسبة
J7: عدد | K7: الصافي | L7: عدد | M7: الصافي | N7: عدد | O7: الصافي | P7: عدد | Q7: الصافي | R7: عدد | S7: الصافي | T7: عدد | U7: الصافي | V7: الكمية
J8: 17 | K8: 957 | L8: 50 | M8: 458 | N8: 25 | O8: 228 | P8: 12 | Q8: 278 | R8: 11 | S8: 114 | T8: 19 | U8: 358
J23: =SUM(J8:J22) -> 17 | K23: =SUM(K8:K22)-(J23*0.9) -> 941.7 | L23: =SUM(L8:L22) -> 50 | M23: =SUM(M8:M22)-(L23*0.9) -> 413 | N23: =SUM(N8:N22) -> 25 | O23: =SUM(O8:O22)-(N23*0.9) -> 205.5 | P23: =SUM(P8:P22) -> 12 | Q23: =SUM(Q8:Q22)-(P23*0.9) -> 267.2 | R23: =SUM(R8:R22) -> 11 | S23: =SUM(S8:S22)-(R23*0.9) -> 104.1 | T23: =SUM(T8:T22) -> 19 | U23: =SUM(U8:U22)-(T23*1.07) -> 337.67 | V23: =SUM(M23+O23+Q23+S23+U23) -> 1327.47 | W23: =SUM(L23+N23+P23+R23)*10 -> 980 | X23: =V23/K23 -> 1.409652756
J25: الاسم | K25: مزيد
J26: التاريخ | K26: =K4 -> 2021-04-15 | W26: اليوم | X26: =K26 -> 2021-04-15
J28: قبل التسحيب | L28: مسحب مع خملة | N28: مسحب احمر | P28: مسحب سوبر | R28: مسحب صحن | T28: مسحب كامل مجمد | V28: صافي | W28: العدد | X28: النسبة
J29: عدد | K29: الصافي | L29: عدد | M29: الصافي | N29: عدد | O29: الصافي | P29: عدد | Q29: الصافي | R29: عدد | S29: الصافي | T29: عدد | U29: الصافي | V29: الكمية
J30: 17 | K30: 548 | L30: 50 | M30: 457 | N30: 25 | O30: 255 | P30: 12 | Q30: 659 | R30: 11 | S30: 214 | T30: 19 | U30: 23
J45: =SUM(J30:J44) -> 17 | K45: =SUM(K30:K44)-(J45*0.9) -> 532.7 | L45: =SUM(L30:L44) -> 50 | M45: =SUM(M30:M44)-(L45*0.9) -> 412 | N45: =SUM(N30:N44) -> 25 | O45: =SUM(O30:O44)-(N45*0.9) -> 232.5 | P45: =SUM(P30:P44) -> 12 | Q45: =SUM(Q30:Q44)-(P45*0.9) -> 648.2 | R45: =SUM(R30:R44) -> 11 | S45: =SUM(S30:S44)-(R45*0.9) -> 204.1 | T45: =SUM(T30:T44) -> 19 | U45: =SUM(U30:U44)-(T45*1.07) -> 2.67 | V45: =SUM(M45+O45+Q45+S45+U45) -> 1499.47 | W45: =SUM(L45+N45+P45+R45)*10 -> 980 | X45: =V45/K45 -> 2.814848883
J47: الاسم | K47: الشمري
J48: التاريخ | K48: =K4 -> 2021-04-15 | W48: اليوم | X48: =K48 -> 2021-04-15
J50: قبل التسحيب | L50: مسحب مع خملة | N50: مسحب احمر | P50: مسحب سوبر | R50: مسحب صحن | T50: مسحب كامل مجمد | V50: صافي | W50: العدد | X50: النسبة
J51: عدد | K51: الصافي | L51: عدد | M51: الصافي | N51: عدد | O51: الصافي | P51: عدد | Q51: الصافي | R51: عدد | S51: الصافي | T51: عدد | U51: الصافي | V51: الكمية
J52: 17 | K52: 458 | L52: 50 | M52: 547 | N52: 25 | O52: 224 | P52: 12 | Q52: 48 | R52: 11 | S52: 554 | T52: 19 | U52: 265
J67: =SUM(J52:J66) -> 17 | K67: =SUM(K52:K66)-(J67*0.9) -> 442.7 | L67: =SUM(L52:L66) -> 50 | M67: =SUM(M52:M66)-(L67*0.9) -> 502 | N67: =SUM(N52:N66) -> 25 | O67: =SUM(O52:O66)-(N67*0.9) -> 201.5 | P67: =SUM(P52:P66) -> 12 | Q67: =SUM(Q52:Q66)-(P67*0.9) -> 37.2 | R67: =SUM(R52:R66) -> 11 | S67: =SUM(S52:S66)-(R67*0.9) -> 544.1 | T67: =SUM(T52:T66) -> 19 | U67: =SUM(U52:U66)-(T67*1.07) -> 244.67 | V67: =SUM(M67+O67+Q67+S67+U67) -> 1529.47 | W67: =SUM(L67+N67+P67+R67)*10 -> 980 | X67: =V67/K67 -> 3.454867856
J70: الاسم | L70: ابراهيم | P70: الاسم | R70: السوريين
J71: التاريخ | L71: =K4 -> 2021-04-15 | P71: التاريخ | R71: =K4 -> 2021-04-15
J72: قبل التسحيب | P72: قبل التسحيب
J73: صافي الكمية | P73: صافي الكمية
J74: عدد الصدر | P74: عدد الصدر
J75: النسبة | L75: =L73/L72 ->  | P75: النسبة | R75: =R73/R72 -> 

Sheet 16
J3: الاسم | K3: المصريين
J4: التاريخ | K4: ='15'!K4+1 -> 2021-04-16 | W4: اليوم | X4: =K4 -> 2021-04-16
J6: قبل التسحيب | L6: مسحب مع خملة | N6: مسحب احمر | P6: مسحب سوبر | R6: مسحب صحن | T6: مسحب كامل مجمد | V6: صافي | W6: العدد | X6: النسبة
J7: عدد | K7: الصافي | L7: عدد | M7: الصافي | N7: عدد | O7: الصافي | P7: عدد | Q7: الصافي | R7: عدد | S7: الصافي | T7: عدد | U7: الصافي | V7: الكمية
J8: 17 | K8: 957 | L8: 50 | M8: 458 | N8: 25 | O8: 228 | P8: 12 | Q8: 278 | R8: 11 | S8: 114 | T8: 19 | U8: 358
J23: =SUM(J8:J22) -> 17 | K23: =SUM(K8:K22)-(J23*0.9) -> 941.7 | L23: =SUM(L8:L22) -> 50 | M23: =SUM(M8:M22)-(L23*0.9) -> 413 | N23: =SUM(N8:N22) -> 25 | O23: =SUM(O8:O22)-(N23*0.9) -> 205.5 | P23: =SUM(P8:P22) -> 12 | Q23: =SUM(Q8:Q22)-(P23*0.9) -> 267.2 | R23: =SUM(R8:R22) -> 11 | S23: =SUM(S8:S22)-(R23*0.9) -> 104.1 | T23: =SUM(T8:T22) -> 19 | U23: =SUM(U8:U22)-(T23*1.07) -> 337.67 | V23: =SUM(M23+O23+Q23+S23+U23) -> 1327.47 | W23: =SUM(L23+N23+P23+R23)*10 -> 980 | X23: =V23/K23 -> 1.409652756
J25: الاسم | K25: مزيد
J26: التاريخ | K26: =K4 -> 2021-04-16 | W26: اليوم | X26: =K26 -> 2021-04-16
J28: قبل التسحيب | L28: مسحب مع خملة | N28: مسحب احمر | P28: مسحب سوبر | R28: مسحب صحن | T28: مسحب كامل مجمد | V28: صافي | W28: العدد | X28: النسبة
J29: عدد | K29: الصافي | L29: عدد | M29: الصافي | N29: عدد | O29: الصافي | P29: عدد | Q29: الصافي | R29: عدد | S29: الصافي | T29: عدد | U29: الصافي | V29: الكمية
J30: 17 | K30: 548 | L30: 50 | M30: 457 | N30: 25 | O30: 255 | P30: 12 | Q30: 659 | R30: 11 | S30: 214 | T30: 19 | U30: 23
J45: =SUM(J30:J44) -> 17 | K45: =SUM(K30:K44)-(J45*0.9) -> 532.7 | L45: =SUM(L30:L44) -> 50 | M45: =SUM(M30:M44)-(L45*0.9) -> 412 | N45: =SUM(N30:N44) -> 25 | O45: =SUM(O30:O44)-(N45*0.9) -> 232.5 | P45: =SUM(P30:P44) -> 12 | Q45: =SUM(Q30:Q44)-(P45*0.9) -> 648.2 | R45: =SUM(R30:R44) -> 11 | S45: =SUM(S30:S44)-(R45*0.9) -> 204.1 | T45: =SUM(T30:T44) -> 19 | U45: =SUM(U30:U44)-(T45*1.07) -> 2.67 | V45: =SUM(M45+O45+Q45+S45+U45) -> 1499.47 | W45: =SUM(L45+N45+P45+R45)*10 -> 980 | X45: =V45/K45 -> 2.814848883
J47: الاسم | K47: الشمري
J48: التاريخ | K48: =K4 -> 2021-04-16 | W48: اليوم | X48: =K48 -> 2021-04-16
J50: قبل التسحيب | L50: مسحب مع خملة | N50: مسحب احمر | P50: مسحب سوبر | R50: مسحب صحن | T50: مسحب كامل مجمد | V50: صافي | W50: العدد | X50: النسبة
J51: عدد | K51: الصافي | L51: عدد | M51: الصافي | N51: عدد | O51: الصافي | P51: عدد | Q51: الصافي | R51: عدد | S51: الصافي | T51: عدد | U51: الصافي | V51: الكمية
J52: 17 | K52: 458 | L52: 50 | M52: 547 | N52: 25 | O52: 224 | P52: 12 | Q52: 48 | R52: 11 | S52: 554 | T52: 19 | U52: 265
J67: =SUM(J52:J66) -> 17 | K67: =SUM(K52:K66)-(J67*0.9) -> 442.7 | L67: =SUM(L52:L66) -> 50 | M67: =SUM(M52:M66)-(L67*0.9) -> 502 | N67: =SUM(N52:N66) -> 25 | O67: =SUM(O52:O66)-(N67*0.9) -> 201.5 | P67: =SUM(P52:P66) -> 12 | Q67: =SUM(Q52:Q66)-(P67*0.9) -> 37.2 | R67: =SUM(R52:R66) -> 11 | S67: =SUM(S52:S66)-(R67*0.9) -> 544.1 | T67: =SUM(T52:T66) -> 19 | U67: =SUM(U52:U66)-(T67*1.07) -> 244.67 | V67: =SUM(M67+O67+Q67+S67+U67) -> 1529.47 | W67: =SUM(L67+N67+P67+R67)*10 -> 980 | X67: =V67/K67 -> 3.454867856
J70: الاسم | L70: ابراهيم | P70: الاسم | R70: السوريين
J71: التاريخ | L71: =K4 -> 2021-04-16 | P71: التاريخ | R71: =K4 -> 2021-04-16
J72: قبل التسحيب | P72: قبل التسحيب
J73: صافي الكمية | P73: صافي الكمية
J74: عدد الصدر | P74: عدد الصدر
J75: النسبة | L75: =L73/L72 ->  | P75: النسبة | R75: =R73/R72 -> 

Sheet 17
J3: الاسم | K3: المصريين
J4: التاريخ | K4: ='16'!K4+1 -> 2021-04-17 | W4: اليوم | X4: =K4 -> 2021-04-17
J6: قبل التسحيب | L6: مسحب مع خملة | N6: مسحب احمر | P6: مسحب سوبر | R6: مسحب صحن | T6: مسحب كامل مجمد | V6: صافي | W6: العدد | X6: النسبة
J7: عدد | K7: الصافي | L7: عدد | M7: الصافي | N7: عدد | O7: الصافي | P7: عدد | Q7: الصافي | R7: عدد | S7: الصافي | T7: عدد | U7: الصافي | V7: الكمية
J8: 17 | K8: 957 | L8: 50 | M8: 458 | N8: 25 | O8: 228 | P8: 12 | Q8: 278 | R8: 11 | S8: 114 | T8: 19 | U8: 358
J23: =SUM(J8:J22) -> 17 | K23: =SUM(K8:K22)-(J23*0.9) -> 941.7 | L23: =SUM(L8:L22) -> 50 | M23: =SUM(M8:M22)-(L23*0.9) -> 413 | N23: =SUM(N8:N22) -> 25 | O23: =SUM(O8:O22)-(N23*0.9) -> 205.5 | P23: =SUM(P8:P22) -> 12 | Q23: =SUM(Q8:Q22)-(P23*0.9) -> 267.2 | R23: =SUM(R8:R22) -> 11 | S23: =SUM(S8:S22)-(R23*0.9) -> 104.1 | T23: =SUM(T8:T22) -> 19 | U23: =SUM(U8:U22)-(T23*1.07) -> 337.67 | V23: =SUM(M23+O23+Q23+S23+U23) -> 1327.47 | W23: =SUM(L23+N23+P23+R23)*10 -> 980 | X23: =V23/K23 -> 1.409652756
J25: الاسم | K25: مزيد
J26: التاريخ | K26: =K4 -> 2021-04-17 | W26: اليوم | X26: =K26 -> 2021-04-17
J28: قبل التسحيب | L28: مسحب مع خملة | N28: مسحب احمر | P28: مسحب سوبر | R28: مسحب صحن | T28: مسحب كامل مجمد | V28: صافي | W28: العدد | X28: النسبة
J29: عدد | K29: الصافي | L29: عدد | M29: الصافي | N29: عدد | O29: الصافي | P29: عدد | Q29: الصافي | R29: عدد | S29: الصافي | T29: عدد | U29: الصافي | V29: الكمية
J30: 17 | K30: 548 | L30: 50 | M30: 457 | N30: 25 | O30: 255 | P30: 12 | Q30: 659 | R30: 11 | S30: 214 | T30: 19 | U30: 23
J45: =SUM(J30:J44) -> 17 | K45: =SUM(K30:K44)-(J45*0.9) -> 532.7 | L45: =SUM(L30:L44) -> 50 | M45: =SUM(M30:M44)-(L45*0.9) -> 412 | N45: =SUM(N30:N44) -> 25 | O45: =SUM(O30:O44)-(N45*0.9) -> 232.5 | P45: =SUM(P30:P44) -> 12 | Q45: =SUM(Q30:Q44)-(P45*0.9) -> 648.2 | R45: =SUM(R30:R44) -> 11 | S45: =SUM(S30:S44)-(R45*0.9) -> 204.1 | T45: =SUM(T30:T44) -> 19 | U45: =SUM(U30:U44)-(T45*1.07) -> 2.67 | V45: =SUM(M45+O45+Q45+S45+U45) -> 1499.47 | W45: =SUM(L45+N45+P45+R45)*10 -> 980 | X45: =V45/K45 -> 2.814848883
J47: الاسم | K47: الشمري
J48: التاريخ | K48: =K4 -> 2021-04-17 | W48: اليوم | X48: =K48 -> 2021-04-17
J50: قبل التسحيب | L50: مسحب مع خملة | N50: مسحب احمر | P50: مسحب سوبر | R50: مسحب صحن | T50: مسحب كامل مجمد | V50: صافي | W50: العدد | X50: النسبة
J51: عدد | K51: الصافي | L51: عدد | M51: الصافي | N51: عدد | O51: الصافي | P51: عدد | Q51: الصافي | R51: عدد | S51: الصافي | T51: عدد | U51: الصافي | V51: الكمية
J52: 17 | K52: 458 | L52: 50 | M52: 547 | N52: 25 | O52: 224 | P52: 12 | Q52: 48 | R52: 11 | S52: 554 | T52: 19 | U52: 265
J67: =SUM(J52:J66) -> 17 | K67: =SUM(K52:K66)-(J67*0.9) -> 442.7 | L67: =SUM(L52:L66) -> 50 | M67: =SUM(M52:M66)-(L67*0.9) -> 502 | N67: =SUM(N52:N66) -> 25 | O67: =SUM(O52:O66)-(N67*0.9) -> 201.5 | P67: =SUM(P52:P66) -> 12 | Q67: =SUM(Q52:Q66)-(P67*0.9) -> 37.2 | R67: =SUM(R52:R66) -> 11 | S67: =SUM(S52:S66)-(R67*0.9) -> 544.1 | T67: =SUM(T52:T66) -> 19 | U67: =SUM(U52:U66)-(T67*1.07) -> 244.67 | V67: =SUM(M67+O67+Q67+S67+U67) -> 1529.47 | W67: =SUM(L67+N67+P67+R67)*10 -> 980 | X67: =V67/K67 -> 3.454867856
J70: الاسم | L70: ابراهيم | P70: الاسم | R70: السوريين
J71: التاريخ | L71: =K4 -> 2021-04-17 | P71: التاريخ | R71: =K4 -> 2021-04-17
J72: قبل التسحيب | P72: قبل التسحيب
J73: صافي الكمية | P73: صافي الكمية
J74: عدد الصدر | P74: عدد الصدر
J75: النسبة | L75: =L73/L72 ->  | P75: النسبة | R75: =R73/R72 -> 

Sheet 18
J3: الاسم | K3: المصريين
J4: التاريخ | K4: ='17'!K4+1 -> 2021-04-18 | W4: اليوم | X4: =K4 -> 2021-04-18
J6: قبل التسحيب | L6: مسحب مع خملة | N6: مسحب احمر | P6: مسحب سوبر | R6: مسحب صحن | T6: مسحب كامل مجمد | V6: صافي | W6: العدد | X6: النسبة
J7: عدد | K7: الصافي | L7: عدد | M7: الصافي | N7: عدد | O7: الصافي | P7: عدد | Q7: الصافي | R7: عدد | S7: الصافي | T7: عدد | U7: الصافي | V7: الكمية
J8: 17 | K8: 957 | L8: 50 | M8: 458 | N8: 25 | O8: 228 | P8: 12 | Q8: 278 | R8: 11 | S8: 114 | T8: 19 | U8: 358
J23: =SUM(J8:J22) -> 17 | K23: =SUM(K8:K22)-(J23*0.9) -> 941.7 | L23: =SUM(L8:L22) -> 50 | M23: =SUM(M8:M22)-(L23*0.9) -> 413 | N23: =SUM(N8:N22) -> 25 | O23: =SUM(O8:O22)-(N23*0.9) -> 205.5 | P23: =SUM(P8:P22) -> 12 | Q23: =SUM(Q8:Q22)-(P23*0.9) -> 267.2 | R23: =SUM(R8:R22) -> 11 | S23: =SUM(S8:S22)-(R23*0.9) -> 104.1 | T23: =SUM(T8:T22) -> 19 | U23: =SUM(U8:U22)-(T23*1.07) -> 337.67 | V23: =SUM(M23+O23+Q23+S23+U23) -> 1327.47 | W23: =SUM(L23+N23+P23+R23)*10 -> 980 | X23: =V23/K23 -> 1.409652756
J25: الاسم | K25: مزيد
J26: التاريخ | K26: =K4 -> 2021-04-18 | W26: اليوم | X26: =K26 -> 2021-04-18
J28: قبل التسحيب | L28: مسحب مع خملة | N28: مسحب احمر | P28: مسحب سوبر | R28: مسحب صحن | T28: مسحب كامل مجمد | V28: صافي | W28: العدد | X28: النسبة
J29: عدد | K29: الصافي | L29: عدد | M29: الصافي | N29: عدد | O29: الصافي | P29: عدد | Q29: الصافي | R29: عدد | S29: الصافي | T29: عدد | U29: الصافي | V29: الكمية
J30: 17 | K30: 548 | L30: 50 | M30: 457 | N30: 25 | O30: 255 | P30: 12 | Q30: 659 | R30: 11 | S30: 214 | T30: 19 | U30: 23
J45: =SUM(J30:J44) -> 17 | K45: =SUM(K30:K44)-(J45*0.9) -> 532.7 | L45: =SUM(L30:L44) -> 50 | M45: =SUM(M30:M44)-(L45*0.9) -> 412 | N45: =SUM(N30:N44) -> 25 | O45: =SUM(O30:O44)-(N45*0.9) -> 232.5 | P45: =SUM(P30:P44) -> 12 | Q45: =SUM(Q30:Q44)-(P45*0.9) -> 648.2 | R45: =SUM(R30:R44) -> 11 | S45: =SUM(S30:S44)-(R45*0.9) -> 204.1 | T45: =SUM(T30:T44) -> 19 | U45: =SUM(U30:U44)-(T45*1.07) -> 2.67 | V45: =SUM(M45+O45+Q45+S45+U45) -> 1499.47 | W45: =SUM(L45+N45+P45+R45)*10 -> 980 | X45: =V45/K45 -> 2.814848883
J47: الاسم | K47: الشمري
J48: التاريخ | K48: =K4 -> 2021-04-18 | W48: اليوم | X48: =K48 -> 2021-04-18
J50: قبل التسحيب | L50: مسحب مع خملة | N50: مسحب احمر | P50: مسحب سوبر | R50: مسحب صحن | T50: مسحب كامل مجمد | V50: صافي | W50: العدد | X50: النسبة
J51: عدد | K51: الصافي | L51: عدد | M51: الصافي | N51: عدد | O51: الصافي | P51: عدد | Q51: الصافي | R51: عدد | S51: الصافي | T51: عدد | U51: الصافي | V51: الكمية
J52: 17 | K52: 458 | L52: 50 | M52: 547 | N52: 25 | O52: 224 | P52: 12 | Q52: 48 | R52: 11 | S52: 554 | T52: 19 | U52: 265
J67: =SUM(J52:J66) -> 17 | K67: =SUM(K52:K66)-(J67*0.9) -> 442.7 | L67: =SUM(L52:L66) -> 50 | M67: =SUM(M52:M66)-(L67*0.9) -> 502 | N67: =SUM(N52:N66) -> 25 | O67: =SUM(O52:O66)-(N67*0.9) -> 201.5 | P67: =SUM(P52:P66) -> 12 | Q67: =SUM(Q52:Q66)-(P67*0.9) -> 37.2 | R67: =SUM(R52:R66) -> 11 | S67: =SUM(S52:S66)-(R67*0.9) -> 544.1 | T67: =SUM(T52:T66) -> 19 | U67: =SUM(U52:U66)-(T67*1.07) -> 244.67 | V67: =SUM(M67+O67+Q67+S67+U67) -> 1529.47 | W67: =SUM(L67+N67+P67+R67)*10 -> 980 | X67: =V67/K67 -> 3.454867856
J70: الاسم | L70: ابراهيم | P70: الاسم | R70: السوريين
J71: التاريخ | L71: =K4 -> 2021-04-18 | P71: التاريخ | R71: =K4 -> 2021-04-18
J72: قبل التسحيب | P72: قبل التسحيب
J73: صافي الكمية | P73: صافي الكمية
J74: عدد الصدر | P74: عدد الصدر
J75: النسبة | L75: =L73/L72 ->  | P75: النسبة | R75: =R73/R72 -> 

Sheet 19
J3: الاسم | K3: المصريين
J4: التاريخ | K4: ='18'!K4+1 -> 2021-04-19 | W4: اليوم | X4: =K4 -> 2021-04-19
J6: قبل التسحيب | L6: مسحب مع خملة | N6: مسحب احمر | P6: مسحب سوبر | R6: مسحب صحن | T6: مسحب كامل مجمد | V6: صافي | W6: العدد | X6: النسبة
J7: عدد | K7: الصافي | L7: عدد | M7: الصافي | N7: عدد | O7: الصافي | P7: عدد | Q7: الصافي | R7: عدد | S7: الصافي | T7: عدد | U7: الصافي | V7: الكمية
J8: 17 | K8: 957 | L8: 50 | M8: 458 | N8: 25 | O8: 228 | P8: 12 | Q8: 278 | R8: 11 | S8: 114 | T8: 19 | U8: 358
J23: =SUM(J8:J22) -> 17 | K23: =SUM(K8:K22)-(J23*0.9) -> 941.7 | L23: =SUM(L8:L22) -> 50 | M23: =SUM(M8:M22)-(L23*0.9) -> 413 | N23: =SUM(N8:N22) -> 25 | O23: =SUM(O8:O22)-(N23*0.9) -> 205.5 | P23: =SUM(P8:P22) -> 12 | Q23: =SUM(Q8:Q22)-(P23*0.9) -> 267.2 | R23: =SUM(R8:R22) -> 11 | S23: =SUM(S8:S22)-(R23*0.9) -> 104.1 | T23: =SUM(T8:T22) -> 19 | U23: =SUM(U8:U22)-(T23*1.07) -> 337.67 | V23: =SUM(M23+O23+Q23+S23+U23) -> 1327.47 | W23: =SUM(L23+N23+P23+R23)*10 -> 980 | X23: =V23/K23 -> 1.409652756
J25: الاسم | K25: مزيد
J26: التاريخ | K26: =K4 -> 2021-04-19 | W26: اليوم | X26: =K26 -> 2021-04-19
J28: قبل التسحيب | L28: مسحب مع خملة | N28: مسحب احمر | P28: مسحب سوبر | R28: مسحب صحن | T28: مسحب كامل مجمد | V28: صافي | W28: العدد | X28: النسبة
J29: عدد | K29: الصافي | L29: عدد | M29: الصافي | N29: عدد | O29: الصافي | P29: عدد | Q29: الصافي | R29: عدد | S29: الصافي | T29: عدد | U29: الصافي | V29: الكمية
J30: 17 | K30: 548 | L30: 50 | M30: 457 | N30: 25 | O30: 255 | P30: 12 | Q30: 659 | R30: 11 | S30: 214 | T30: 19 | U30: 23
J45: =SUM(J30:J44) -> 17 | K45: =SUM(K30:K44)-(J45*0.9) -> 532.7 | L45: =SUM(L30:L44) -> 50 | M45: =SUM(M30:M44)-(L45*0.9) -> 412 | N45: =SUM(N30:N44) -> 25 | O45: =SUM(O30:O44)-(N45*0.9) -> 232.5 | P45: =SUM(P30:P44) -> 12 | Q45: =SUM(Q30:Q44)-(P45*0.9) -> 648.2 | R45: =SUM(R30:R44) -> 11 | S45: =SUM(S30:S44)-(R45*0.9) -> 204.1 | T45: =SUM(T30:T44) -> 19 | U45: =SUM(U30:U44)-(T45*1.07) -> 2.67 | V45: =SUM(M45+O45+Q45+S45+U45) -> 1499.47 | W45: =SUM(L45+N45+P45+R45)*10 -> 980 | X45: =V45/K45 -> 2.814848883
J47: الاسم | K47: الشمري
J48: التاريخ | K48: =K4 -> 2021-04-19 | W48: اليوم | X48: =K48 -> 2021-04-19
J50: قبل التسحيب | L50: مسحب مع خملة | N50: مسحب احمر | P50: مسحب سوبر | R50: مسحب صحن | T50: مسحب كامل مجمد | V50: صافي | W50: العدد | X50: النسبة
J51: عدد | K51: الصافي | L51: عدد | M51: الصافي | N51: عدد | O51: الصافي | P51: عدد | Q51: الصافي | R51: عدد | S51: الصافي | T51: عدد | U51: الصافي | V51: الكمية
J52: 17 | K52: 458 | L52: 50 | M52: 547 | N52: 25 | O52: 224 | P52: 12 | Q52: 48 | R52: 11 | S52: 554 | T52: 19 | U52: 265
J67: =SUM(J52:J66) -> 17 | K67: =SUM(K52:K66)-(J67*0.9) -> 442.7 | L67: =SUM(L52:L66) -> 50 | M67: =SUM(M52:M66)-(L67*0.9) -> 502 | N67: =SUM(N52:N66) -> 25 | O67: =SUM(O52:O66)-(N67*0.9) -> 201.5 | P67: =SUM(P52:P66) -> 12 | Q67: =SUM(Q52:Q66)-(P67*0.9) -> 37.2 | R67: =SUM(R52:R66) -> 11 | S67: =SUM(S52:S66)-(R67*0.9) -> 544.1 | T67: =SUM(T52:T66) -> 19 | U67: =SUM(U52:U66)-(T67*1.07) -> 244.67 | V67: =SUM(M67+O67+Q67+S67+U67) -> 1529.47 | W67: =SUM(L67+N67+P67+R67)*10 -> 980 | X67: =V67/K67 -> 3.454867856
J70: الاسم | L70: ابراهيم | P70: الاسم | R70: السوريين
J71: التاريخ | L71: =K4 -> 2021-04-19 | P71: التاريخ | R71: =K4 -> 2021-04-19
J72: قبل التسحيب | P72: قبل التسحيب
J73: صافي الكمية | P73: صافي الكمية
J74: عدد الصدر | P74: عدد الصدر
J75: النسبة | L75: =L73/L72 ->  | P75: النسبة | R75: =R73/R72 -> 

Sheet 20
J3: الاسم | K3: المصريين
J4: التاريخ | K4: ='19'!K4+1 -> 2021-04-20 | W4: اليوم | X4: =K4 -> 2021-04-20
J6: قبل التسحيب | L6: مسحب مع خملة | N6: مسحب احمر | P6: مسحب سوبر | R6: مسحب صحن | T6: مسحب كامل مجمد | V6: صافي | W6: العدد | X6: النسبة
J7: عدد | K7: الصافي | L7: عدد | M7: الصافي | N7: عدد | O7: الصافي | P7: عدد | Q7: الصافي | R7: عدد | S7: الصافي | T7: عدد | U7: الصافي | V7: الكمية
J8: 17 | K8: 957 | L8: 50 | M8: 458 | N8: 25 | O8: 228 | P8: 12 | Q8: 278 | R8: 11 | S8: 114 | T8: 19 | U8: 358
J23: =SUM(J8:J22) -> 17 | K23: =SUM(K8:K22)-(J23*0.9) -> 941.7 | L23: =SUM(L8:L22) -> 50 | M23: =SUM(M8:M22)-(L23*0.9) -> 413 | N23: =SUM(N8:N22) -> 25 | O23: =SUM(O8:O22)-(N23*0.9) -> 205.5 | P23: =SUM(P8:P22) -> 12 | Q23: =SUM(Q8:Q22)-(P23*0.9) -> 267.2 | R23: =SUM(R8:R22) -> 11 | S23: =SUM(S8:S22)-(R23*0.9) -> 104.1 | T23: =SUM(T8:T22) -> 19 | U23: =SUM(U8:U22)-(T23*1.07) -> 337.67 | V23: =SUM(M23+O23+Q23+S23+U23) -> 1327.47 | W23: =SUM(L23+N23+P23+R23)*10 -> 980 | X23: =V23/K23 -> 1.409652756
J25: الاسم | K25: مزيد
J26: التاريخ | K26: =K4 -> 2021-04-20 | W26: اليوم | X26: =K26 -> 2021-04-20
J28: قبل التسحيب | L28: مسحب مع خملة | N28: مسحب احمر | P28: مسحب سوبر | R28: مسحب صحن | T28: مسحب كامل مجمد | V28: صافي | W28: العدد | X28: النسبة
J29: عدد | K29: الصافي | L29: عدد | M29: الصافي | N29: عدد | O29: الصافي | P29: عدد | Q29: الصافي | R29: عدد | S29: الصافي | T29: عدد | U29: الصافي | V29: الكمية
J30: 17 | K30: 548 | L30: 50 | M30: 457 | N30: 25 | O30: 255 | P30: 12 | Q30: 659 | R30: 11 | S30: 214 | T30: 19 | U30: 23
J45: =SUM(J30:J44) -> 17 | K45: =SUM(K30:K44)-(J45*0.9) -> 532.7 | L45: =SUM(L30:L44) -> 50 | M45: =SUM(M30:M44)-(L45*0.9) -> 412 | N45: =SUM(N30:N44) -> 25 | O45: =SUM(O30:O44)-(N45*0.9) -> 232.5 | P45: =SUM(P30:P44) -> 12 | Q45: =SUM(Q30:Q44)-(P45*0.9) -> 648.2 | R45: =SUM(R30:R44) -> 11 | S45: =SUM(S30:S44)-(R45*0.9) -> 204.1 | T45: =SUM(T30:T44) -> 19 | U45: =SUM(U30:U44)-(T45*1.07) -> 2.67 | V45: =SUM(M45+O45+Q45+S45+U45) -> 1499.47 | W45: =SUM(L45+N45+P45+R45)*10 -> 980 | X45: =V45/K45 -> 2.814848883
J47: الاسم | K47: الشمري
J48: التاريخ | K48: =K4 -> 2021-04-20 | W48: اليوم | X48: =K48 -> 2021-04-20
J50: قبل التسحيب | L50: مسحب مع خملة | N50: مسحب احمر | P50: مسحب سوبر | R50: مسحب صحن | T50: مسحب كامل مجمد | V50: صافي | W50: العدد | X50: النسبة
J51: عدد | K51: الصافي | L51: عدد | M51: الصافي | N51: عدد | O51: الصافي | P51: عدد | Q51: الصافي | R51: عدد | S51: الصافي | T51: عدد | U51: الصافي | V51: الكمية
J52: 17 | K52: 458 | L52: 50 | M52: 547 | N52: 25 | O52: 224 | P52: 12 | Q52: 48 | R52: 11 | S52: 554 | T52: 19 | U52: 265
J67: =SUM(J52:J66) -> 17 | K67: =SUM(K52:K66)-(J67*0.9) -> 442.7 | L67: =SUM(L52:L66) -> 50 | M67: =SUM(M52:M66)-(L67*0.9) -> 502 | N67: =SUM(N52:N66) -> 25 | O67: =SUM(O52:O66)-(N67*0.9) -> 201.5 | P67: =SUM(P52:P66) -> 12 | Q67: =SUM(Q52:Q66)-(P67*0.9) -> 37.2 | R67: =SUM(R52:R66) -> 11 | S67: =SUM(S52:S66)-(R67*0.9) -> 544.1 | T67: =SUM(T52:T66) -> 19 | U67: =SUM(U52:U66)-(T67*1.07) -> 244.67 | V67: =SUM(M67+O67+Q67+S67+U67) -> 1529.47 | W67: =SUM(L67+N67+P67+R67)*10 -> 980 | X67: =V67/K67 -> 3.454867856
J70: الاسم | L70: ابراهيم | P70: الاسم | R70: السوريين
J71: التاريخ | L71: =K4 -> 2021-04-20 | P71: التاريخ | R71: =K4 -> 2021-04-20
J72: قبل التسحيب | P72: قبل التسحيب
J73: صافي الكمية | P73: صافي الكمية
J74: عدد الصدر | P74: عدد الصدر
J75: النسبة | L75: =L73/L72 ->  | P75: النسبة | R75: =R73/R72 -> 

Sheet 21
J3: الاسم | K3: المصريين
J4: التاريخ | K4: ='20'!K4+1 -> 2021-04-21 | W4: اليوم | X4: =K4 -> 2021-04-21
J6: قبل التسحيب | L6: مسحب مع خملة | N6: مسحب احمر | P6: مسحب سوبر | R6: مسحب صحن | T6: مسحب كامل مجمد | V6: صافي | W6: العدد | X6: النسبة
J7: عدد | K7: الصافي | L7: عدد | M7: الصافي | N7: عدد | O7: الصافي | P7: عدد | Q7: الصافي | R7: عدد | S7: الصافي | T7: عدد | U7: الصافي | V7: الكمية
J8: 17 | K8: 957 | L8: 50 | M8: 458 | N8: 25 | O8: 228 | P8: 12 | Q8: 278 | R8: 11 | S8: 114 | T8: 19 | U8: 358
J23: =SUM(J8:J22) -> 17 | K23: =SUM(K8:K22)-(J23*0.9) -> 941.7 | L23: =SUM(L8:L22) -> 50 | M23: =SUM(M8:M22)-(L23*0.9) -> 413 | N23: =SUM(N8:N22) -> 25 | O23: =SUM(O8:O22)-(N23*0.9) -> 205.5 | P23: =SUM(P8:P22) -> 12 | Q23: =SUM(Q8:Q22)-(P23*0.9) -> 267.2 | R23: =SUM(R8:R22) -> 11 | S23: =SUM(S8:S22)-(R23*0.9) -> 104.1 | T23: =SUM(T8:T22) -> 19 | U23: =SUM(U8:U22)-(T23*1.07) -> 337.67 | V23: =SUM(M23+O23+Q23+S23+U23) -> 1327.47 | W23: =SUM(L23+N23+P23+R23)*10 -> 980 | X23: =V23/K23 -> 1.409652756
J25: الاسم | K25: مزيد
J26: التاريخ | K26: =K4 -> 2021-04-21 | W26: اليوم | X26: =K26 -> 2021-04-21
J28: قبل التسحيب | L28: مسحب مع خملة | N28: مسحب احمر | P28: مسحب سوبر | R28: مسحب صحن | T28: مسحب كامل مجمد | V28: صافي | W28: العدد | X28: النسبة
J29: عدد | K29: الصافي | L29: عدد | M29: الصافي | N29: عدد | O29: الصافي | P29: عدد | Q29: الصافي | R29: عدد | S29: الصافي | T29: عدد | U29: الصافي | V29: الكمية
J30: 17 | K30: 548 | L30: 50 | M30: 457 | N30: 25 | O30: 255 | P30: 12 | Q30: 659 | R30: 11 | S30: 214 | T30: 19 | U30: 23
J45: =SUM(J30:J44) -> 17 | K45: =SUM(K30:K44)-(J45*0.9) -> 532.7 | L45: =SUM(L30:L44) -> 50 | M45: =SUM(M30:M44)-(L45*0.9) -> 412 | N45: =SUM(N30:N44) -> 25 | O45: =SUM(O30:O44)-(N45*0.9) -> 232.5 | P45: =SUM(P30:P44) -> 12 | Q45: =SUM(Q30:Q44)-(P45*0.9) -> 648.2 | R45: =SUM(R30:R44) -> 11 | S45: =SUM(S30:S44)-(R45*0.9) -> 204.1 | T45: =SUM(T30:T44) -> 19 | U45: =SUM(U30:U44)-(T45*1.07) -> 2.67 | V45: =SUM(M45+O45+Q45+S45+U45) -> 1499.47 | W45: =SUM(L45+N45+P45+R45)*10 -> 980 | X45: =V45/K45 -> 2.814848883
J47: الاسم | K47: الشمري
J48: التاريخ | K48: =K4 -> 2021-04-21 | W48: اليوم | X48: =K48 -> 2021-04-21
J50: قبل التسحيب | L50: مسحب مع خملة | N50: مسحب احمر | P50: مسحب سوبر | R50: مسحب صحن | T50: مسحب كامل مجمد | V50: صافي | W50: العدد | X50: النسبة
J51: عدد | K51: الصافي | L51: عدد | M51: الصافي | N51: عدد | O51: الصافي | P51: عدد | Q51: الصافي | R51: عدد | S51: الصافي | T51: عدد | U51: الصافي | V51: الكمية
J52: 17 | K52: 458 | L52: 50 | M52: 547 | N52: 25 | O52: 224 | P52: 12 | Q52: 48 | R52: 11 | S52: 554 | T52: 19 | U52: 265
J67: =SUM(J52:J66) -> 17 | K67: =SUM(K52:K66)-(J67*0.9) -> 442.7 | L67: =SUM(L52:L66) -> 50 | M67: =SUM(M52:M66)-(L67*0.9) -> 502 | N67: =SUM(N52:N66) -> 25 | O67: =SUM(O52:O66)-(N67*0.9) -> 201.5 | P67: =SUM(P52:P66) -> 12 | Q67: =SUM(Q52:Q66)-(P67*0.9) -> 37.2 | R67: =SUM(R52:R66) -> 11 | S67: =SUM(S52:S66)-(R67*0.9) -> 544.1 | T67: =SUM(T52:T66) -> 19 | U67: =SUM(U52:U66)-(T67*1.07) -> 244.67 | V67: =SUM(M67+O67+Q67+S67+U67) -> 1529.47 | W67: =SUM(L67+N67+P67+R67)*10 -> 980 | X67: =V67/K67 -> 3.454867856
J70: الاسم | L70: ابراهيم | P70: الاسم | R70: السوريين
J71: التاريخ | L71: =K4 -> 2021-04-21 | P71: التاريخ | R71: =K4 -> 2021-04-21
J72: قبل التسحيب | P72: قبل التسحيب
J73: صافي الكمية | P73: صافي الكمية
J74: عدد الصدر | P74: عدد الصدر
J75: النسبة | L75: =L73/L72 ->  | P75: النسبة | R75: =R73/R72 -> 

Sheet 22
J3: الاسم | K3: المصريين
J4: التاريخ | K4: ='21'!K4+1 -> 2021-04-22 | W4: اليوم | X4: =K4 -> 2021-04-22
J6: قبل التسحيب | L6: مسحب مع خملة | N6: مسحب احمر | P6: مسحب سوبر | R6: مسحب صحن | T6: مسحب كامل مجمد | V6: صافي | W6: العدد | X6: النسبة
J7: عدد | K7: الصافي | L7: عدد | M7: الصافي | N7: عدد | O7: الصافي | P7: عدد | Q7: الصافي | R7: عدد | S7: الصافي | T7: عدد | U7: الصافي | V7: الكمية
J8: 17 | K8: 957 | L8: 50 | M8: 458 | N8: 25 | O8: 228 | P8: 12 | Q8: 278 | R8: 11 | S8: 114 | T8: 19 | U8: 358
J23: =SUM(J8:J22) -> 17 | K23: =SUM(K8:K22)-(J23*0.9) -> 941.7 | L23: =SUM(L8:L22) -> 50 | M23: =SUM(M8:M22)-(L23*0.9) -> 413 | N23: =SUM(N8:N22) -> 25 | O23: =SUM(O8:O22)-(N23*0.9) -> 205.5 | P23: =SUM(P8:P22) -> 12 | Q23: =SUM(Q8:Q22)-(P23*0.9) -> 267.2 | R23: =SUM(R8:R22) -> 11 | S23: =SUM(S8:S22)-(R23*0.9) -> 104.1 | T23: =SUM(T8:T22) -> 19 | U23: =SUM(U8:U22)-(T23*1.07) -> 337.67 | V23: =SUM(M23+O23+Q23+S23+U23) -> 1327.47 | W23: =SUM(L23+N23+P23+R23)*10 -> 980 | X23: =V23/K23 -> 1.409652756
J25: الاسم | K25: مزيد
J26: التاريخ | K26: =K4 -> 2021-04-22 | W26: اليوم | X26: =K26 -> 2021-04-22
J28: قبل التسحيب | L28: مسحب مع خملة | N28: مسحب احمر | P28: مسحب سوبر | R28: مسحب صحن | T28: مسحب كامل مجمد | V28: صافي | W28: العدد | X28: النسبة
J29: عدد | K29: الصافي | L29: عدد | M29: الصافي | N29: عدد | O29: الصافي | P29: عدد | Q29: الصافي | R29: عدد | S29: الصافي | T29: عدد | U29: الصافي | V29: الكمية
J30: 17 | K30: 548 | L30: 50 | M30: 457 | N30: 25 | O30: 255 | P30: 12 | Q30: 659 | R30: 11 | S30: 214 | T30: 19 | U30: 23
J45: =SUM(J30:J44) -> 17 | K45: =SUM(K30:K44)-(J45*0.9) -> 532.7 | L45: =SUM(L30:L44) -> 50 | M45: =SUM(M30:M44)-(L45*0.9) -> 412 | N45: =SUM(N30:N44) -> 25 | O45: =SUM(O30:O44)-(N45*0.9) -> 232.5 | P45: =SUM(P30:P44) -> 12 | Q45: =SUM(Q30:Q44)-(P45*0.9) -> 648.2 | R45: =SUM(R30:R44) -> 11 | S45: =SUM(S30:S44)-(R45*0.9) -> 204.1 | T45: =SUM(T30:T44) -> 19 | U45: =SUM(U30:U44)-(T45*1.07) -> 2.67 | V45: =SUM(M45+O45+Q45+S45+U45) -> 1499.47 | W45: =SUM(L45+N45+P45+R45)*10 -> 980 | X45: =V45/K45 -> 2.814848883
J47: الاسم | K47: الشمري
J48: التاريخ | K48: =K4 -> 2021-04-22 | W48: اليوم | X48: =K48 -> 2021-04-22
J50: قبل التسحيب | L50: مسحب مع خملة | N50: مسحب احمر | P50: مسحب سوبر | R50: مسحب صحن | T50: مسحب كامل مجمد | V50: صافي | W50: العدد | X50: النسبة
J51: عدد | K51: الصافي | L51: عدد | M51: الصافي | N51: عدد | O51: الصافي | P51: عدد | Q51: الصافي | R51: عدد | S51: الصافي | T51: عدد | U51: الصافي | V51: الكمية
J52: 17 | K52: 458 | L52: 50 | M52: 547 | N52: 25 | O52: 224 | P52: 12 | Q52: 48 | R52: 11 | S52: 554 | T52: 19 | U52: 265
J67: =SUM(J52:J66) -> 17 | K67: =SUM(K52:K66)-(J67*0.9) -> 442.7 | L67: =SUM(L52:L66) -> 50 | M67: =SUM(M52:M66)-(L67*0.9) -> 502 | N67: =SUM(N52:N66) -> 25 | O67: =SUM(O52:O66)-(N67*0.9) -> 201.5 | P67: =SUM(P52:P66) -> 12 | Q67: =SUM(Q52:Q66)-(P67*0.9) -> 37.2 | R67: =SUM(R52:R66) -> 11 | S67: =SUM(S52:S66)-(R67*0.9) -> 544.1 | T67: =SUM(T52:T66) -> 19 | U67: =SUM(U52:U66)-(T67*1.07) -> 244.67 | V67: =SUM(M67+O67+Q67+S67+U67) -> 1529.47 | W67: =SUM(L67+N67+P67+R67)*10 -> 980 | X67: =V67/K67 -> 3.454867856
J70: الاسم | L70: ابراهيم | P70: الاسم | R70: السوريين
J71: التاريخ | L71: =K4 -> 2021-04-22 | P71: التاريخ | R71: =K4 -> 2021-04-22
J72: قبل التسحيب | P72: قبل التسحيب
J73: صافي الكمية | P73: صافي الكمية
J74: عدد الصدر | P74: عدد الصدر
J75: النسبة | L75: =L73/L72 ->  | P75: النسبة | R75: =R73/R72 -> 

Sheet 23
J3: الاسم | K3: المصريين
J4: التاريخ | K4: ='22'!K4+1 -> 2021-04-23 | W4: اليوم | X4: =K4 -> 2021-04-23
J6: قبل التسحيب | L6: مسحب مع خملة | N6: مسحب احمر | P6: مسحب سوبر | R6: مسحب صحن | T6: مسحب كامل مجمد | V6: صافي | W6: العدد | X6: النسبة
J7: عدد | K7: الصافي | L7: عدد | M7: الصافي | N7: عدد | O7: الصافي | P7: عدد | Q7: الصافي | R7: عدد | S7: الصافي | T7: عدد | U7: الصافي | V7: الكمية
J8: 17 | K8: 957 | L8: 50 | M8: 458 | N8: 25 | O8: 228 | P8: 12 | Q8: 278 | R8: 11 | S8: 114 | T8: 19 | U8: 358
J23: =SUM(J8:J22) -> 17 | K23: =SUM(K8:K22)-(J23*0.9) -> 941.7 | L23: =SUM(L8:L22) -> 50 | M23: =SUM(M8:M22)-(L23*0.9) -> 413 | N23: =SUM(N8:N22) -> 25 | O23: =SUM(O8:O22)-(N23*0.9) -> 205.5 | P23: =SUM(P8:P22) -> 12 | Q23: =SUM(Q8:Q22)-(P23*0.9) -> 267.2 | R23: =SUM(R8:R22) -> 11 | S23: =SUM(S8:S22)-(R23*0.9) -> 104.1 | T23: =SUM(T8:T22) -> 19 | U23: =SUM(U8:U22)-(T23*1.07) -> 337.67 | V23: =SUM(M23+O23+Q23+S23+U23) -> 1327.47 | W23: =SUM(L23+N23+P23+R23)*10 -> 980 | X23: =V23/K23 -> 1.409652756
J25: الاسم | K25: مزيد
J26: التاريخ | K26: =K4 -> 2021-04-23 | W26: اليوم | X26: =K26 -> 2021-04-23
J28: قبل التسحيب | L28: مسحب مع خملة | N28: مسحب احمر | P28: مسحب سوبر | R28: مسحب صحن | T28: مسحب كامل مجمد | V28: صافي | W28: العدد | X28: النسبة
J29: عدد | K29: الصافي | L29: عدد | M29: الصافي | N29: عدد | O29: الصافي | P29: عدد | Q29: الصافي | R29: عدد | S29: الصافي | T29: عدد | U29: الصافي | V29: الكمية
J30: 17 | K30: 548 | L30: 50 | M30: 457 | N30: 25 | O30: 255 | P30: 12 | Q30: 659 | R30: 11 | S30: 214 | T30: 19 | U30: 23
J45: =SUM(J30:J44) -> 17 | K45: =SUM(K30:K44)-(J45*0.9) -> 532.7 | L45: =SUM(L30:L44) -> 50 | M45: =SUM(M30:M44)-(L45*0.9) -> 412 | N45: =SUM(N30:N44) -> 25 | O45: =SUM(O30:O44)-(N45*0.9) -> 232.5 | P45: =SUM(P30:P44) -> 12 | Q45: =SUM(Q30:Q44)-(P45*0.9) -> 648.2 | R45: =SUM(R30:R44) -> 11 | S45: =SUM(S30:S44)-(R45*0.9) -> 204.1 | T45: =SUM(T30:T44) -> 19 | U45: =SUM(U30:U44)-(T45*1.07) -> 2.67 | V45: =SUM(M45+O45+Q45+S45+U45) -> 1499.47 | W45: =SUM(L45+N45+P45+R45)*10 -> 980 | X45: =V45/K45 -> 2.814848883
J47: الاسم | K47: الشمري
J48: التاريخ | K48: =K4 -> 2021-04-23 | W48: اليوم | X48: =K48 -> 2021-04-23
J50: قبل التسحيب | L50: مسحب مع خملة | N50: مسحب احمر | P50: مسحب سوبر | R50: مسحب صحن | T50: مسحب كامل مجمد | V50: صافي | W50: العدد | X50: النسبة
J51: عدد | K51: الصافي | L51: عدد | M51: الصافي | N51: عدد | O51: الصافي | P51: عدد | Q51: الصافي | R51: عدد | S51: الصافي | T51: عدد | U51: الصافي | V51: الكمية
J52: 17 | K52: 458 | L52: 50 | M52: 547 | N52: 25 | O52: 224 | P52: 12 | Q52: 48 | R52: 11 | S52: 554 | T52: 19 | U52: 265
J67: =SUM(J52:J66) -> 17 | K67: =SUM(K52:K66)-(J67*0.9) -> 442.7 | L67: =SUM(L52:L66) -> 50 | M67: =SUM(M52:M66)-(L67*0.9) -> 502 | N67: =SUM(N52:N66) -> 25 | O67: =SUM(O52:O66)-(N67*0.9) -> 201.5 | P67: =SUM(P52:P66) -> 12 | Q67: =SUM(Q52:Q66)-(P67*0.9) -> 37.2 | R67: =SUM(R52:R66) -> 11 | S67: =SUM(S52:S66)-(R67*0.9) -> 544.1 | T67: =SUM(T52:T66) -> 19 | U67: =SUM(U52:U66)-(T67*1.07) -> 244.67 | V67: =SUM(M67+O67+Q67+S67+U67) -> 1529.47 | W67: =SUM(L67+N67+P67+R67)*10 -> 980 | X67: =V67/K67 -> 3.454867856
J70: الاسم | L70: ابراهيم | P70: الاسم | R70: السوريين
J71: التاريخ | L71: =K4 -> 2021-04-23 | P71: التاريخ | R71: =K4 -> 2021-04-23
J72: قبل التسحيب | P72: قبل التسحيب
J73: صافي الكمية | P73: صافي الكمية
J74: عدد الصدر | P74: عدد الصدر
J75: النسبة | L75: =L73/L72 ->  | P75: النسبة | R75: =R73/R72 -> 

Sheet 24
J3: الاسم | K3: المصريين
J4: التاريخ | K4: ='23'!K4+1 -> 2021-04-24 | W4: اليوم | X4: =K4 -> 2021-04-24
J6: قبل التسحيب | L6: مسحب مع خملة | N6: مسحب احمر | P6: مسحب سوبر | R6: مسحب صحن | T6: مسحب كامل مجمد | V6: صافي | W6: العدد | X6: النسبة
J7: عدد | K7: الصافي | L7: عدد | M7: الصافي | N7: عدد | O7: الصافي | P7: عدد | Q7: الصافي | R7: عدد | S7: الصافي | T7: عدد | U7: الصافي | V7: الكمية
J8: 17 | K8: 957 | L8: 50 | M8: 458 | N8: 25 | O8: 228 | P8: 12 | Q8: 278 | R8: 11 | S8: 114 | T8: 19 | U8: 358
J23: =SUM(J8:J22) -> 17 | K23: =SUM(K8:K22)-(J23*0.9) -> 941.7 | L23: =SUM(L8:L22) -> 50 | M23: =SUM(M8:M22)-(L23*0.9) -> 413 | N23: =SUM(N8:N22) -> 25 | O23: =SUM(O8:O22)-(N23*0.9) -> 205.5 | P23: =SUM(P8:P22) -> 12 | Q23: =SUM(Q8:Q22)-(P23*0.9) -> 267.2 | R23: =SUM(R8:R22) -> 11 | S23: =SUM(S8:S22)-(R23*0.9) -> 104.1 | T23: =SUM(T8:T22) -> 19 | U23: =SUM(U8:U22)-(T23*1.07) -> 337.67 | V23: =SUM(M23+O23+Q23+S23+U23) -> 1327.47 | W23: =SUM(L23+N23+P23+R23)*10 -> 980 | X23: =V23/K23 -> 1.409652756
J25: الاسم | K25: مزيد
J26: التاريخ | K26: =K4 -> 2021-04-24 | W26: اليوم | X26: =K26 -> 2021-04-24
J28: قبل التسحيب | L28: مسحب مع خملة | N28: مسحب احمر | P28: مسحب سوبر | R28: مسحب صحن | T28: مسحب كامل مجمد | V28: صافي | W28: العدد | X28: النسبة
J29: عدد | K29: الصافي | L29: عدد | M29: الصافي | N29: عدد | O29: الصافي | P29: عدد | Q29: الصافي | R29: عدد | S29: الصافي | T29: عدد | U29: الصافي | V29: الكمية
J30: 17 | K30: 548 | L30: 50 | M30: 457 | N30: 25 | O30: 255 | P30: 12 | Q30: 659 | R30: 11 | S30: 214 | T30: 19 | U30: 23
J45: =SUM(J30:J44) -> 17 | K45: =SUM(K30:K44)-(J45*0.9) -> 532.7 | L45: =SUM(L30:L44) -> 50 | M45: =SUM(M30:M44)-(L45*0.9) -> 412 | N45: =SUM(N30:N44) -> 25 | O45: =SUM(O30:O44)-(N45*0.9) -> 232.5 | P45: =SUM(P30:P44) -> 12 | Q45: =SUM(Q30:Q44)-(P45*0.9) -> 648.2 | R45: =SUM(R30:R44) -> 11 | S45: =SUM(S30:S44)-(R45*0.9) -> 204.1 | T45: =SUM(T30:T44) -> 19 | U45: =SUM(U30:U44)-(T45*1.07) -> 2.67 | V45: =SUM(M45+O45+Q45+S45+U45) -> 1499.47 | W45: =SUM(L45+N45+P45+R45)*10 -> 980 | X45: =V45/K45 -> 2.814848883
J47: الاسم | K47: الشمري
J48: التاريخ | K48: =K4 -> 2021-04-24 | W48: اليوم | X48: =K48 -> 2021-04-24
J50: قبل التسحيب | L50: مسحب مع خملة | N50: مسحب احمر | P50: مسحب سوبر | R50: مسحب صحن | T50: مسحب كامل مجمد | V50: صافي | W50: العدد | X50: النسبة
J51: عدد | K51: الصافي | L51: عدد | M51: الصافي | N51: عدد | O51: الصافي | P51: عدد | Q51: الصافي | R51: عدد | S51: الصافي | T51: عدد | U51: الصافي | V51: الكمية
J52: 17 | K52: 458 | L52: 50 | M52: 547 | N52: 25 | O52: 224 | P52: 12 | Q52: 48 | R52: 11 | S52: 554 | T52: 19 | U52: 265
J67: =SUM(J52:J66) -> 17 | K67: =SUM(K52:K66)-(J67*0.9) -> 442.7 | L67: =SUM(L52:L66) -> 50 | M67: =SUM(M52:M66)-(L67*0.9) -> 502 | N67: =SUM(N52:N66) -> 25 | O67: =SUM(O52:O66)-(N67*0.9) -> 201.5 | P67: =SUM(P52:P66) -> 12 | Q67: =SUM(Q52:Q66)-(P67*0.9) -> 37.2 | R67: =SUM(R52:R66) -> 11 | S67: =SUM(S52:S66)-(R67*0.9) -> 544.1 | T67: =SUM(T52:T66) -> 19 | U67: =SUM(U52:U66)-(T67*1.07) -> 244.67 | V67: =SUM(M67+O67+Q67+S67+U67) -> 1529.47 | W67: =SUM(L67+N67+P67+R67)*10 -> 980 | X67: =V67/K67 -> 3.454867856
J70: الاسم | L70: ابراهيم | P70: الاسم | R70: السوريين
J71: التاريخ | L71: =K4 -> 2021-04-24 | P71: التاريخ | R71: =K4 -> 2021-04-24
J72: قبل التسحيب | P72: قبل التسحيب
J73: صافي الكمية | P73: صافي الكمية
J74: عدد الصدر | P74: عدد الصدر
J75: النسبة | L75: =L73/L72 ->  | P75: النسبة | R75: =R73/R72 -> 

Sheet 25
J3: الاسم | K3: المصريين
J4: التاريخ | K4: ='24'!K4+1 -> 2021-04-25 | W4: اليوم | X4: =K4 -> 2021-04-25
J6: قبل التسحيب | L6: مسحب مع خملة | N6: مسحب احمر | P6: مسحب سوبر | R6: مسحب صحن | T6: مسحب كامل مجمد | V6: صافي | W6: العدد | X6: النسبة
J7: عدد | K7: الصافي | L7: عدد | M7: الصافي | N7: عدد | O7: الصافي | P7: عدد | Q7: الصافي | R7: عدد | S7: الصافي | T7: عدد | U7: الصافي | V7: الكمية
J8: 17 | K8: 957 | L8: 50 | M8: 458 | N8: 25 | O8: 228 | P8: 12 | Q8: 278 | R8: 11 | S8: 114 | T8: 19 | U8: 358
J23: =SUM(J8:J22) -> 17 | K23: =SUM(K8:K22)-(J23*0.9) -> 941.7 | L23: =SUM(L8:L22) -> 50 | M23: =SUM(M8:M22)-(L23*0.9) -> 413 | N23: =SUM(N8:N22) -> 25 | O23: =SUM(O8:O22)-(N23*0.9) -> 205.5 | P23: =SUM(P8:P22) -> 12 | Q23: =SUM(Q8:Q22)-(P23*0.9) -> 267.2 | R23: =SUM(R8:R22) -> 11 | S23: =SUM(S8:S22)-(R23*0.9) -> 104.1 | T23: =SUM(T8:T22) -> 19 | U23: =SUM(U8:U22)-(T23*1.07) -> 337.67 | V23: =SUM(M23+O23+Q23+S23+U23) -> 1327.47 | W23: =SUM(L23+N23+P23+R23)*10 -> 980 | X23: =V23/K23 -> 1.409652756
J25: الاسم | K25: مزيد
J26: التاريخ | K26: =K4 -> 2021-04-25 | W26: اليوم | X26: =K26 -> 2021-04-25
J28: قبل التسحيب | L28: مسحب مع خملة | N28: مسحب احمر | P28: مسحب سوبر | R28: مسحب صحن | T28: مسحب كامل مجمد | V28: صافي | W28: العدد | X28: النسبة
J29: عدد | K29: الصافي | L29: عدد | M29: الصافي | N29: عدد | O29: الصافي | P29: عدد | Q29: الصافي | R29: عدد | S29: الصافي | T29: عدد | U29: الصافي | V29: الكمية
J30: 17 | K30: 548 | L30: 50 | M30: 457 | N30: 25 | O30: 255 | P30: 12 | Q30: 659 | R30: 11 | S30: 214 | T30: 19 | U30: 23
J45: =SUM(J30:J44) -> 17 | K45: =SUM(K30:K44)-(J45*0.9) -> 532.7 | L45: =SUM(L30:L44) -> 50 | M45: =SUM(M30:M44)-(L45*0.9) -> 412 | N45: =SUM(N30:N44) -> 25 | O45: =SUM(O30:O44)-(N45*0.9) -> 232.5 | P45: =SUM(P30:P44) -> 12 | Q45: =SUM(Q30:Q44)-(P45*0.9) -> 648.2 | R45: =SUM(R30:R44) -> 11 | S45: =SUM(S30:S44)-(R45*0.9) -> 204.1 | T45: =SUM(T30:T44) -> 19 | U45: =SUM(U30:U44)-(T45*1.07) -> 2.67 | V45: =SUM(M45+O45+Q45+S45+U45) -> 1499.47 | W45: =SUM(L45+N45+P45+R45)*10 -> 980 | X45: =V45/K45 -> 2.814848883
J47: الاسم | K47: الشمري
J48: التاريخ | K48: =K4 -> 2021-04-25 | W48: اليوم | X48: =K48 -> 2021-04-25
J50: قبل التسحيب | L50: مسحب مع خملة | N50: مسحب احمر | P50: مسحب سوبر | R50: مسحب صحن | T50: مسحب كامل مجمد | V50: صافي | W50: العدد | X50: النسبة
J51: عدد | K51: الصافي | L51: عدد | M51: الصافي | N51: عدد | O51: الصافي | P51: عدد | Q51: الصافي | R51: عدد | S51: الصافي | T51: عدد | U51: الصافي | V51: الكمية
J52: 17 | K52: 458 | L52: 50 | M52: 547 | N52: 25 | O52: 224 | P52: 12 | Q52: 48 | R52: 11 | S52: 554 | T52: 19 | U52: 265
J67: =SUM(J52:J66) -> 17 | K67: =SUM(K52:K66)-(J67*0.9) -> 442.7 | L67: =SUM(L52:L66) -> 50 | M67: =SUM(M52:M66)-(L67*0.9) -> 502 | N67: =SUM(N52:N66) -> 25 | O67: =SUM(O52:O66)-(N67*0.9) -> 201.5 | P67: =SUM(P52:P66) -> 12 | Q67: =SUM(Q52:Q66)-(P67*0.9) -> 37.2 | R67: =SUM(R52:R66) -> 11 | S67: =SUM(S52:S66)-(R67*0.9) -> 544.1 | T67: =SUM(T52:T66) -> 19 | U67: =SUM(U52:U66)-(T67*1.07) -> 244.67 | V67: =SUM(M67+O67+Q67+S67+U67) -> 1529.47 | W67: =SUM(L67+N67+P67+R67)*10 -> 980 | X67: =V67/K67 -> 3.454867856
J70: الاسم | L70: ابراهيم | P70: الاسم | R70: السوريين
J71: التاريخ | L71: =K4 -> 2021-04-25 | P71: التاريخ | R71: =K4 -> 2021-04-25
J72: قبل التسحيب | P72: قبل التسحيب
J73: صافي الكمية | P73: صافي الكمية
J74: عدد الصدر | P74: عدد الصدر
J75: النسبة | L75: =L73/L72 ->  | P75: النسبة | R75: =R73/R72 -> 

Sheet 26
J3: الاسم | K3: المصريين
J4: التاريخ | K4: ='25'!K4+1 -> 2021-04-26 | W4: اليوم | X4: =K4 -> 2021-04-26
J6: قبل التسحيب | L6: مسحب مع خملة | N6: مسحب احمر | P6: مسحب سوبر | R6: مسحب صحن | T6: مسحب كامل مجمد | V6: صافي | W6: العدد | X6: النسبة
J7: عدد | K7: الصافي | L7: عدد | M7: الصافي | N7: عدد | O7: الصافي | P7: عدد | Q7: الصافي | R7: عدد | S7: الصافي | T7: عدد | U7: الصافي | V7: الكمية
J8: 17 | K8: 957 | L8: 50 | M8: 458 | N8: 25 | O8: 228 | P8: 12 | Q8: 278 | R8: 11 | S8: 114 | T8: 19 | U8: 358
J23: =SUM(J8:J22) -> 17 | K23: =SUM(K8:K22)-(J23*0.9) -> 941.7 | L23: =SUM(L8:L22) -> 50 | M23: =SUM(M8:M22)-(L23*0.9) -> 413 | N23: =SUM(N8:N22) -> 25 | O23: =SUM(O8:O22)-(N23*0.9) -> 205.5 | P23: =SUM(P8:P22) -> 12 | Q23: =SUM(Q8:Q22)-(P23*0.9) -> 267.2 | R23: =SUM(R8:R22) -> 11 | S23: =SUM(S8:S22)-(R23*0.9) -> 104.1 | T23: =SUM(T8:T22) -> 19 | U23: =SUM(U8:U22)-(T23*1.07) -> 337.67 | V23: =SUM(M23+O23+Q23+S23+U23) -> 1327.47 | W23: =SUM(L23+N23+P23+R23)*10 -> 980 | X23: =V23/K23 -> 1.409652756
J25: الاسم | K25: مزيد
J26: التاريخ | K26: =K4 -> 2021-04-26 | W26: اليوم | X26: =K26 -> 2021-04-26
J28: قبل التسحيب | L28: مسحب مع خملة | N28: مسحب احمر | P28: مسحب سوبر | R28: مسحب صحن | T28: مسحب كامل مجمد | V28: صافي | W28: العدد | X28: النسبة
J29: عدد | K29: الصافي | L29: عدد | M29: الصافي | N29: عدد | O29: الصافي | P29: عدد | Q29: الصافي | R29: عدد | S29: الصافي | T29: عدد | U29: الصافي | V29: الكمية
J30: 17 | K30: 548 | L30: 50 | M30: 457 | N30: 25 | O30: 255 | P30: 12 | Q30: 659 | R30: 11 | S30: 214 | T30: 19 | U30: 23
J45: =SUM(J30:J44) -> 17 | K45: =SUM(K30:K44)-(J45*0.9) -> 532.7 | L45: =SUM(L30:L44) -> 50 | M45: =SUM(M30:M44)-(L45*0.9) -> 412 | N45: =SUM(N30:N44) -> 25 | O45: =SUM(O30:O44)-(N45*0.9) -> 232.5 | P45: =SUM(P30:P44) -> 12 | Q45: =SUM(Q30:Q44)-(P45*0.9) -> 648.2 | R45: =SUM(R30:R44) -> 11 | S45: =SUM(S30:S44)-(R45*0.9) -> 204.1 | T45: =SUM(T30:T44) -> 19 | U45: =SUM(U30:U44)-(T45*1.07) -> 2.67 | V45: =SUM(M45+O45+Q45+S45+U45) -> 1499.47 | W45: =SUM(L45+N45+P45+R45)*10 -> 980 | X45: =V45/K45 -> 2.814848883
J47: الاسم | K47: الشمري
J48: التاريخ | K48: =K4 -> 2021-04-26 | W48: اليوم | X48: =K48 -> 2021-04-26
J50: قبل التسحيب | L50: مسحب مع خملة | N50: مسحب احمر | P50: مسحب سوبر | R50: مسحب صحن | T50: مسحب كامل مجمد | V50: صافي | W50: العدد | X50: النسبة
J51: عدد | K51: الصافي | L51: عدد | M51: الصافي | N51: عدد | O51: الصافي | P51: عدد | Q51: الصافي | R51: عدد | S51: الصافي | T51: عدد | U51: الصافي | V51: الكمية
J52: 17 | K52: 458 | L52: 50 | M52: 547 | N52: 25 | O52: 224 | P52: 12 | Q52: 48 | R52: 11 | S52: 554 | T52: 19 | U52: 265
J67: =SUM(J52:J66) -> 17 | K67: =SUM(K52:K66)-(J67*0.9) -> 442.7 | L67: =SUM(L52:L66) -> 50 | M67: =SUM(M52:M66)-(L67*0.9) -> 502 | N67: =SUM(N52:N66) -> 25 | O67: =SUM(O52:O66)-(N67*0.9) -> 201.5 | P67: =SUM(P52:P66) -> 12 | Q67: =SUM(Q52:Q66)-(P67*0.9) -> 37.2 | R67: =SUM(R52:R66) -> 11 | S67: =SUM(S52:S66)-(R67*0.9) -> 544.1 | T67: =SUM(T52:T66) -> 19 | U67: =SUM(U52:U66)-(T67*1.07) -> 244.67 | V67: =SUM(M67+O67+Q67+S67+U67) -> 1529.47 | W67: =SUM(L67+N67+P67+R67)*10 -> 980 | X67: =V67/K67 -> 3.454867856
J70: الاسم | L70: ابراهيم | P70: الاسم | R70: السوريين
J71: التاريخ | L71: =K4 -> 2021-04-26 | P71: التاريخ | R71: =K4 -> 2021-04-26
J72: قبل التسحيب | P72: قبل التسحيب
J73: صافي الكمية | P73: صافي الكمية
J74: عدد الصدر | P74: عدد الصدر
J75: النسبة | L75: =L73/L72 ->  | P75: النسبة | R75: =R73/R72 -> 

Sheet 27
J3: الاسم | K3: المصريين
J4: التاريخ | K4: ='26'!K4+1 -> 2021-04-27 | W4: اليوم | X4: =K4 -> 2021-04-27
J6: قبل التسحيب | L6: مسحب مع خملة | N6: مسحب احمر | P6: مسحب سوبر | R6: مسحب صحن | T6: مسحب كامل مجمد | V6: صافي | W6: العدد | X6: النسبة
J7: عدد | K7: الصافي | L7: عدد | M7: الصافي | N7: عدد | O7: الصافي | P7: عدد | Q7: الصافي | R7: عدد | S7: الصافي | T7: عدد | U7: الصافي | V7: الكمية
J8: 17 | K8: 957 | L8: 50 | M8: 458 | N8: 25 | O8: 228 | P8: 12 | Q8: 278 | R8: 11 | S8: 114 | T8: 19 | U8: 358
J23: =SUM(J8:J22) -> 17 | K23: =SUM(K8:K22)-(J23*0.9) -> 941.7 | L23: =SUM(L8:L22) -> 50 | M23: =SUM(M8:M22)-(L23*0.9) -> 413 | N23: =SUM(N8:N22) -> 25 | O23: =SUM(O8:O22)-(N23*0.9) -> 205.5 | P23: =SUM(P8:P22) -> 12 | Q23: =SUM(Q8:Q22)-(P23*0.9) -> 267.2 | R23: =SUM(R8:R22) -> 11 | S23: =SUM(S8:S22)-(R23*0.9) -> 104.1 | T23: =SUM(T8:T22) -> 19 | U23: =SUM(U8:U22)-(T23*1.07) -> 337.67 | V23: =SUM(M23+O23+Q23+S23+U23) -> 1327.47 | W23: =SUM(L23+N23+P23+R23)*10 -> 980 | X23: =V23/K23 -> 1.409652756
J25: الاسم | K25: مزيد
J26: التاريخ | K26: =K4 -> 2021-04-27 | W26: اليوم | X26: =K26 -> 2021-04-27
J28: قبل التسحيب | L28: مسحب مع خملة | N28: مسحب احمر | P28: مسحب سوبر | R28: مسحب صحن | T28: مسحب كامل مجمد | V28: صافي | W28: العدد | X28: النسبة
J29: عدد | K29: الصافي | L29: عدد | M29: الصافي | N29: عدد | O29: الصافي | P29: عدد | Q29: الصافي | R29: عدد | S29: الصافي | T29: عدد | U29: الصافي | V29: الكمية
J30: 17 | K30: 548 | L30: 50 | M30: 457 | N30: 25 | O30: 255 | P30: 12 | Q30: 659 | R30: 11 | S30: 214 | T30: 19 | U30: 23
J45: =SUM(J30:J44) -> 17 | K45: =SUM(K30:K44)-(J45*0.9) -> 532.7 | L45: =SUM(L30:L44) -> 50 | M45: =SUM(M30:M44)-(L45*0.9) -> 412 | N45: =SUM(N30:N44) -> 25 | O45: =SUM(O30:O44)-(N45*0.9) -> 232.5 | P45: =SUM(P30:P44) -> 12 | Q45: =SUM(Q30:Q44)-(P45*0.9) -> 648.2 | R45: =SUM(R30:R44) -> 11 | S45: =SUM(S30:S44)-(R45*0.9) -> 204.1 | T45: =SUM(T30:T44) -> 19 | U45: =SUM(U30:U44)-(T45*1.07) -> 2.67 | V45: =SUM(M45+O45+Q45+S45+U45) -> 1499.47 | W45: =SUM(L45+N45+P45+R45)*10 -> 980 | X45: =V45/K45 -> 2.814848883
J47: الاسم | K47: الشمري
J48: التاريخ | K48: =K4 -> 2021-04-27 | W48: اليوم | X48: =K48 -> 2021-04-27
J50: قبل التسحيب | L50: مسحب مع خملة | N50: مسحب احمر | P50: مسحب سوبر | R50: مسحب صحن | T50: مسحب كامل مجمد | V50: صافي | W50: العدد | X50: النسبة
J51: عدد | K51: الصافي | L51: عدد | M51: الصافي | N51: عدد | O51: الصافي | P51: عدد | Q51: الصافي | R51: عدد | S51: الصافي | T51: عدد | U51: الصافي | V51: الكمية
J52: 17 | K52: 458 | L52: 50 | M52: 547 | N52: 25 | O52: 224 | P52: 12 | Q52: 48 | R52: 11 | S52: 554 | T52: 19 | U52: 265
J67: =SUM(J52:J66) -> 17 | K67: =SUM(K52:K66)-(J67*0.9) -> 442.7 | L67: =SUM(L52:L66) -> 50 | M67: =SUM(M52:M66)-(L67*0.9) -> 502 | N67: =SUM(N52:N66) -> 25 | O67: =SUM(O52:O66)-(N67*0.9) -> 201.5 | P67: =SUM(P52:P66) -> 12 | Q67: =SUM(Q52:Q66)-(P67*0.9) -> 37.2 | R67: =SUM(R52:R66) -> 11 | S67: =SUM(S52:S66)-(R67*0.9) -> 544.1 | T67: =SUM(T52:T66) -> 19 | U67: =SUM(U52:U66)-(T67*1.07) -> 244.67 | V67: =SUM(M67+O67+Q67+S67+U67) -> 1529.47 | W67: =SUM(L67+N67+P67+R67)*10 -> 980 | X67: =V67/K67 -> 3.454867856
J70: الاسم | L70: ابراهيم | P70: الاسم | R70: السوريين
J71: التاريخ | L71: =K4 -> 2021-04-27 | P71: التاريخ | R71: =K4 -> 2021-04-27
J72: قبل التسحيب | P72: قبل التسحيب
J73: صافي الكمية | P73: صافي الكمية
J74: عدد الصدر | P74: عدد الصدر
J75: النسبة | L75: =L73/L72 ->  | P75: النسبة | R75: =R73/R72 -> 

Sheet 28
J3: الاسم | K3: المصريين
J4: التاريخ | K4: ='27'!K4+1 -> 2021-04-28 | W4: اليوم | X4: =K4 -> 2021-04-28
J6: قبل التسحيب | L6: مسحب مع خملة | N6: مسحب احمر | P6: مسحب سوبر | R6: مسحب صحن | T6: مسحب كامل مجمد | V6: صافي | W6: العدد | X6: النسبة
J7: عدد | K7: الصافي | L7: عدد | M7: الصافي | N7: عدد | O7: الصافي | P7: عدد | Q7: الصافي | R7: عدد | S7: الصافي | T7: عدد | U7: الصافي | V7: الكمية
J8: 17 | K8: 957 | L8: 50 | M8: 458 | N8: 25 | O8: 228 | P8: 12 | Q8: 278 | R8: 11 | S8: 114 | T8: 19 | U8: 358
J23: =SUM(J8:J22) -> 17 | K23: =SUM(K8:K22)-(J23*0.9) -> 941.7 | L23: =SUM(L8:L22) -> 50 | M23: =SUM(M8:M22)-(L23*0.9) -> 413 | N23: =SUM(N8:N22) -> 25 | O23: =SUM(O8:O22)-(N23*0.9) -> 205.5 | P23: =SUM(P8:P22) -> 12 | Q23: =SUM(Q8:Q22)-(P23*0.9) -> 267.2 | R23: =SUM(R8:R22) -> 11 | S23: =SUM(S8:S22)-(R23*0.9) -> 104.1 | T23: =SUM(T8:T22) -> 19 | U23: =SUM(U8:U22)-(T23*1.07) -> 337.67 | V23: =SUM(M23+O23+Q23+S23+U23) -> 1327.47 | W23: =SUM(L23+N23+P23+R23)*10 -> 980 | X23: =V23/K23 -> 1.409652756
J25: الاسم | K25: مزيد
J26: التاريخ | K26: =K4 -> 2021-04-28 | W26: اليوم | X26: =K26 -> 2021-04-28
J28: قبل التسحيب | L28: مسحب مع خملة | N28: مسحب احمر | P28: مسحب سوبر | R28: مسحب صحن | T28: مسحب كامل مجمد | V28: صافي | W28: العدد | X28: النسبة
J29: عدد | K29: الصافي | L29: عدد | M29: الصافي | N29: عدد | O29: الصافي | P29: عدد | Q29: الصافي | R29: عدد | S29: الصافي | T29: عدد | U29: الصافي | V29: الكمية
J30: 17 | K30: 548 | L30: 50 | M30: 457 | N30: 25 | O30: 255 | P30: 12 | Q30: 659 | R30: 11 | S30: 214 | T30: 19 | U30: 23
J45: =SUM(J30:J44) -> 17 | K45: =SUM(K30:K44)-(J45*0.9) -> 532.7 | L45: =SUM(L30:L44) -> 50 | M45: =SUM(M30:M44)-(L45*0.9) -> 412 | N45: =SUM(N30:N44) -> 25 | O45: =SUM(O30:O44)-(N45*0.9) -> 232.5 | P45: =SUM(P30:P44) -> 12 | Q45: =SUM(Q30:Q44)-(P45*0.9) -> 648.2 | R45: =SUM(R30:R44) -> 11 | S45: =SUM(S30:S44)-(R45*0.9) -> 204.1 | T45: =SUM(T30:T44) -> 19 | U45: =SUM(U30:U44)-(T45*1.07) -> 2.67 | V45: =SUM(M45+O45+Q45+S45+U45) -> 1499.47 | W45: =SUM(L45+N45+P45+R45)*10 -> 980 | X45: =V45/K45 -> 2.814848883
J47: الاسم | K47: الشمري
J48: التاريخ | K48: =K4 -> 2021-04-28 | W48: اليوم | X48: =K48 -> 2021-04-28
J50: قبل التسحيب | L50: مسحب مع خملة | N50: مسحب احمر | P50: مسحب سوبر | R50: مسحب صحن | T50: مسحب كامل مجمد | V50: صافي | W50: العدد | X50: النسبة
J51: عدد | K51: الصافي | L51: عدد | M51: الصافي | N51: عدد | O51: الصافي | P51: عدد | Q51: الصافي | R51: عدد | S51: الصافي | T51: عدد | U51: الصافي | V51: الكمية
J52: 17 | K52: 458 | L52: 50 | M52: 547 | N52: 25 | O52: 224 | P52: 12 | Q52: 48 | R52: 11 | S52: 554 | T52: 19 | U52: 265
J67: =SUM(J52:J66) -> 17 | K67: =SUM(K52:K66)-(J67*0.9) -> 442.7 | L67: =SUM(L52:L66) -> 50 | M67: =SUM(M52:M66)-(L67*0.9) -> 502 | N67: =SUM(N52:N66) -> 25 | O67: =SUM(O52:O66)-(N67*0.9) -> 201.5 | P67: =SUM(P52:P66) -> 12 | Q67: =SUM(Q52:Q66)-(P67*0.9) -> 37.2 | R67: =SUM(R52:R66) -> 11 | S67: =SUM(S52:S66)-(R67*0.9) -> 544.1 | T67: =SUM(T52:T66) -> 19 | U67: =SUM(U52:U66)-(T67*1.07) -> 244.67 | V67: =SUM(M67+O67+Q67+S67+U67) -> 1529.47 | W67: =SUM(L67+N67+P67+R67)*10 -> 980 | X67: =V67/K67 -> 3.454867856
J70: الاسم | L70: ابراهيم | P70: الاسم | R70: السوريين
J71: التاريخ | L71: =K4 -> 2021-04-28 | P71: التاريخ | R71: =K4 -> 2021-04-28
J72: قبل التسحيب | P72: قبل التسحيب
J73: صافي الكمية | P73: صافي الكمية
J74: عدد الصدر | P74: عدد الصدر
J75: النسبة | L75: =L73/L72 ->  | P75: النسبة | R75: =R73/R72 -> 

Sheet 29
J3: الاسم | K3: المصريين
J4: التاريخ | K4: ='28'!K4+1 -> 2021-04-29 | W4: اليوم | X4: =K4 -> 2021-04-29
J6: قبل التسحيب | L6: مسحب مع خملة | N6: مسحب احمر | P6: مسحب سوبر | R6: مسحب صحن | T6: مسحب كامل مجمد | V6: صافي | W6: العدد | X6: النسبة
J7: عدد | K7: الصافي | L7: عدد | M7: الصافي | N7: عدد | O7: الصافي | P7: عدد | Q7: الصافي | R7: عدد | S7: الصافي | T7: عدد | U7: الصافي | V7: الكمية
J8: 17 | K8: 957 | L8: 50 | M8: 458 | N8: 25 | O8: 228 | P8: 12 | Q8: 278 | R8: 11 | S8: 114 | T8: 19 | U8: 358
J23: =SUM(J8:J22) -> 17 | K23: =SUM(K8:K22)-(J23*0.9) -> 941.7 | L23: =SUM(L8:L22) -> 50 | M23: =SUM(M8:M22)-(L23*0.9) -> 413 | N23: =SUM(N8:N22) -> 25 | O23: =SUM(O8:O22)-(N23*0.9) -> 205.5 | P23: =SUM(P8:P22) -> 12 | Q23: =SUM(Q8:Q22)-(P23*0.9) -> 267.2 | R23: =SUM(R8:R22) -> 11 | S23: =SUM(S8:S22)-(R23*0.9) -> 104.1 | T23: =SUM(T8:T22) -> 19 | U23: =SUM(U8:U22)-(T23*1.07) -> 337.67 | V23: =SUM(M23+O23+Q23+S23+U23) -> 1327.47 | W23: =SUM(L23+N23+P23+R23)*10 -> 980 | X23: =V23/K23 -> 1.409652756
J25: الاسم | K25: مزيد
J26: التاريخ | K26: =K4 -> 2021-04-29 | W26: اليوم | X26: =K26 -> 2021-04-29
J28: قبل التسحيب | L28: مسحب مع خملة | N28: مسحب احمر | P28: مسحب سوبر | R28: مسحب صحن | T28: مسحب كامل مجمد | V28: صافي | W28: العدد | X28: النسبة
J29: عدد | K29: الصافي | L29: عدد | M29: الصافي | N29: عدد | O29: الصافي | P29: عدد | Q29: الصافي | R29: عدد | S29: الصافي | T29: عدد | U29: الصافي | V29: الكمية
J30: 17 | K30: 548 | L30: 50 | M30: 457 | N30: 25 | O30: 255 | P30: 12 | Q30: 659 | R30: 11 | S30: 214 | T30: 19 | U30: 23
J45: =SUM(J30:J44) -> 17 | K45: =SUM(K30:K44)-(J45*0.9) -> 532.7 | L45: =SUM(L30:L44) -> 50 | M45: =SUM(M30:M44)-(L45*0.9) -> 412 | N45: =SUM(N30:N44) -> 25 | O45: =SUM(O30:O44)-(N45*0.9) -> 232.5 | P45: =SUM(P30:P44) -> 12 | Q45: =SUM(Q30:Q44)-(P45*0.9) -> 648.2 | R45: =SUM(R30:R44) -> 11 | S45: =SUM(S30:S44)-(R45*0.9) -> 204.1 | T45: =SUM(T30:T44) -> 19 | U45: =SUM(U30:U44)-(T45*1.07) -> 2.67 | V45: =SUM(M45+O45+Q45+S45+U45) -> 1499.47 | W45: =SUM(L45+N45+P45+R45)*10 -> 980 | X45: =V45/K45 -> 2.814848883
J47: الاسم | K47: الشمري
J48: التاريخ | K48: =K4 -> 2021-04-29 | W48: اليوم | X48: =K48 -> 2021-04-29
J50: قبل التسحيب | L50: مسحب مع خملة | N50: مسحب احمر | P50: مسحب سوبر | R50: مسحب صحن | T50: مسحب كامل مجمد | V50: صافي | W50: العدد | X50: النسبة
J51: عدد | K51: الصافي | L51: عدد | M51: الصافي | N51: عدد | O51: الصافي | P51: عدد | Q51: الصافي | R51: عدد | S51: الصافي | T51: عدد | U51: الصافي | V51: الكمية
J52: 17 | K52: 458 | L52: 50 | M52: 547 | N52: 25 | O52: 224 | P52: 12 | Q52: 48 | R52: 11 | S52: 554 | T52: 19 | U52: 265
J67: =SUM(J52:J66) -> 17 | K67: =SUM(K52:K66)-(J67*0.9) -> 442.7 | L67: =SUM(L52:L66) -> 50 | M67: =SUM(M52:M66)-(L67*0.9) -> 502 | N67: =SUM(N52:N66) -> 25 | O67: =SUM(O52:O66)-(N67*0.9) -> 201.5 | P67: =SUM(P52:P66) -> 12 | Q67: =SUM(Q52:Q66)-(P67*0.9) -> 37.2 | R67: =SUM(R52:R66) -> 11 | S67: =SUM(S52:S66)-(R67*0.9) -> 544.1 | T67: =SUM(T52:T66) -> 19 | U67: =SUM(U52:U66)-(T67*1.07) -> 244.67 | V67: =SUM(M67+O67+Q67+S67+U67) -> 1529.47 | W67: =SUM(L67+N67+P67+R67)*10 -> 980 | X67: =V67/K67 -> 3.454867856
J70: الاسم | L70: ابراهيم | P70: الاسم | R70: السوريين
J71: التاريخ | L71: =K4 -> 2021-04-29 | P71: التاريخ | R71: =K4 -> 2021-04-29
J72: قبل التسحيب | P72: قبل التسحيب
J73: صافي الكمية | P73: صافي الكمية
J74: عدد الصدر | P74: عدد الصدر
J75: النسبة | L75: =L73/L72 ->  | P75: النسبة | R75: =R73/R72 -> 

Sheet 30
J3: الاسم | K3: المصريين
J4: التاريخ | K4: ='29'!K4+1 -> 2021-04-30 | W4: اليوم | X4: =K4 -> 2021-04-30
J6: قبل التسحيب | L6: مسحب مع خملة | N6: مسحب احمر | P6: مسحب سوبر | R6: مسحب صحن | T6: مسحب كامل مجمد | V6: صافي | W6: العدد | X6: النسبة
J7: عدد | K7: الصافي | L7: عدد | M7: الصافي | N7: عدد | O7: الصافي | P7: عدد | Q7: الصافي | R7: عدد | S7: الصافي | T7: عدد | U7: الصافي | V7: الكمية
J8: 17 | K8: 957 | L8: 50 | M8: 458 | N8: 25 | O8: 228 | P8: 12 | Q8: 278 | R8: 11 | S8: 114 | T8: 19 | U8: 358
J23: =SUM(J8:J22) -> 17 | K23: =SUM(K8:K22)-(J23*0.9) -> 941.7 | L23: =SUM(L8:L22) -> 50 | M23: =SUM(M8:M22)-(L23*0.9) -> 413 | N23: =SUM(N8:N22) -> 25 | O23: =SUM(O8:O22)-(N23*0.9) -> 205.5 | P23: =SUM(P8:P22) -> 12 | Q23: =SUM(Q8:Q22)-(P23*0.9) -> 267.2 | R23: =SUM(R8:R22) -> 11 | S23: =SUM(S8:S22)-(R23*0.9) -> 104.1 | T23: =SUM(T8:T22) -> 19 | U23: =SUM(U8:U22)-(T23*1.07) -> 337.67 | V23: =SUM(M23+O23+Q23+S23+U23) -> 1327.47 | W23: =SUM(L23+N23+P23+R23)*10 -> 980 | X23: =V23/K23 -> 1.409652756
J25: الاسم | K25: مزيد
J26: التاريخ | K26: =K4 -> 2021-04-30 | W26: اليوم | X26: =K26 -> 2021-04-30
J28: قبل التسحيب | L28: مسحب مع خملة | N28: مسحب احمر | P28: مسحب سوبر | R28: مسحب صحن | T28: مسحب كامل مجمد | V28: صافي | W28: العدد | X28: النسبة
J29: عدد | K29: الصافي | L29: عدد | M29: الصافي | N29: عدد | O29: الصافي | P29: عدد | Q29: الصافي | R29: عدد | S29: الصافي | T29: عدد | U29: الصافي | V29: الكمية
J30: 17 | K30: 548 | L30: 50 | M30: 457 | N30: 25 | O30: 255 | P30: 12 | Q30: 659 | R30: 11 | S30: 214 | T30: 19 | U30: 23
J45: =SUM(J30:J44) -> 17 | K45: =SUM(K30:K44)-(J45*0.9) -> 532.7 | L45: =SUM(L30:L44) -> 50 | M45: =SUM(M30:M44)-(L45*0.9) -> 412 | N45: =SUM(N30:N44) -> 25 | O45: =SUM(O30:O44)-(N45*0.9) -> 232.5 | P45: =SUM(P30:P44) -> 12 | Q45: =SUM(Q30:Q44)-(P45*0.9) -> 648.2 | R45: =SUM(R30:R44) -> 11 | S45: =SUM(S30:S44)-(R45*0.9) -> 204.1 | T45: =SUM(T30:T44) -> 19 | U45: =SUM(U30:U44)-(T45*1.07) -> 2.67 | V45: =SUM(M45+O45+Q45+S45+U45) -> 1499.47 | W45: =SUM(L45+N45+P45+R45)*10 -> 980 | X45: =V45/K45 -> 2.814848883
J47: الاسم | K47: الشمري
J48: التاريخ | K48: =K4 -> 2021-04-30 | W48: اليوم | X48: =K48 -> 2021-04-30
J50: قبل التسحيب | L50: مسحب مع خملة | N50: مسحب احمر | P50: مسحب سوبر | R50: مسحب صحن | T50: مسحب كامل مجمد | V50: صافي | W50: العدد | X50: النسبة
J51: عدد | K51: الصافي | L51: عدد | M51: الصافي | N51: عدد | O51: الصافي | P51: عدد | Q51: الصافي | R51: عدد | S51: الصافي | T51: عدد | U51: الصافي | V51: الكمية
J52: 17 | K52: 458 | L52: 50 | M52: 547 | N52: 25 | O52: 224 | P52: 12 | Q52: 48 | R52: 11 | S52: 554 | T52: 19 | U52: 265
J67: =SUM(J52:J66) -> 17 | K67: =SUM(K52:K66)-(J67*0.9) -> 442.7 | L67: =SUM(L52:L66) -> 50 | M67: =SUM(M52:M66)-(L67*0.9) -> 502 | N67: =SUM(N52:N66) -> 25 | O67: =SUM(O52:O66)-(N67*0.9) -> 201.5 | P67: =SUM(P52:P66) -> 12 | Q67: =SUM(Q52:Q66)-(P67*0.9) -> 37.2 | R67: =SUM(R52:R66) -> 11 | S67: =SUM(S52:S66)-(R67*0.9) -> 544.1 | T67: =SUM(T52:T66) -> 19 | U67: =SUM(U52:U66)-(T67*1.07) -> 244.67 | V67: =SUM(M67+O67+Q67+S67+U67) -> 1529.47 | W67: =SUM(L67+N67+P67+R67)*10 -> 980 | X67: =V67/K67 -> 3.454867856
J70: الاسم | L70: ابراهيم | P70: الاسم | R70: السوريين
J71: التاريخ | L71: =K4 -> 2021-04-30 | P71: التاريخ | R71: =K4 -> 2021-04-30
J72: قبل التسحيب | P72: قبل التسحيب
J73: صافي الكمية | P73: صافي الكمية
J74: عدد الصدر | P74: عدد الصدر
J75: النسبة | L75: =L73/L72 ->  | P75: النسبة | R75: =R73/R72 -> 

Sheet 31
J3: الاسم | K3: المصريين
J4: التاريخ | K4: ='30'!K4+1 -> 2021-05-01 | W4: اليوم | X4: =K4 -> 2021-05-01
J6: قبل التسحيب | L6: مسحب مع خملة | N6: مسحب احمر | P6: مسحب سوبر | R6: مسحب صحن | T6: مسحب كامل مجمد | V6: صافي | W6: العدد | X6: النسبة
J7: عدد | K7: الصافي | L7: عدد | M7: الصافي | N7: عدد | O7: الصافي | P7: عدد | Q7: الصافي | R7: عدد | S7: الصافي | T7: عدد | U7: الصافي | V7: الكمية
J8: 17 | K8: 957 | L8: 50 | M8: 458 | N8: 25 | O8: 228 | P8: 12 | Q8: 278 | R8: 11 | S8: 114 | T8: 19 | U8: 358
J23: =SUM(J8:J22) -> 17 | K23: =SUM(K8:K22)-(J23*0.9) -> 941.7 | L23: =SUM(L8:L22) -> 50 | M23: =SUM(M8:M22)-(L23*0.9) -> 413 | N23: =SUM(N8:N22) -> 25 | O23: =SUM(O8:O22)-(N23*0.9) -> 205.5 | P23: =SUM(P8:P22) -> 12 | Q23: =SUM(Q8:Q22)-(P23*0.9) -> 267.2 | R23: =SUM(R8:R22) -> 11 | S23: =SUM(S8:S22)-(R23*0.9) -> 104.1 | T23: =SUM(T8:T22) -> 19 | U23: =SUM(U8:U22)-(T23*1.07) -> 337.67 | V23: =SUM(M23+O23+Q23+S23+U23) -> 1327.47 | W23: =SUM(L23+N23+P23+R23)*10 -> 980 | X23: =V23/K23 -> 1.409652756
J25: الاسم | K25: مزيد
J26: التاريخ | K26: =K4 -> 2021-05-01 | W26: اليوم | X26: =K26 -> 2021-05-01
J28: قبل التسحيب | L28: مسحب مع خملة | N28: مسحب احمر | P28: مسحب سوبر | R28: مسحب صحن | T28: مسحب كامل مجمد | V28: صافي | W28: العدد | X28: النسبة
J29: عدد | K29: الصافي | L29: عدد | M29: الصافي | N29: عدد | O29: الصافي | P29: عدد | Q29: الصافي | R29: عدد | S29: الصافي | T29: عدد | U29: الصافي | V29: الكمية
J30: 17 | K30: 548 | L30: 50 | M30: 457 | N30: 25 | O30: 255 | P30: 12 | Q30: 659 | R30: 11 | S30: 214 | T30: 19 | U30: 23
J45: =SUM(J30:J44) -> 17 | K45: =SUM(K30:K44)-(J45*0.9) -> 532.7 | L45: =SUM(L30:L44) -> 50 | M45: =SUM(M30:M44)-(L45*0.9) -> 412 | N45: =SUM(N30:N44) -> 25 | O45: =SUM(O30:O44)-(N45*0.9) -> 232.5 | P45: =SUM(P30:P44) -> 12 | Q45: =SUM(Q30:Q44)-(P45*0.9) -> 648.2 | R45: =SUM(R30:R44) -> 11 | S45: =SUM(S30:S44)-(R45*0.9) -> 204.1 | T45: =SUM(T30:T44) -> 19 | U45: =SUM(U30:U44)-(T45*1.07) -> 2.67 | V45: =SUM(M45+O45+Q45+S45+U45) -> 1499.47 | W45: =SUM(L45+N45+P45+R45)*10 -> 980 | X45: =V45/K45 -> 2.814848883
J47: الاسم | K47: الشمري
J48: التاريخ | K48: =K4 -> 2021-05-01 | W48: اليوم | X48: =K48 -> 2021-05-01
J50: قبل التسحيب | L50: مسحب مع خملة | N50: مسحب احمر | P50: مسحب سوبر | R50: مسحب صحن | T50: مسحب كامل مجمد | V50: صافي | W50: العدد | X50: النسبة
J51: عدد | K51: الصافي | L51: عدد | M51: الصافي | N51: عدد | O51: الصافي | P51: عدد | Q51: الصافي | R51: عدد | S51: الصافي | T51: عدد | U51: الصافي | V51: الكمية
J52: 17 | K52: 458 | L52: 50 | M52: 547 | N52: 25 | O52: 224 | P52: 12 | Q52: 48 | R52: 11 | S52: 554 | T52: 19 | U52: 265
J67: =SUM(J52:J66) -> 17 | K67: =SUM(K52:K66)-(J67*0.9) -> 442.7 | L67: =SUM(L52:L66) -> 50 | M67: =SUM(M52:M66)-(L67*0.9) -> 502 | N67: =SUM(N52:N66) -> 25 | O67: =SUM(O52:O66)-(N67*0.9) -> 201.5 | P67: =SUM(P52:P66) -> 12 | Q67: =SUM(Q52:Q66)-(P67*0.9) -> 37.2 | R67: =SUM(R52:R66) -> 11 | S67: =SUM(S52:S66)-(R67*0.9) -> 544.1 | T67: =SUM(T52:T66) -> 19 | U67: =SUM(U52:U66)-(T67*1.07) -> 244.67 | V67: =SUM(M67+O67+Q67+S67+U67) -> 1529.47 | W67: =SUM(L67+N67+P67+R67)*10 -> 980 | X67: =V67/K67 -> 3.454867856
J70: الاسم | L70: ابراهيم | P70: الاسم | R70: السوريين
J71: التاريخ | L71: =K4 -> 2021-05-01 | P71: التاريخ | R71: =K4 -> 2021-05-01
J72: قبل التسحيب | P72: قبل التسحيب
J73: صافي الكمية | P73: صافي الكمية
J74: عدد الصدر | P74: عدد الصدر
J75: النسبة | L75: =L73/L72 ->  | P75: النسبة | R75: =R73/R72 -> 
